{"text_format":"1","workbook":"xlsx","n_sheets":3,"sheets":["Tarefas","CÁLCULOS","Dashboard"],"not_rendered":{"charts":1,"images":1,"macros":0,"external_links":0,"defined_names":3,"comments":0,"pivot_tables":0},"unopened":[],"bounds":{"document_bytes":16777216,"sheet_cells":100000,"rows_first":2000,"rows_last":500,"rows_between":2000,"halvings":0,"cell_chars":16384,"cell_head_chars":4096},"cells_cut":0,"cells_raw":0,"read":"whole","date_system":"1900"}

{"sheet":"Tarefas","index":0,"n_rows":5000,"n_cols":9,"rows_kept":5000,"cut":false,"hidden":false,"merged":[[0,2,0,3]]}
["DESCRIÇÃO DA TAREFA","PRIORIDADE","DATA PREVISTA PARA FINALIZAR",null,"STATUS",null,null,"ANÁLISE PREVISÃO","MÊS"]
["Atividade 01","Média",{"$f":"TODAY()-5","v":"2021-08-30"},{"$f":"IF(OR(C2=\"\",E2=\"Finalizado\"),\"\",IF(H2=\"No Prazo\",1,IF(H2=\"Finalizado\",1,-1)))","v":-1},"Pendente",null,null,{"$f":"IF(C2=\"\",\"\",IF(E2<>\"Finalizado\",IF(C2<TODAY(),\"Em Atraso\",\"No Prazo\"),\"Finalizado\"))","v":"Em Atraso"},{"$f":"IF(E2=\"Finalizado\",\"\",IF(C2=\"\",\"\",MONTH(C2)))","v":8}]
["Atividade 02","Baixa",{"$f":"C2+2","v":"2021-09-01"},{"$f":"IF(OR(C3=\"\",E3=\"Finalizado\"),\"\",IF(H3=\"No Prazo\",1,IF(H3=\"Finalizado\",1,-1)))","v":""},"Finalizado",null,null,{"$f":"IF(C3=\"\",\"\",IF(E3<>\"Finalizado\",IF(C3<TODAY(),\"Em Atraso\",\"No Prazo\"),\"Finalizado\"))","v":"Finalizado"},{"$f":"IF(E3=\"Finalizado\",\"\",IF(C3=\"\",\"\",MONTH(C3)))","v":""}]
["Atividade 03","Alta",{"$f":"C3+2","v":"2021-09-03"},-1,"Pendente",null,null,"Em Atraso",9]
["Atividade 04","Média",{"$f":"C4+2","v":"2021-09-05"},1,"Pendente",null,null,"No Prazo",9]
["Atividade 05","Média",{"$f":"C5+2","v":"2021-09-07"},1,"Pendente",null,null,"No Prazo",9]
["Atividade 06","Baixa",{"$f":"C6+2","v":"2021-09-09"},1,"Pendente",null,null,"No Prazo",9]
["Atividade 07","Alta",{"$f":"C7+2","v":"2021-09-11"},"","Finalizado",null,null,"Finalizado",""]
["Atividade 08",null,{"$f":"C8+2","v":"2021-09-13"},"","Finalizado",null,null,"Finalizado",""]
["Atividade 09",null,null,"",null,null,null,"",""]
["Atividade 10",null,null,"",null,null,null,"",""]
["Atividade 11",null,null,"",null,null,null,"",""]
["Atividade 12",null,null,"",null,null,null,"",""]
["Atividade 13",null,null,"",null,null,null,"",""]
[null,null,null,"",null,null,null,"",""]
[null,null,null,"",null,null,null,"",""]
[null,null,null,"",null,null,null,"",""]
[null,null,null,"",null,null,null,"",""]
[null,null,null,"",null,null,null,"",""]
[null,null,null,"",null,null,null,"",""]
[null,null,null,"",null,null,null,"",""]
[null,null,null,"",null,null,null,"",""]
[null,null,null,"",null,null,null,"",""]
[null,null,null,"",null,null,null,"",""]
[null,null,null,"",null,null,null,"",""]
[null,null,null,"",null,null,null,"",""]
[null,null,null,"",null,null,null,"",""]
[null,null,null,"",null,null,null,"",""]
[null,null,null,"",null,null,null,"",""]
[null,null,null,"",null,null,null,"",""]
[null,null,null,"",null,null,null,"",""]
[null,null,null,"",null,null,null,"",""]
[null,null,null,"",null,null,null,"",""]
[null,null,null,"",null,null,null,"",""]
[null,null,null,"",null,null,null,"",""]
[null,null,null,"",null,null,null,"",""]
[null,null,null,"",null,null,null,"",""]
[null,null,null,"",null,null,null,"",""]
[null,null,null,"",null,null,null,"",""]
[null,null,null,"",null,null,null,"",""]
[null,null,null,"",null,null,null,"",""]
[null,null,null,"",null,null,null,"",""]
[null,null,null,"",null,null,null,"",""]
[null,null,null,"",null,null,null,"",""]
[null,null,null,"",null,null,null,"",""]
[null,null,null,"",null,null,null,"",""]
[null,null,null,"",null,null,null,"",""]
[null,null,null,"",null,null,null,"",""]
[null,null,null,"",null,null,null,"",""]
[null,null,null,"",null,null,null,"",""]
[null,null,null,"",null,null,null,"",""]
[null,null,null,"",null,null,null,"",""]
[null,null,null,"",null,null,null,"",""]
[null,null,null,"",null,null,null,"",""]
[null,null,null,"",null,null,null,"",""]
[null,null,null,"",null,null,null,"",""]
[null,null,null,"",null,null,null,"",""]
[null,null,null,"",null,null,null,"",""]
[null,null,null,"",null,null,null,"",""]
[null,null,null,"",null,null,null,"",""]
[null,null,null,"",null,null,null,"",""]
[null,null,null,"",null,null,null,"",""]
[null,null,null,"",null,null,null,"",""]
[null,null,null,"",null,null,null,"",""]
[null,null,null,"",null,null,null,"",""]
[null,null,null,"",null,null,null,"",""]
[null,null,null,{"$f":"IF(OR(C67=\"\",E67=\"Finalizado\"),\"\",IF(H67=\"No Prazo\",1,IF(H67=\"Finalizado\",1,-1)))","v":""},null,null,null,{"$f":"IF(C67=\"\",\"\",IF(E67<>\"Finalizado\",IF(C67<TODAY(),\"Em Atraso\",\"No Prazo\"),\"Finalizado\"))","v":""},{"$f":"IF(E67=\"Finalizado\",\"\",IF(C67=\"\",\"\",MONTH(C67)))","v":""}]
[null,null,null,"",null,null,null,"",""]
[null,null,null,"",null,null,null,"",""]
[null,null,null,"",null,null,null,"",""]
[null,null,null,"",null,null,null,"",""]
[null,null,null,"",null,null,null,"",""]
[null,null,null,"",null,null,null,"",""]
[null,null,null,"",null,null,null,"",""]
[null,null,null,"",null,null,null,"",""]
[null,null,null,"",null,null,null,"",""]
[null,null,null,"",null,null,null,"",""]
[null,null,null,"",null,null,null,"",""]
[null,null,null,"",null,null,null,"",""]
[null,null,null,"",null,null,null,"",""]
[null,null,null,"",null,null,null,"",""]
[null,null,null,"",null,null,null,"",""]
[null,null,null,"",null,null,null,"",""]
[null,null,null,"",null,null,null,"",""]
[null,null,null,"",null,null,null,"",""]
[null,null,null,"",null,null,null,"",""]
[null,null,null,"",null,null,null,"",""]
[null,null,null,"",null,null,null,"",""]
[null,null,null,"",null,null,null,"",""]
[null,null,null,"",null,null,null,"",""]
[null,null,null,"",null,null,null,"",""]
[null,null,null,"",null,null,null,"",""]
[null,null,null,"",null,null,null,"",""]
[null,null,null,"",null,null,null,"",""]
[null,null,null,"",null,null,null,"",""]
[null,null,null,"",null,null,null,"",""]
[null,null,null,"",null,null,null,"",""]
[null,null,null,"",null,null,null,"",""]
[null,null,null,"",null,null,null,"",""]
[null,null,null,"",null,null,null,"",""]
[null,null,null,"",null,null,null,"",""]
[null,null,null,"",null,null,null,"",""]
[null,null,null,"",null,null,null,"",""]
[null,null,null,"",null,null,null,"",""]
[null,null,null,"",null,null,null,"",""]
[null,null,null,"",null,null,null,"",""]
[null,null,null,"",null,null,null,"",""]
[null,null,null,"",null,null,null,"",""]
[null,null,null,"",null,null,null,"",""]
[null,null,null,"",null,null,null,"",""]
[null,null,null,"",null,null,null,"",""]
[null,null,null,"",null,null,null,"",""]
[null,null,null,"",null,null,null,"",""]
[null,null,null,"",null,null,null,"",""]
[null,null,null,"",null,null,null,"",""]
[null,null,null,"",null,null,null,"",""]
[null,null,null,"",null,null,null,"",""]
[null,null,null,"",null,null,null,"",""]
[null,null,null,"",null,null,null,"",""]
[null,null,null,"",null,null,null,"",""]
[null,null,null,"",null,null,null,"",""]
[null,null,null,"",null,null,null,"",""]
[null,null,null,"",null,null,null,"",""]
[null,null,null,"",null,null,null,"",""]
[null,null,null,"",null,null,null,"",""]
[null,null,null,"",null,null,null,"",""]
[null,null,null,"",null,null,null,"",""]
[null,null,null,"",null,null,null,"",""]
[null,null,null,"",null,null,null,"",""]
[null,null,null,"",null,null,null,"",""]
[null,null,null,{"$f":"IF(OR(C131=\"\",E131=\"Finalizado\"),\"\",IF(H131=\"No Prazo\",1,IF(H131=\"Finalizado\",1,-1)))","v":""},null,null,null,{"$f":"IF(C131=\"\",\"\",IF(E131<>\"Finalizado\",IF(C131<TODAY(),\"Em Atraso\",\"No Prazo\"),\"Finalizado\"))","v":""},{"$f":"IF(E131=\"Finalizado\",\"\",IF(C131=\"\",\"\",MONTH(C131)))","v":""}]
[null,null,null,"",null,null,null,"",""]
[null,null,null,"",null,null,null,"",""]
[null,null,null,"",null,null,null,"",""]
[null,null,null,"",null,null,null,"",""]
[null,null,null,"",null,null,null,"",""]
[null,null,null,"",null,null,null,"",""]
[null,null,null,"",null,null,null,"",""]
[null,null,null,"",null,null,null,"",""]
[null,null,null,"",null,null,null,"",""]
[null,null,null,"",null,null,null,"",""]
[null,null,null,"",null,null,null,"",""]
[null,null,null,"",null,null,null,"",""]
[null,null,null,"",null,null,null,"",""]
[null,null,null,"",null,null,null,"",""]
[null,null,null,"",null,null,null,"",""]
[null,null,null,"",null,null,null,"",""]
[null,null,null,"",null,null,null,"",""]
[null,null,null,"",null,null,null,"",""]
[null,null,null,"",null,null,null,"",""]
[null,null,null,"",null,null,null,"",""]
[null,null,null,"",null,null,null,"",""]
[null,null,null,"",null,null,null,"",""]
[null,null,null,"",null,null,null,"",""]
[null,null,null,"",null,null,null,"",""]
[null,null,null,"",null,null,null,"",""]
[null,null,null,"",null,null,null,"",""]
[null,null,null,"",null,null,null,"",""]
[null,null,null,"",null,null,null,"",""]
[null,null,null,"",null,null,null,"",""]
[null,null,null,"",null,null,null,"",""]
[null,null,null,"",null,null,null,"",""]
[null,null,null,"",null,null,null,"",""]
[null,null,null,"",null,null,null,"",""]
[null,null,null,"",null,null,null,"",""]
[null,null,null,"",null,null,null,"",""]
[null,null,null,"",null,null,null,"",""]
[null,null,null,"",null,null,null,"",""]
[null,null,null,"",null,null,null,"",""]
[null,null,null,"",null,null,null,"",""]
[null,null,null,"",null,null,null,"",""]
[null,null,null,"",null,null,null,"",""]
[null,null,null,"",null,null,null,"",""]
[null,null,null,"",null,null,null,"",""]
[null,null,null,"",null,null,null,"",""]
[null,null,null,"",null,null,null,"",""]
[null,null,null,"",null,null,null,"",""]
[null,null,null,"",null,null,null,"",""]
[null,null,null,"",null,null,null,"",""]
[null,null,null,"",null,null,null,"",""]
[null,null,null,"",null,null,null,"",""]
[null,null,null,"",null,null,null,"",""]
[null,null,null,"",null,null,null,"",""]
[null,null,null,"",null,null,null,"",""]
[null,null,null,"",null,null,null,"",""]
[null,null,null,"",null,null,null,"",""]
[null,null,null,"",null,null,null,"",""]
[null,null,null,"",null,null,null,"",""]
[null,null,null,"",null,null,null,"",""]
[null,null,null,"",null,null,null,"",""]
[null,null,null,"",null,null,null,"",""]
[null,null,null,"",null,null,null,"",""]
[null,null,null,"",null,null,null,"",""]
[null,null,null,"",null,null,null,"",""]
[null,null,null,{"$f":"IF(OR(C195=\"\",E195=\"Finalizado\"),\"\",IF(H195=\"No Prazo\",1,IF(H195=\"Finalizado\",1,-1)))","v":""},null,null,null,{"$f":"IF(C195=\"\",\"\",IF(E195<>\"Finalizado\",IF(C195<TODAY(),\"Em Atraso\",\"No Prazo\"),\"Finalizado\"))","v":""},{"$f":"IF(E195=\"Finalizado\",\"\",IF(C195=\"\",\"\",MONTH(C195)))","v":""}]
[null,null,null,"",null,null,null,"",""]
[null,null,null,"",null,null,null,"",""]
[null,null,null,"",null,null,null,"",""]
[null,null,null,"",null,null,null,"",""]
[null,null,null,"",null,null,null,"",""]
[null,null,null,"",null,null,null,"",""]
[null,null,null,"",null,null,null,"",""]
[null,null,null,"",null,null,null,"",""]
[null,null,null,"",null,null,null,"",""]
[null,null,null,"",null,null,null,"",""]
[null,null,null,"",null,null,null,"",""]
[null,null,null,"",null,null,null,"",""]
[null,null,null,"",null,null,null,"",""]
[null,null,null,"",null,null,null,"",""]
[null,null,null,"",null,null,null,"",""]
[null,null,null,"",null,null,null,"",""]
[null,null,null,"",null,null,null,"",""]
[null,null,null,"",null,null,null,"",""]
[null,null,null,"",null,null,null,"",""]
[null,null,null,"",null,null,null,"",""]
[null,null,null,"",null,null,null,"",""]
[null,null,null,"",null,null,null,"",""]
[null,null,null,"",null,null,null,"",""]
[null,null,null,"",null,null,null,"",""]
[null,null,null,"",null,null,null,"",""]
[null,null,null,"",null,null,null,"",""]
[null,null,null,"",null,null,null,"",""]
[null,null,null,"",null,null,null,"",""]
[null,null,null,"",null,null,null,"",""]
[null,null,null,"",null,null,null,"",""]
[null,null,null,"",null,null,null,"",""]
[null,null,null,"",null,null,null,"",""]
[null,null,null,"",null,null,null,"",""]
[null,null,null,"",null,null,null,"",""]
[null,null,null,"",null,null,null,"",""]
[null,null,null,"",null,null,null,"",""]
[null,null,null,"",null,null,null,"",""]
[null,null,null,"",null,null,null,"",""]
[null,null,null,"",null,null,null,"",""]
[null,null,null,"",null,null,null,"",""]
[null,null,null,"",null,null,null,"",""]
[null,null,null,"",null,null,null,"",""]
[null,null,null,"",null,null,null,"",""]
[null,null,null,"",null,null,null,"",""]
[null,null,null,"",null,null,null,"",""]
[null,null,null,"",null,null,null,"",""]
[null,null,null,"",null,null,null,"",""]
[null,null,null,"",null,null,null,"",""]
[null,null,null,"",null,null,null,"",""]
[null,null,null,"",null,null,null,"",""]
[null,null,null,"",null,null,null,"",""]
[null,null,null,"",null,null,null,"",""]
[null,null,null,"",null,null,null,"",""]
[null,null,null,"",null,null,null,"",""]
[null,null,null,"",null,null,null,"",""]
[null,null,null,"",null,null,null,"",""]
[null,null,null,"",null,null,null,"",""]
[null,null,null,"",null,null,null,"",""]
[null,null,null,"",null,null,null,"",""]
[null,null,null,"",null,null,null,"",""]
[null,null,null,"",null,null,null,"",""]
[null,null,null,"",null,null,null,"",""]
[null,null,null,"",null,null,null,"",""]
[null,null,null,{"$f":"IF(OR(C259=\"\",E259=\"Finalizado\"),\"\",IF(H259=\"No Prazo\",1,IF(H259=\"Finalizado\",1,-1)))","v":""},null,null,null,{"$f":"IF(C259=\"\",\"\",IF(E259<>\"Finalizado\",IF(C259<TODAY(),\"Em Atraso\",\"No Prazo\"),\"Finalizado\"))","v":""},{"$f":"IF(E259=\"Finalizado\",\"\",IF(C259=\"\",\"\",MONTH(C259)))","v":""}]
[null,null,null,"",null,null,null,"",""]
[null,null,null,"",null,null,null,"",""]
[null,null,null,"",null,null,null,"",""]
[null,null,null,"",null,null,null,"",""]
[null,null,null,"",null,null,null,"",""]
[null,null,null,"",null,null,null,"",""]
[null,null,null,"",null,null,null,"",""]
[null,null,null,"",null,null,null,"",""]
[null,null,null,"",null,null,null,"",""]
[null,null,null,"",null,null,null,"",""]
[null,null,null,"",null,null,null,"",""]
[null,null,null,"",null,null,null,"",""]
[null,null,null,"",null,null,null,"",""]
[null,null,null,"",null,null,null,"",""]
[null,null,null,"",null,null,null,"",""]
[null,null,null,"",null,null,null,"",""]
[null,null,null,"",null,null,null,"",""]
[null,null,null,"",null,null,null,"",""]
[null,null,null,"",null,null,null,"",""]
[null,null,null,"",null,null,null,"",""]
[null,null,null,"",null,null,null,"",""]
[null,null,null,"",null,null,null,"",""]
[null,null,null,"",null,null,null,"",""]
[null,null,null,"",null,null,null,"",""]
[null,null,null,"",null,null,null,"",""]
[null,null,null,"",null,null,null,"",""]
[null,null,null,"",null,null,null,"",""]
[null,null,null,"",null,null,null,"",""]
[null,null,null,"",null,null,null,"",""]
[null,null,null,"",null,null,null,"",""]
[null,null,null,"",null,null,null,"",""]
[null,null,null,"",null,null,null,"",""]
[null,null,null,"",null,null,null,"",""]
[null,null,null,"",null,null,null,"",""]
[null,null,null,"",null,null,null,"",""]
[null,null,null,"",null,null,null,"",""]
[null,null,null,"",null,null,null,"",""]
[null,null,null,"",null,null,null,"",""]
[null,null,null,"",null,null,null,"",""]
[null,null,null,"",null,null,null,"",""]
[null,null,null,"",null,null,null,"",""]
[null,null,null,"",null,null,null,"",""]
[null,null,null,"",null,null,null,"",""]
[null,null,null,"",null,null,null,"",""]
[null,null,null,"",null,null,null,"",""]
[null,null,null,"",null,null,null,"",""]
[null,null,null,"",null,null,null,"",""]
[null,null,null,"",null,null,null,"",""]
[null,null,null,"",null,null,null,"",""]
[null,null,null,"",null,null,null,"",""]
[null,null,null,"",null,null,null,"",""]
[null,null,null,"",null,null,null,"",""]
[null,null,null,"",null,null,null,"",""]
[null,null,null,"",null,null,null,"",""]
[null,null,null,"",null,null,null,"",""]
[null,null,null,"",null,null,null,"",""]
[null,null,null,"",null,null,null,"",""]
[null,null,null,"",null,null,null,"",""]
[null,null,null,"",null,null,null,"",""]
[null,null,null,"",null,null,null,"",""]
[null,null,null,"",null,null,null,"",""]
[null,null,null,"",null,null,null,"",""]
[null,null,null,"",null,null,null,"",""]
[null,null,null,{"$f":"IF(OR(C323=\"\",E323=\"Finalizado\"),\"\",IF(H323=\"No Prazo\",1,IF(H323=\"Finalizado\",1,-1)))","v":""},null,null,null,{"$f":"IF(C323=\"\",\"\",IF(E323<>\"Finalizado\",IF(C323<TODAY(),\"Em Atraso\",\"No Prazo\"),\"Finalizado\"))","v":""},{"$f":"IF(E323=\"Finalizado\",\"\",IF(C323=\"\",\"\",MONTH(C323)))","v":""}]
[null,null,null,"",null,null,null,"",""]
[null,null,null,"",null,null,null,"",""]
[null,null,null,"",null,null,null,"",""]
[null,null,null,"",null,null,null,"",""]
[null,null,null,"",null,null,null,"",""]
[null,null,null,"",null,null,null,"",""]
[null,null,null,"",null,null,null,"",""]
[null,null,null,"",null,null,null,"",""]
[null,null,null,"",null,null,null,"",""]
[null,null,null,"",null,null,null,"",""]
[null,null,null,"",null,null,null,"",""]
[null,null,null,"",null,null,null,"",""]
[null,null,null,"",null,null,null,"",""]
[null,null,null,"",null,null,null,"",""]
[null,null,null,"",null,null,null,"",""]
[null,null,null,"",null,null,null,"",""]
[null,null,null,"",null,null,null,"",""]
[null,null,null,"",null,null,null,"",""]
[null,null,null,"",null,null,null,"",""]
[null,null,null,"",null,null,null,"",""]
[null,null,null,"",null,null,null,"",""]
[null,null,null,"",null,null,null,"",""]
[null,null,null,"",null,null,null,"",""]
[null,null,null,"",null,null,null,"",""]
[null,null,null,"",null,null,null,"",""]
[null,null,null,"",null,null,null,"",""]
[null,null,null,"",null,null,null,"",""]
[null,null,null,"",null,null,null,"",""]
[null,null,null,"",null,null,null,"",""]
[null,null,null,"",null,null,null,"",""]
[null,null,null,"",null,null,null,"",""]
[null,null,null,"",null,null,null,"",""]
[null,null,null,"",null,null,null,"",""]
[null,null,null,"",null,null,null,"",""]
[null,null,null,"",null,null,null,"",""]
[null,null,null,"",null,null,null,"",""]
[null,null,null,"",null,null,null,"",""]
[null,null,null,"",null,null,null,"",""]
[null,null,null,"",null,null,null,"",""]
[null,null,null,"",null,null,null,"",""]
[null,null,null,"",null,null,null,"",""]
[null,null,null,"",null,null,null,"",""]
[null,null,null,"",null,null,null,"",""]
[null,null,null,"",null,null,null,"",""]
[null,null,null,"",null,null,null,"",""]
[null,null,null,"",null,null,null,"",""]
[null,null,null,"",null,null,null,"",""]
[null,null,null,"",null,null,null,"",""]
[null,null,null,"",null,null,null,"",""]
[null,null,null,"",null,null,null,"",""]
[null,null,null,"",null,null,null,"",""]
[null,null,null,"",null,null,null,"",""]
[null,null,null,"",null,null,null,"",""]
[null,null,null,"",null,null,null,"",""]
[null,null,null,"",null,null,null,"",""]
[null,null,null,"",null,null,null,"",""]
[null,null,null,"",null,null,null,"",""]
[null,null,null,"",null,null,null,"",""]
[null,null,null,"",null,null,null,"",""]
[null,null,null,"",null,null,null,"",""]
[null,null,null,"",null,null,null,"",""]
[null,null,null,"",null,null,null,"",""]
[null,null,null,"",null,null,null,"",""]
[null,null,null,{"$f":"IF(OR(C387=\"\",E387=\"Finalizado\"),\"\",IF(H387=\"No Prazo\",1,IF(H387=\"Finalizado\",1,-1)))","v":""},null,null,null,{"$f":"IF(C387=\"\",\"\",IF(E387<>\"Finalizado\",IF(C387<TODAY(),\"Em Atraso\",\"No Prazo\"),\"Finalizado\"))","v":""},{"$f":"IF(E387=\"Finalizado\",\"\",IF(C387=\"\",\"\",MONTH(C387)))","v":""}]
[null,null,null,"",null,null,null,"",""]
[null,null,null,"",null,null,null,"",""]
[null,null,null,"",null,null,null,"",""]
[null,null,null,"",null,null,null,"",""]
[null,null,null,"",null,null,null,"",""]
[null,null,null,"",null,null,null,"",""]
[null,null,null,"",null,null,null,"",""]
[null,null,null,"",null,null,null,"",""]
[null,null,null,"",null,null,null,"",""]
[null,null,null,"",null,null,null,"",""]
[null,null,null,"",null,null,null,"",""]
[null,null,null,"",null,null,null,"",""]
[null,null,null,"",null,null,null,"",""]
[null,null,null,"",null,null,null,"",""]
[null,null,null,"",null,null,null,"",""]
[null,null,null,"",null,null,null,"",""]
[null,null,null,"",null,null,null,"",""]
[null,null,null,"",null,null,null,"",""]
[null,null,null,"",null,null,null,"",""]
[null,null,null,"",null,null,null,"",""]
[null,null,null,"",null,null,null,"",""]
[null,null,null,"",null,null,null,"",""]
[null,null,null,"",null,null,null,"",""]
[null,null,null,"",null,null,null,"",""]
[null,null,null,"",null,null,null,"",""]
[null,null,null,"",null,null,null,"",""]
[null,null,null,"",null,null,null,"",""]
[null,null,null,"",null,null,null,"",""]
[null,null,null,"",null,null,null,"",""]
[null,null,null,"",null,null,null,"",""]
[null,null,null,"",null,null,null,"",""]
[null,null,null,"",null,null,null,"",""]
[null,null,null,"",null,null,null,"",""]
[null,null,null,"",null,null,null,"",""]
[null,null,null,"",null,null,null,"",""]
[null,null,null,"",null,null,null,"",""]
[null,null,null,"",null,null,null,"",""]
[null,null,null,"",null,null,null,"",""]
[null,null,null,"",null,null,null,"",""]
[null,null,null,"",null,null,null,"",""]
[null,null,null,"",null,null,null,"",""]
[null,null,null,"",null,null,null,"",""]
[null,null,null,"",null,null,null,"",""]
[null,null,null,"",null,null,null,"",""]
[null,null,null,"",null,null,null,"",""]
[null,null,null,"",null,null,null,"",""]
[null,null,null,"",null,null,null,"",""]
[null,null,null,"",null,null,null,"",""]
[null,null,null,"",null,null,null,"",""]
[null,null,null,"",null,null,null,"",""]
[null,null,null,"",null,null,null,"",""]
[null,null,null,"",null,null,null,"",""]
[null,null,null,"",null,null,null,"",""]
[null,null,null,"",null,null,null,"",""]
[null,null,null,"",null,null,null,"",""]
[null,null,null,"",null,null,null,"",""]
[null,null,null,"",null,null,null,"",""]
[null,null,null,"",null,null,null,"",""]
[null,null,null,"",null,null,null,"",""]
[null,null,null,"",null,null,null,"",""]
[null,null,null,"",null,null,null,"",""]
[null,null,null,"",null,null,null,"",""]
[null,null,null,"",null,null,null,"",""]
[null,null,null,{"$f":"IF(OR(C451=\"\",E451=\"Finalizado\"),\"\",IF(H451=\"No Prazo\",1,IF(H451=\"Finalizado\",1,-1)))","v":""},null,null,null,{"$f":"IF(C451=\"\",\"\",IF(E451<>\"Finalizado\",IF(C451<TODAY(),\"Em Atraso\",\"No Prazo\"),\"Finalizado\"))","v":""},{"$f":"IF(E451=\"Finalizado\",\"\",IF(C451=\"\",\"\",MONTH(C451)))","v":""}]
[null,null,null,"",null,null,null,"",""]
[null,null,null,"",null,null,null,"",""]
[null,null,null,"",null,null,null,"",""]
[null,null,null,"",null,null,null,"",""]
[null,null,null,"",null,null,null,"",""]
[null,null,null,"",null,null,null,"",""]
[null,null,null,"",null,null,null,"",""]
[null,null,null,"",null,null,null,"",""]
[null,null,null,"",null,null,null,"",""]
[null,null,null,"",null,null,null,"",""]
[null,null,null,"",null,null,null,"",""]
[null,null,null,"",null,null,null,"",""]
[null,null,null,"",null,null,null,"",""]
[null,null,null,"",null,null,null,"",""]
[null,null,null,"",null,null,null,"",""]
[null,null,null,"",null,null,null,"",""]
[null,null,null,"",null,null,null,"",""]
[null,null,null,"",null,null,null,"",""]
[null,null,null,"",null,null,null,"",""]
[null,null,null,"",null,null,null,"",""]
[null,null,null,"",null,null,null,"",""]
[null,null,null,"",null,null,null,"",""]
[null,null,null,"",null,null,null,"",""]
[null,null,null,"",null,null,null,"",""]
[null,null,null,"",null,null,null,"",""]
[null,null,null,"",null,null,null,"",""]
[null,null,null,"",null,null,null,"",""]
[null,null,null,"",null,null,null,"",""]
[null,null,null,"",null,null,null,"",""]
[null,null,null,"",null,null,null,"",""]
[null,null,null,"",null,null,null,"",""]
[null,null,null,"",null,null,null,"",""]
[null,null,null,"",null,null,null,"",""]
[null,null,null,"",null,null,null,"",""]
[null,null,null,"",null,null,null,"",""]
[null,null,null,"",null,null,null,"",""]
[null,null,null,"",null,null,null,"",""]
[null,null,null,"",null,null,null,"",""]
[null,null,null,"",null,null,null,"",""]
[null,null,null,"",null,null,null,"",""]
[null,null,null,"",null,null,null,"",""]
[null,null,null,"",null,null,null,"",""]
[null,null,null,"",null,null,null,"",""]
[null,null,null,"",null,null,null,"",""]
[null,null,null,"",null,null,null,"",""]
[null,null,null,"",null,null,null,"",""]
[null,null,null,"",null,null,null,"",""]
[null,null,null,"",null,null,null,"",""]
[null,null,null,"",null,null,null,"",""]
[null,null,null,"",null,null,null,"",""]
[null,null,null,"",null,null,null,"",""]
[null,null,null,"",null,null,null,"",""]
[null,null,null,"",null,null,null,"",""]
[null,null,null,"",null,null,null,"",""]
[null,null,null,"",null,null,null,"",""]
[null,null,null,"",null,null,null,"",""]
[null,null,null,"",null,null,null,"",""]
[null,null,null,"",null,null,null,"",""]
[null,null,null,"",null,null,null,"",""]
[null,null,null,"",null,null,null,"",""]
[null,null,null,"",null,null,null,"",""]
[null,null,null,"",null,null,null,"",""]
[null,null,null,"",null,null,null,"",""]
[null,null,null,{"$f":"IF(OR(C515=\"\",E515=\"Finalizado\"),\"\",IF(H515=\"No Prazo\",1,IF(H515=\"Finalizado\",1,-1)))","v":""},null,null,null,{"$f":"IF(C515=\"\",\"\",IF(E515<>\"Finalizado\",IF(C515<TODAY(),\"Em Atraso\",\"No Prazo\"),\"Finalizado\"))","v":""},{"$f":"IF(E515=\"Finalizado\",\"\",IF(C515=\"\",\"\",MONTH(C515)))","v":""}]
[null,null,null,"",null,null,null,"",""]
[null,null,null,"",null,null,null,"",""]
[null,null,null,"",null,null,null,"",""]
[null,null,null,"",null,null,null,"",""]
[null,null,null,"",null,null,null,"",""]
[null,null,null,"",null,null,null,"",""]
[null,null,null,"",null,null,null,"",""]
[null,null,null,"",null,null,null,"",""]
[null,null,null,"",null,null,null,"",""]
[null,null,null,"",null,null,null,"",""]
[null,null,null,"",null,null,null,"",""]
[null,null,null,"",null,null,null,"",""]
[null,null,null,"",null,null,null,"",""]
[null,null,null,"",null,null,null,"",""]
[null,null,null,"",null,null,null,"",""]
[null,null,null,"",null,null,null,"",""]
[null,null,null,"",null,null,null,"",""]
[null,null,null,"",null,null,null,"",""]
[null,null,null,"",null,null,null,"",""]
[null,null,null,"",null,null,null,"",""]
[null,null,null,"",null,null,null,"",""]
[null,null,null,"",null,null,null,"",""]
[null,null,null,"",null,null,null,"",""]
[null,null,null,"",null,null,null,"",""]
[null,null,null,"",null,null,null,"",""]
[null,null,null,"",null,null,null,"",""]
[null,null,null,"",null,null,null,"",""]
[null,null,null,"",null,null,null,"",""]
[null,null,null,"",null,null,null,"",""]
[null,null,null,"",null,null,null,"",""]
[null,null,null,"",null,null,null,"",""]
[null,null,null,"",null,null,null,"",""]
[null,null,null,"",null,null,null,"",""]
[null,null,null,"",null,null,null,"",""]
[null,null,null,"",null,null,null,"",""]
[null,null,null,"",null,null,null,"",""]
[null,null,null,"",null,null,null,"",""]
[null,null,null,"",null,null,null,"",""]
[null,null,null,"",null,null,null,"",""]
[null,null,null,"",null,null,null,"",""]
[null,null,null,"",null,null,null,"",""]
[null,null,null,"",null,null,null,"",""]
[null,null,null,"",null,null,null,"",""]
[null,null,null,"",null,null,null,"",""]
[null,null,null,"",null,null,null,"",""]
[null,null,null,"",null,null,null,"",""]
[null,null,null,"",null,null,null,"",""]
[null,null,null,"",null,null,null,"",""]
[null,null,null,"",null,null,null,"",""]
[null,null,null,"",null,null,null,"",""]
[null,null,null,"",null,null,null,"",""]
[null,null,null,"",null,null,null,"",""]
[null,null,null,"",null,null,null,"",""]
[null,null,null,"",null,null,null,"",""]
[null,null,null,"",null,null,null,"",""]
[null,null,null,"",null,null,null,"",""]
[null,null,null,"",null,null,null,"",""]
[null,null,null,"",null,null,null,"",""]
[null,null,null,"",null,null,null,"",""]
[null,null,null,"",null,null,null,"",""]
[null,null,null,"",null,null,null,"",""]
[null,null,null,"",null,null,null,"",""]
[null,null,null,"",null,null,null,"",""]
[null,null,null,{"$f":"IF(OR(C579=\"\",E579=\"Finalizado\"),\"\",IF(H579=\"No Prazo\",1,IF(H579=\"Finalizado\",1,-1)))","v":""},null,null,null,{"$f":"IF(C579=\"\",\"\",IF(E579<>\"Finalizado\",IF(C579<TODAY(),\"Em Atraso\",\"No Prazo\"),\"Finalizado\"))","v":""},{"$f":"IF(E579=\"Finalizado\",\"\",IF(C579=\"\",\"\",MONTH(C579)))","v":""}]
[null,null,null,"",null,null,null,"",""]
[null,null,null,"",null,null,null,"",""]
[null,null,null,"",null,null,null,"",""]
[null,null,null,"",null,null,null,"",""]
[null,null,null,"",null,null,null,"",""]
[null,null,null,"",null,null,null,"",""]
[null,null,null,"",null,null,null,"",""]
[null,null,null,"",null,null,null,"",""]
[null,null,null,"",null,null,null,"",""]
[null,null,null,"",null,null,null,"",""]
[null,null,null,"",null,null,null,"",""]
[null,null,null,"",null,null,null,"",""]
[null,null,null,"",null,null,null,"",""]
[null,null,null,"",null,null,null,"",""]
[null,null,null,"",null,null,null,"",""]
[null,null,null,"",null,null,null,"",""]
[null,null,null,"",null,null,null,"",""]
[null,null,null,"",null,null,null,"",""]
[null,null,null,"",null,null,null,"",""]
[null,null,null,"",null,null,null,"",""]
[null,null,null,"",null,null,null,"",""]
[null,null,null,"",null,null,null,"",""]
[null,null,null,"",null,null,null,"",""]
[null,null,null,"",null,null,null,"",""]
[null,null,null,"",null,null,null,"",""]
[null,null,null,"",null,null,null,"",""]
[null,null,null,"",null,null,null,"",""]
[null,null,null,"",null,null,null,"",""]
[null,null,null,"",null,null,null,"",""]
[null,null,null,"",null,null,null,"",""]
[null,null,null,"",null,null,null,"",""]
[null,null,null,"",null,null,null,"",""]
[null,null,null,"",null,null,null,"",""]
[null,null,null,"",null,null,null,"",""]
[null,null,null,"",null,null,null,"",""]
[null,null,null,"",null,null,null,"",""]
[null,null,null,"",null,null,null,"",""]
[null,null,null,"",null,null,null,"",""]
[null,null,null,"",null,null,null,"",""]
[null,null,null,"",null,null,null,"",""]
[null,null,null,"",null,null,null,"",""]
[null,null,null,"",null,null,null,"",""]
[null,null,null,"",null,null,null,"",""]
[null,null,null,"",null,null,null,"",""]
[null,null,null,"",null,null,null,"",""]
[null,null,null,"",null,null,null,"",""]
[null,null,null,"",null,null,null,"",""]
[null,null,null,"",null,null,null,"",""]
[null,null,null,"",null,null,null,"",""]
[null,null,null,"",null,null,null,"",""]
[null,null,null,"",null,null,null,"",""]
[null,null,null,"",null,null,null,"",""]
[null,null,null,"",null,null,null,"",""]
[null,null,null,"",null,null,null,"",""]
[null,null,null,"",null,null,null,"",""]
[null,null,null,"",null,null,null,"",""]
[null,null,null,"",null,null,null,"",""]
[null,null,null,"",null,null,null,"",""]
[null,null,null,"",null,null,null,"",""]
[null,null,null,"",null,null,null,"",""]
[null,null,null,"",null,null,null,"",""]
[null,null,null,"",null,null,null,"",""]
[null,null,null,"",null,null,null,"",""]
[null,null,null,{"$f":"IF(OR(C643=\"\",E643=\"Finalizado\"),\"\",IF(H643=\"No Prazo\",1,IF(H643=\"Finalizado\",1,-1)))","v":""},null,null,null,{"$f":"IF(C643=\"\",\"\",IF(E643<>\"Finalizado\",IF(C643<TODAY(),\"Em Atraso\",\"No Prazo\"),\"Finalizado\"))","v":""},{"$f":"IF(E643=\"Finalizado\",\"\",IF(C643=\"\",\"\",MONTH(C643)))","v":""}]
[null,null,null,"",null,null,null,"",""]
[null,null,null,"",null,null,null,"",""]
[null,null,null,"",null,null,null,"",""]
[null,null,null,"",null,null,null,"",""]
[null,null,null,"",null,null,null,"",""]
[null,null,null,"",null,null,null,"",""]
[null,null,null,"",null,null,null,"",""]
[null,null,null,"",null,null,null,"",""]
[null,null,null,"",null,null,null,"",""]
[null,null,null,"",null,null,null,"",""]
[null,null,null,"",null,null,null,"",""]
[null,null,null,"",null,null,null,"",""]
[null,null,null,"",null,null,null,"",""]
[null,null,null,"",null,null,null,"",""]
[null,null,null,"",null,null,null,"",""]
[null,null,null,"",null,null,null,"",""]
[null,null,null,"",null,null,null,"",""]
[null,null,null,"",null,null,null,"",""]
[null,null,null,"",null,null,null,"",""]
[null,null,null,"",null,null,null,"",""]
[null,null,null,"",null,null,null,"",""]
[null,null,null,"",null,null,null,"",""]
[null,null,null,"",null,null,null,"",""]
[null,null,null,"",null,null,null,"",""]
[null,null,null,"",null,null,null,"",""]
[null,null,null,"",null,null,null,"",""]
[null,null,null,"",null,null,null,"",""]
[null,null,null,"",null,null,null,"",""]
[null,null,null,"",null,null,null,"",""]
[null,null,null,"",null,null,null,"",""]
[null,null,null,"",null,null,null,"",""]
[null,null,null,"",null,null,null,"",""]
[null,null,null,"",null,null,null,"",""]
[null,null,null,"",null,null,null,"",""]
[null,null,null,"",null,null,null,"",""]
[null,null,null,"",null,null,null,"",""]
[null,null,null,"",null,null,null,"",""]
[null,null,null,"",null,null,null,"",""]
[null,null,null,"",null,null,null,"",""]
[null,null,null,"",null,null,null,"",""]
[null,null,null,"",null,null,null,"",""]
[null,null,null,"",null,null,null,"",""]
[null,null,null,"",null,null,null,"",""]
[null,null,null,"",null,null,null,"",""]
[null,null,null,"",null,null,null,"",""]
[null,null,null,"",null,null,null,"",""]
[null,null,null,"",null,null,null,"",""]
[null,null,null,"",null,null,null,"",""]
[null,null,null,"",null,null,null,"",""]
[null,null,null,"",null,null,null,"",""]
[null,null,null,"",null,null,null,"",""]
[null,null,null,"",null,null,null,"",""]
[null,null,null,"",null,null,null,"",""]
[null,null,null,"",null,null,null,"",""]
[null,null,null,"",null,null,null,"",""]
[null,null,null,"",null,null,null,"",""]
[null,null,null,"",null,null,null,"",""]
[null,null,null,"",null,null,null,"",""]
[null,null,null,"",null,null,null,"",""]
[null,null,null,"",null,null,null,"",""]
[null,null,null,"",null,null,null,"",""]
[null,null,null,"",null,null,null,"",""]
[null,null,null,"",null,null,null,"",""]
[null,null,null,{"$f":"IF(OR(C707=\"\",E707=\"Finalizado\"),\"\",IF(H707=\"No Prazo\",1,IF(H707=\"Finalizado\",1,-1)))","v":""},null,null,null,{"$f":"IF(C707=\"\",\"\",IF(E707<>\"Finalizado\",IF(C707<TODAY(),\"Em Atraso\",\"No Prazo\"),\"Finalizado\"))","v":""},{"$f":"IF(E707=\"Finalizado\",\"\",IF(C707=\"\",\"\",MONTH(C707)))","v":""}]
[null,null,null,"",null,null,null,"",""]
[null,null,null,"",null,null,null,"",""]
[null,null,null,"",null,null,null,"",""]
[null,null,null,"",null,null,null,"",""]
[null,null,null,"",null,null,null,"",""]
[null,null,null,"",null,null,null,"",""]
[null,null,null,"",null,null,null,"",""]
[null,null,null,"",null,null,null,"",""]
[null,null,null,"",null,null,null,"",""]
[null,null,null,"",null,null,null,"",""]
[null,null,null,"",null,null,null,"",""]
[null,null,null,"",null,null,null,"",""]
[null,null,null,"",null,null,null,"",""]
[null,null,null,"",null,null,null,"",""]
[null,null,null,"",null,null,null,"",""]
[null,null,null,"",null,null,null,"",""]
[null,null,null,"",null,null,null,"",""]
[null,null,null,"",null,null,null,"",""]
[null,null,null,"",null,null,null,"",""]
[null,null,null,"",null,null,null,"",""]
[null,null,null,"",null,null,null,"",""]
[null,null,null,"",null,null,null,"",""]
[null,null,null,"",null,null,null,"",""]
[null,null,null,"",null,null,null,"",""]
[null,null,null,"",null,null,null,"",""]
[null,null,null,"",null,null,null,"",""]
[null,null,null,"",null,null,null,"",""]
[null,null,null,"",null,null,null,"",""]
[null,null,null,"",null,null,null,"",""]
[null,null,null,"",null,null,null,"",""]
[null,null,null,"",null,null,null,"",""]
[null,null,null,"",null,null,null,"",""]
[null,null,null,"",null,null,null,"",""]
[null,null,null,"",null,null,null,"",""]
[null,null,null,"",null,null,null,"",""]
[null,null,null,"",null,null,null,"",""]
[null,null,null,"",null,null,null,"",""]
[null,null,null,"",null,null,null,"",""]
[null,null,null,"",null,null,null,"",""]
[null,null,null,"",null,null,null,"",""]
[null,null,null,"",null,null,null,"",""]
[null,null,null,"",null,null,null,"",""]
[null,null,null,"",null,null,null,"",""]
[null,null,null,"",null,null,null,"",""]
[null,null,null,"",null,null,null,"",""]
[null,null,null,"",null,null,null,"",""]
[null,null,null,"",null,null,null,"",""]
[null,null,null,"",null,null,null,"",""]
[null,null,null,"",null,null,null,"",""]
[null,null,null,"",null,null,null,"",""]
[null,null,null,"",null,null,null,"",""]
[null,null,null,"",null,null,null,"",""]
[null,null,null,"",null,null,null,"",""]
[null,null,null,"",null,null,null,"",""]
[null,null,null,"",null,null,null,"",""]
[null,null,null,"",null,null,null,"",""]
[null,null,null,"",null,null,null,"",""]
[null,null,null,"",null,null,null,"",""]
[null,null,null,"",null,null,null,"",""]
[null,null,null,"",null,null,null,"",""]
[null,null,null,"",null,null,null,"",""]
[null,null,null,"",null,null,null,"",""]
[null,null,null,"",null,null,null,"",""]
[null,null,null,{"$f":"IF(OR(C771=\"\",E771=\"Finalizado\"),\"\",IF(H771=\"No Prazo\",1,IF(H771=\"Finalizado\",1,-1)))","v":""},null,null,null,{"$f":"IF(C771=\"\",\"\",IF(E771<>\"Finalizado\",IF(C771<TODAY(),\"Em Atraso\",\"No Prazo\"),\"Finalizado\"))","v":""},{"$f":"IF(E771=\"Finalizado\",\"\",IF(C771=\"\",\"\",MONTH(C771)))","v":""}]
[null,null,null,"",null,null,null,"",""]
[null,null,null,"",null,null,null,"",""]
[null,null,null,"",null,null,null,"",""]
[null,null,null,"",null,null,null,"",""]
[null,null,null,"",null,null,null,"",""]
[null,null,null,"",null,null,null,"",""]
[null,null,null,"",null,null,null,"",""]
[null,null,null,"",null,null,null,"",""]
[null,null,null,"",null,null,null,"",""]
[null,null,null,"",null,null,null,"",""]
[null,null,null,"",null,null,null,"",""]
[null,null,null,"",null,null,null,"",""]
[null,null,null,"",null,null,null,"",""]
[null,null,null,"",null,null,null,"",""]
[null,null,null,"",null,null,null,"",""]
[null,null,null,"",null,null,null,"",""]
[null,null,null,"",null,null,null,"",""]
[null,null,null,"",null,null,null,"",""]
[null,null,null,"",null,null,null,"",""]
[null,null,null,"",null,null,null,"",""]
[null,null,null,"",null,null,null,"",""]
[null,null,null,"",null,null,null,"",""]
[null,null,null,"",null,null,null,"",""]
[null,null,null,"",null,null,null,"",""]
[null,null,null,"",null,null,null,"",""]
[null,null,null,"",null,null,null,"",""]
[null,null,null,"",null,null,null,"",""]
[null,null,null,"",null,null,null,"",""]
[null,null,null,"",null,null,null,"",""]
[null,null,null,"",null,null,null,"",""]
[null,null,null,"",null,null,null,"",""]
[null,null,null,"",null,null,null,"",""]
[null,null,null,"",null,null,null,"",""]
[null,null,null,"",null,null,null,"",""]
[null,null,null,"",null,null,null,"",""]
[null,null,null,"",null,null,null,"",""]
[null,null,null,"",null,null,null,"",""]
[null,null,null,"",null,null,null,"",""]
[null,null,null,"",null,null,null,"",""]
[null,null,null,"",null,null,null,"",""]
[null,null,null,"",null,null,null,"",""]
[null,null,null,"",null,null,null,"",""]
[null,null,null,"",null,null,null,"",""]
[null,null,null,"",null,null,null,"",""]
[null,null,null,"",null,null,null,"",""]
[null,null,null,"",null,null,null,"",""]
[null,null,null,"",null,null,null,"",""]
[null,null,null,"",null,null,null,"",""]
[null,null,null,"",null,null,null,"",""]
[null,null,null,"",null,null,null,"",""]
[null,null,null,"",null,null,null,"",""]
[null,null,null,"",null,null,null,"",""]
[null,null,null,"",null,null,null,"",""]
[null,null,null,"",null,null,null,"",""]
[null,null,null,"",null,null,null,"",""]
[null,null,null,"",null,null,null,"",""]
[null,null,null,"",null,null,null,"",""]
[null,null,null,"",null,null,null,"",""]
[null,null,null,"",null,null,null,"",""]
[null,null,null,"",null,null,null,"",""]
[null,null,null,"",null,null,null,"",""]
[null,null,null,"",null,null,null,"",""]
[null,null,null,"",null,null,null,"",""]
[null,null,null,{"$f":"IF(OR(C835=\"\",E835=\"Finalizado\"),\"\",IF(H835=\"No Prazo\",1,IF(H835=\"Finalizado\",1,-1)))","v":""},null,null,null,{"$f":"IF(C835=\"\",\"\",IF(E835<>\"Finalizado\",IF(C835<TODAY(),\"Em Atraso\",\"No Prazo\"),\"Finalizado\"))","v":""},{"$f":"IF(E835=\"Finalizado\",\"\",IF(C835=\"\",\"\",MONTH(C835)))","v":""}]
[null,null,null,"",null,null,null,"",""]
[null,null,null,"",null,null,null,"",""]
[null,null,null,"",null,null,null,"",""]
[null,null,null,"",null,null,null,"",""]
[null,null,null,"",null,null,null,"",""]
[null,null,null,"",null,null,null,"",""]
[null,null,null,"",null,null,null,"",""]
[null,null,null,"",null,null,null,"",""]
[null,null,null,"",null,null,null,"",""]
[null,null,null,"",null,null,null,"",""]
[null,null,null,"",null,null,null,"",""]
[null,null,null,"",null,null,null,"",""]
[null,null,null,"",null,null,null,"",""]
[null,null,null,"",null,null,null,"",""]
[null,null,null,"",null,null,null,"",""]
[null,null,null,"",null,null,null,"",""]
[null,null,null,"",null,null,null,"",""]
[null,null,null,"",null,null,null,"",""]
[null,null,null,"",null,null,null,"",""]
[null,null,null,"",null,null,null,"",""]
[null,null,null,"",null,null,null,"",""]
[null,null,null,"",null,null,null,"",""]
[null,null,null,"",null,null,null,"",""]
[null,null,null,"",null,null,null,"",""]
[null,null,null,"",null,null,null,"",""]
[null,null,null,"",null,null,null,"",""]
[null,null,null,"",null,null,null,"",""]
[null,null,null,"",null,null,null,"",""]
[null,null,null,"",null,null,null,"",""]
[null,null,null,"",null,null,null,"",""]
[null,null,null,"",null,null,null,"",""]
[null,null,null,"",null,null,null,"",""]
[null,null,null,"",null,null,null,"",""]
[null,null,null,"",null,null,null,"",""]
[null,null,null,"",null,null,null,"",""]
[null,null,null,"",null,null,null,"",""]
[null,null,null,"",null,null,null,"",""]
[null,null,null,"",null,null,null,"",""]
[null,null,null,"",null,null,null,"",""]
[null,null,null,"",null,null,null,"",""]
[null,null,null,"",null,null,null,"",""]
[null,null,null,"",null,null,null,"",""]
[null,null,null,"",null,null,null,"",""]
[null,null,null,"",null,null,null,"",""]
[null,null,null,"",null,null,null,"",""]
[null,null,null,"",null,null,null,"",""]
[null,null,null,"",null,null,null,"",""]
[null,null,null,"",null,null,null,"",""]
[null,null,null,"",null,null,null,"",""]
[null,null,null,"",null,null,null,"",""]
[null,null,null,"",null,null,null,"",""]
[null,null,null,"",null,null,null,"",""]
[null,null,null,"",null,null,null,"",""]
[null,null,null,"",null,null,null,"",""]
[null,null,null,"",null,null,null,"",""]
[null,null,null,"",null,null,null,"",""]
[null,null,null,"",null,null,null,"",""]
[null,null,null,"",null,null,null,"",""]
[null,null,null,"",null,null,null,"",""]
[null,null,null,"",null,null,null,"",""]
[null,null,null,"",null,null,null,"",""]
[null,null,null,"",null,null,null,"",""]
[null,null,null,"",null,null,null,"",""]
[null,null,null,{"$f":"IF(OR(C899=\"\",E899=\"Finalizado\"),\"\",IF(H899=\"No Prazo\",1,IF(H899=\"Finalizado\",1,-1)))","v":""},null,null,null,{"$f":"IF(C899=\"\",\"\",IF(E899<>\"Finalizado\",IF(C899<TODAY(),\"Em Atraso\",\"No Prazo\"),\"Finalizado\"))","v":""},{"$f":"IF(E899=\"Finalizado\",\"\",IF(C899=\"\",\"\",MONTH(C899)))","v":""}]
[null,null,null,"",null,null,null,"",""]
[null,null,null,"",null,null,null,"",""]
[null,null,null,"",null,null,null,"",""]
[null,null,null,"",null,null,null,"",""]
[null,null,null,"",null,null,null,"",""]
[null,null,null,"",null,null,null,"",""]
[null,null,null,"",null,null,null,"",""]
[null,null,null,"",null,null,null,"",""]
[null,null,null,"",null,null,null,"",""]
[null,null,null,"",null,null,null,"",""]
[null,null,null,"",null,null,null,"",""]
[null,null,null,"",null,null,null,"",""]
[null,null,null,"",null,null,null,"",""]
[null,null,null,"",null,null,null,"",""]
[null,null,null,"",null,null,null,"",""]
[null,null,null,"",null,null,null,"",""]
[null,null,null,"",null,null,null,"",""]
[null,null,null,"",null,null,null,"",""]
[null,null,null,"",null,null,null,"",""]
[null,null,null,"",null,null,null,"",""]
[null,null,null,"",null,null,null,"",""]
[null,null,null,"",null,null,null,"",""]
[null,null,null,"",null,null,null,"",""]
[null,null,null,"",null,null,null,"",""]
[null,null,null,"",null,null,null,"",""]
[null,null,null,"",null,null,null,"",""]
[null,null,null,"",null,null,null,"",""]
[null,null,null,"",null,null,null,"",""]
[null,null,null,"",null,null,null,"",""]
[null,null,null,"",null,null,null,"",""]
[null,null,null,"",null,null,null,"",""]
[null,null,null,"",null,null,null,"",""]
[null,null,null,"",null,null,null,"",""]
[null,null,null,"",null,null,null,"",""]
[null,null,null,"",null,null,null,"",""]
[null,null,null,"",null,null,null,"",""]
[null,null,null,"",null,null,null,"",""]
[null,null,null,"",null,null,null,"",""]
[null,null,null,"",null,null,null,"",""]
[null,null,null,"",null,null,null,"",""]
[null,null,null,"",null,null,null,"",""]
[null,null,null,"",null,null,null,"",""]
[null,null,null,"",null,null,null,"",""]
[null,null,null,"",null,null,null,"",""]
[null,null,null,"",null,null,null,"",""]
[null,null,null,"",null,null,null,"",""]
[null,null,null,"",null,null,null,"",""]
[null,null,null,"",null,null,null,"",""]
[null,null,null,"",null,null,null,"",""]
[null,null,null,"",null,null,null,"",""]
[null,null,null,"",null,null,null,"",""]
[null,null,null,"",null,null,null,"",""]
[null,null,null,"",null,null,null,"",""]
[null,null,null,"",null,null,null,"",""]
[null,null,null,"",null,null,null,"",""]
[null,null,null,"",null,null,null,"",""]
[null,null,null,"",null,null,null,"",""]
[null,null,null,"",null,null,null,"",""]
[null,null,null,"",null,null,null,"",""]
[null,null,null,"",null,null,null,"",""]
[null,null,null,"",null,null,null,"",""]
[null,null,null,"",null,null,null,"",""]
[null,null,null,"",null,null,null,"",""]
[null,null,null,{"$f":"IF(OR(C963=\"\",E963=\"Finalizado\"),\"\",IF(H963=\"No Prazo\",1,IF(H963=\"Finalizado\",1,-1)))","v":""},null,null,null,{"$f":"IF(C963=\"\",\"\",IF(E963<>\"Finalizado\",IF(C963<TODAY(),\"Em Atraso\",\"No Prazo\"),\"Finalizado\"))","v":""},{"$f":"IF(E963=\"Finalizado\",\"\",IF(C963=\"\",\"\",MONTH(C963)))","v":""}]
[null,null,null,"",null,null,null,"",""]
[null,null,null,"",null,null,null,"",""]
[null,null,null,"",null,null,null,"",""]
[null,null,null,"",null,null,null,"",""]
[null,null,null,"",null,null,null,"",""]
[null,null,null,"",null,null,null,"",""]
[null,null,null,"",null,null,null,"",""]
[null,null,null,"",null,null,null,"",""]
[null,null,null,"",null,null,null,"",""]
[null,null,null,"",null,null,null,"",""]
[null,null,null,"",null,null,null,"",""]
[null,null,null,"",null,null,null,"",""]
[null,null,null,"",null,null,null,"",""]
[null,null,null,"",null,null,null,"",""]
[null,null,null,"",null,null,null,"",""]
[null,null,null,"",null,null,null,"",""]
[null,null,null,"",null,null,null,"",""]
[null,null,null,"",null,null,null,"",""]
[null,null,null,"",null,null,null,"",""]
[null,null,null,"",null,null,null,"",""]
[null,null,null,"",null,null,null,"",""]
[null,null,null,"",null,null,null,"",""]
[null,null,null,"",null,null,null,"",""]
[null,null,null,"",null,null,null,"",""]
[null,null,null,"",null,null,null,"",""]
[null,null,null,"",null,null,null,"",""]
[null,null,null,"",null,null,null,"",""]
[null,null,null,"",null,null,null,"",""]
[null,null,null,"",null,null,null,"",""]
[null,null,null,"",null,null,null,"",""]
[null,null,null,"",null,null,null,"",""]
[null,null,null,"",null,null,null,"",""]
[null,null,null,"",null,null,null,"",""]
[null,null,null,"",null,null,null,"",""]
[null,null,null,"",null,null,null,"",""]
[null,null,null,"",null,null,null,"",""]
[null,null,null,"",null,null,null,"",""]
[null,null,null,"",null,null,null,"",""]
[null,null,null,"",null,null,null,"",""]
[null,null,null,"",null,null,null,"",""]
[null,null,null,"",null,null,null,"",""]
[null,null,null,"",null,null,null,"",""]
[null,null,null,"",null,null,null,"",""]
[null,null,null,"",null,null,null,"",""]
[null,null,null,"",null,null,null,"",""]
[null,null,null,"",null,null,null,"",""]
[null,null,null,"",null,null,null,"",""]
[null,null,null,"",null,null,null,"",""]
[null,null,null,"",null,null,null,"",""]
[null,null,null,"",null,null,null,"",""]
[null,null,null,"",null,null,null,"",""]
[null,null,null,"",null,null,null,"",""]
[null,null,null,"",null,null,null,"",""]
[null,null,null,"",null,null,null,"",""]
[null,null,null,"",null,null,null,"",""]
[null,null,null,"",null,null,null,"",""]
[null,null,null,"",null,null,null,"",""]
[null,null,null,"",null,null,null,"",""]
[null,null,null,"",null,null,null,"",""]
[null,null,null,"",null,null,null,"",""]
[null,null,null,"",null,null,null,"",""]
[null,null,null,"",null,null,null,"",""]
[null,null,null,"",null,null,null,"",""]
[null,null,null,{"$f":"IF(OR(C1027=\"\",E1027=\"Finalizado\"),\"\",IF(H1027=\"No Prazo\",1,IF(H1027=\"Finalizado\",1,-1)))","v":""},null,null,null,{"$f":"IF(C1027=\"\",\"\",IF(E1027<>\"Finalizado\",IF(C1027<TODAY(),\"Em Atraso\",\"No Prazo\"),\"Finalizado\"))","v":""},{"$f":"IF(E1027=\"Finalizado\",\"\",IF(C1027=\"\",\"\",MONTH(C1027)))","v":""}]
[null,null,null,"",null,null,null,"",""]
[null,null,null,"",null,null,null,"",""]
[null,null,null,"",null,null,null,"",""]
[null,null,null,"",null,null,null,"",""]
[null,null,null,"",null,null,null,"",""]
[null,null,null,"",null,null,null,"",""]
[null,null,null,"",null,null,null,"",""]
[null,null,null,"",null,null,null,"",""]
[null,null,null,"",null,null,null,"",""]
[null,null,null,"",null,null,null,"",""]
[null,null,null,"",null,null,null,"",""]
[null,null,null,"",null,null,null,"",""]
[null,null,null,"",null,null,null,"",""]
[null,null,null,"",null,null,null,"",""]
[null,null,null,"",null,null,null,"",""]
[null,null,null,"",null,null,null,"",""]
[null,null,null,"",null,null,null,"",""]
[null,null,null,"",null,null,null,"",""]
[null,null,null,"",null,null,null,"",""]
[null,null,null,"",null,null,null,"",""]
[null,null,null,"",null,null,null,"",""]
[null,null,null,"",null,null,null,"",""]
[null,null,null,"",null,null,null,"",""]
[null,null,null,"",null,null,null,"",""]
[null,null,null,"",null,null,null,"",""]
[null,null,null,"",null,null,null,"",""]
[null,null,null,"",null,null,null,"",""]
[null,null,null,"",null,null,null,"",""]
[null,null,null,"",null,null,null,"",""]
[null,null,null,"",null,null,null,"",""]
[null,null,null,"",null,null,null,"",""]
[null,null,null,"",null,null,null,"",""]
[null,null,null,"",null,null,null,"",""]
[null,null,null,"",null,null,null,"",""]
[null,null,null,"",null,null,null,"",""]
[null,null,null,"",null,null,null,"",""]
[null,null,null,"",null,null,null,"",""]
[null,null,null,"",null,null,null,"",""]
[null,null,null,"",null,null,null,"",""]
[null,null,null,"",null,null,null,"",""]
[null,null,null,"",null,null,null,"",""]
[null,null,null,"",null,null,null,"",""]
[null,null,null,"",null,null,null,"",""]
[null,null,null,"",null,null,null,"",""]
[null,null,null,"",null,null,null,"",""]
[null,null,null,"",null,null,null,"",""]
[null,null,null,"",null,null,null,"",""]
[null,null,null,"",null,null,null,"",""]
[null,null,null,"",null,null,null,"",""]
[null,null,null,"",null,null,null,"",""]
[null,null,null,"",null,null,null,"",""]
[null,null,null,"",null,null,null,"",""]
[null,null,null,"",null,null,null,"",""]
[null,null,null,"",null,null,null,"",""]
[null,null,null,"",null,null,null,"",""]
[null,null,null,"",null,null,null,"",""]
[null,null,null,"",null,null,null,"",""]
[null,null,null,"",null,null,null,"",""]
[null,null,null,"",null,null,null,"",""]
[null,null,null,"",null,null,null,"",""]
[null,null,null,"",null,null,null,"",""]
[null,null,null,"",null,null,null,"",""]
[null,null,null,"",null,null,null,"",""]
[null,null,null,{"$f":"IF(OR(C1091=\"\",E1091=\"Finalizado\"),\"\",IF(H1091=\"No Prazo\",1,IF(H1091=\"Finalizado\",1,-1)))","v":""},null,null,null,{"$f":"IF(C1091=\"\",\"\",IF(E1091<>\"Finalizado\",IF(C1091<TODAY(),\"Em Atraso\",\"No Prazo\"),\"Finalizado\"))","v":""},{"$f":"IF(E1091=\"Finalizado\",\"\",IF(C1091=\"\",\"\",MONTH(C1091)))","v":""}]
[null,null,null,"",null,null,null,"",""]
[null,null,null,"",null,null,null,"",""]
[null,null,null,"",null,null,null,"",""]
[null,null,null,"",null,null,null,"",""]
[null,null,null,"",null,null,null,"",""]
[null,null,null,"",null,null,null,"",""]
[null,null,null,"",null,null,null,"",""]
[null,null,null,"",null,null,null,"",""]
[null,null,null,"",null,null,null,"",""]
[null,null,null,"",null,null,null,"",""]
[null,null,null,"",null,null,null,"",""]
[null,null,null,"",null,null,null,"",""]
[null,null,null,"",null,null,null,"",""]
[null,null,null,"",null,null,null,"",""]
[null,null,null,"",null,null,null,"",""]
[null,null,null,"",null,null,null,"",""]
[null,null,null,"",null,null,null,"",""]
[null,null,null,"",null,null,null,"",""]
[null,null,null,"",null,null,null,"",""]
[null,null,null,"",null,null,null,"",""]
[null,null,null,"",null,null,null,"",""]
[null,null,null,"",null,null,null,"",""]
[null,null,null,"",null,null,null,"",""]
[null,null,null,"",null,null,null,"",""]
[null,null,null,"",null,null,null,"",""]
[null,null,null,"",null,null,null,"",""]
[null,null,null,"",null,null,null,"",""]
[null,null,null,"",null,null,null,"",""]
[null,null,null,"",null,null,null,"",""]
[null,null,null,"",null,null,null,"",""]
[null,null,null,"",null,null,null,"",""]
[null,null,null,"",null,null,null,"",""]
[null,null,null,"",null,null,null,"",""]
[null,null,null,"",null,null,null,"",""]
[null,null,null,"",null,null,null,"",""]
[null,null,null,"",null,null,null,"",""]
[null,null,null,"",null,null,null,"",""]
[null,null,null,"",null,null,null,"",""]
[null,null,null,"",null,null,null,"",""]
[null,null,null,"",null,null,null,"",""]
[null,null,null,"",null,null,null,"",""]
[null,null,null,"",null,null,null,"",""]
[null,null,null,"",null,null,null,"",""]
[null,null,null,"",null,null,null,"",""]
[null,null,null,"",null,null,null,"",""]
[null,null,null,"",null,null,null,"",""]
[null,null,null,"",null,null,null,"",""]
[null,null,null,"",null,null,null,"",""]
[null,null,null,"",null,null,null,"",""]
[null,null,null,"",null,null,null,"",""]
[null,null,null,"",null,null,null,"",""]
[null,null,null,"",null,null,null,"",""]
[null,null,null,"",null,null,null,"",""]
[null,null,null,"",null,null,null,"",""]
[null,null,null,"",null,null,null,"",""]
[null,null,null,"",null,null,null,"",""]
[null,null,null,"",null,null,null,"",""]
[null,null,null,"",null,null,null,"",""]
[null,null,null,"",null,null,null,"",""]
[null,null,null,"",null,null,null,"",""]
[null,null,null,"",null,null,null,"",""]
[null,null,null,"",null,null,null,"",""]
[null,null,null,"",null,null,null,"",""]
[null,null,null,{"$f":"IF(OR(C1155=\"\",E1155=\"Finalizado\"),\"\",IF(H1155=\"No Prazo\",1,IF(H1155=\"Finalizado\",1,-1)))","v":""},null,null,null,{"$f":"IF(C1155=\"\",\"\",IF(E1155<>\"Finalizado\",IF(C1155<TODAY(),\"Em Atraso\",\"No Prazo\"),\"Finalizado\"))","v":""},{"$f":"IF(E1155=\"Finalizado\",\"\",IF(C1155=\"\",\"\",MONTH(C1155)))","v":""}]
[null,null,null,"",null,null,null,"",""]
[null,null,null,"",null,null,null,"",""]
[null,null,null,"",null,null,null,"",""]
[null,null,null,"",null,null,null,"",""]
[null,null,null,"",null,null,null,"",""]
[null,null,null,"",null,null,null,"",""]
[null,null,null,"",null,null,null,"",""]
[null,null,null,"",null,null,null,"",""]
[null,null,null,"",null,null,null,"",""]
[null,null,null,"",null,null,null,"",""]
[null,null,null,"",null,null,null,"",""]
[null,null,null,"",null,null,null,"",""]
[null,null,null,"",null,null,null,"",""]
[null,null,null,"",null,null,null,"",""]
[null,null,null,"",null,null,null,"",""]
[null,null,null,"",null,null,null,"",""]
[null,null,null,"",null,null,null,"",""]
[null,null,null,"",null,null,null,"",""]
[null,null,null,"",null,null,null,"",""]
[null,null,null,"",null,null,null,"",""]
[null,null,null,"",null,null,null,"",""]
[null,null,null,"",null,null,null,"",""]
[null,null,null,"",null,null,null,"",""]
[null,null,null,"",null,null,null,"",""]
[null,null,null,"",null,null,null,"",""]
[null,null,null,"",null,null,null,"",""]
[null,null,null,"",null,null,null,"",""]
[null,null,null,"",null,null,null,"",""]
[null,null,null,"",null,null,null,"",""]
[null,null,null,"",null,null,null,"",""]
[null,null,null,"",null,null,null,"",""]
[null,null,null,"",null,null,null,"",""]
[null,null,null,"",null,null,null,"",""]
[null,null,null,"",null,null,null,"",""]
[null,null,null,"",null,null,null,"",""]
[null,null,null,"",null,null,null,"",""]
[null,null,null,"",null,null,null,"",""]
[null,null,null,"",null,null,null,"",""]
[null,null,null,"",null,null,null,"",""]
[null,null,null,"",null,null,null,"",""]
[null,null,null,"",null,null,null,"",""]
[null,null,null,"",null,null,null,"",""]
[null,null,null,"",null,null,null,"",""]
[null,null,null,"",null,null,null,"",""]
[null,null,null,"",null,null,null,"",""]
[null,null,null,"",null,null,null,"",""]
[null,null,null,"",null,null,null,"",""]
[null,null,null,"",null,null,null,"",""]
[null,null,null,"",null,null,null,"",""]
[null,null,null,"",null,null,null,"",""]
[null,null,null,"",null,null,null,"",""]
[null,null,null,"",null,null,null,"",""]
[null,null,null,"",null,null,null,"",""]
[null,null,null,"",null,null,null,"",""]
[null,null,null,"",null,null,null,"",""]
[null,null,null,"",null,null,null,"",""]
[null,null,null,"",null,null,null,"",""]
[null,null,null,"",null,null,null,"",""]
[null,null,null,"",null,null,null,"",""]
[null,null,null,"",null,null,null,"",""]
[null,null,null,"",null,null,null,"",""]
[null,null,null,"",null,null,null,"",""]
[null,null,null,"",null,null,null,"",""]
[null,null,null,{"$f":"IF(OR(C1219=\"\",E1219=\"Finalizado\"),\"\",IF(H1219=\"No Prazo\",1,IF(H1219=\"Finalizado\",1,-1)))","v":""},null,null,null,{"$f":"IF(C1219=\"\",\"\",IF(E1219<>\"Finalizado\",IF(C1219<TODAY(),\"Em Atraso\",\"No Prazo\"),\"Finalizado\"))","v":""},{"$f":"IF(E1219=\"Finalizado\",\"\",IF(C1219=\"\",\"\",MONTH(C1219)))","v":""}]
[null,null,null,"",null,null,null,"",""]
[null,null,null,"",null,null,null,"",""]
[null,null,null,"",null,null,null,"",""]
[null,null,null,"",null,null,null,"",""]
[null,null,null,"",null,null,null,"",""]
[null,null,null,"",null,null,null,"",""]
[null,null,null,"",null,null,null,"",""]
[null,null,null,"",null,null,null,"",""]
[null,null,null,"",null,null,null,"",""]
[null,null,null,"",null,null,null,"",""]
[null,null,null,"",null,null,null,"",""]
[null,null,null,"",null,null,null,"",""]
[null,null,null,"",null,null,null,"",""]
[null,null,null,"",null,null,null,"",""]
[null,null,null,"",null,null,null,"",""]
[null,null,null,"",null,null,null,"",""]
[null,null,null,"",null,null,null,"",""]
[null,null,null,"",null,null,null,"",""]
[null,null,null,"",null,null,null,"",""]
[null,null,null,"",null,null,null,"",""]
[null,null,null,"",null,null,null,"",""]
[null,null,null,"",null,null,null,"",""]
[null,null,null,"",null,null,null,"",""]
[null,null,null,"",null,null,null,"",""]
[null,null,null,"",null,null,null,"",""]
[null,null,null,"",null,null,null,"",""]
[null,null,null,"",null,null,null,"",""]
[null,null,null,"",null,null,null,"",""]
[null,null,null,"",null,null,null,"",""]
[null,null,null,"",null,null,null,"",""]
[null,null,null,"",null,null,null,"",""]
[null,null,null,"",null,null,null,"",""]
[null,null,null,"",null,null,null,"",""]
[null,null,null,"",null,null,null,"",""]
[null,null,null,"",null,null,null,"",""]
[null,null,null,"",null,null,null,"",""]
[null,null,null,"",null,null,null,"",""]
[null,null,null,"",null,null,null,"",""]
[null,null,null,"",null,null,null,"",""]
[null,null,null,"",null,null,null,"",""]
[null,null,null,"",null,null,null,"",""]
[null,null,null,"",null,null,null,"",""]
[null,null,null,"",null,null,null,"",""]
[null,null,null,"",null,null,null,"",""]
[null,null,null,"",null,null,null,"",""]
[null,null,null,"",null,null,null,"",""]
[null,null,null,"",null,null,null,"",""]
[null,null,null,"",null,null,null,"",""]
[null,null,null,"",null,null,null,"",""]
[null,null,null,"",null,null,null,"",""]
[null,null,null,"",null,null,null,"",""]
[null,null,null,"",null,null,null,"",""]
[null,null,null,"",null,null,null,"",""]
[null,null,null,"",null,null,null,"",""]
[null,null,null,"",null,null,null,"",""]
[null,null,null,"",null,null,null,"",""]
[null,null,null,"",null,null,null,"",""]
[null,null,null,"",null,null,null,"",""]
[null,null,null,"",null,null,null,"",""]
[null,null,null,"",null,null,null,"",""]
[null,null,null,"",null,null,null,"",""]
[null,null,null,"",null,null,null,"",""]
[null,null,null,"",null,null,null,"",""]
[null,null,null,{"$f":"IF(OR(C1283=\"\",E1283=\"Finalizado\"),\"\",IF(H1283=\"No Prazo\",1,IF(H1283=\"Finalizado\",1,-1)))","v":""},null,null,null,{"$f":"IF(C1283=\"\",\"\",IF(E1283<>\"Finalizado\",IF(C1283<TODAY(),\"Em Atraso\",\"No Prazo\"),\"Finalizado\"))","v":""},{"$f":"IF(E1283=\"Finalizado\",\"\",IF(C1283=\"\",\"\",MONTH(C1283)))","v":""}]
[null,null,null,"",null,null,null,"",""]
[null,null,null,"",null,null,null,"",""]
[null,null,null,"",null,null,null,"",""]
[null,null,null,"",null,null,null,"",""]
[null,null,null,"",null,null,null,"",""]
[null,null,null,"",null,null,null,"",""]
[null,null,null,"",null,null,null,"",""]
[null,null,null,"",null,null,null,"",""]
[null,null,null,"",null,null,null,"",""]
[null,null,null,"",null,null,null,"",""]
[null,null,null,"",null,null,null,"",""]
[null,null,null,"",null,null,null,"",""]
[null,null,null,"",null,null,null,"",""]
[null,null,null,"",null,null,null,"",""]
[null,null,null,"",null,null,null,"",""]
[null,null,null,"",null,null,null,"",""]
[null,null,null,"",null,null,null,"",""]
[null,null,null,"",null,null,null,"",""]
[null,null,null,"",null,null,null,"",""]
[null,null,null,"",null,null,null,"",""]
[null,null,null,"",null,null,null,"",""]
[null,null,null,"",null,null,null,"",""]
[null,null,null,"",null,null,null,"",""]
[null,null,null,"",null,null,null,"",""]
[null,null,null,"",null,null,null,"",""]
[null,null,null,"",null,null,null,"",""]
[null,null,null,"",null,null,null,"",""]
[null,null,null,"",null,null,null,"",""]
[null,null,null,"",null,null,null,"",""]
[null,null,null,"",null,null,null,"",""]
[null,null,null,"",null,null,null,"",""]
[null,null,null,"",null,null,null,"",""]
[null,null,null,"",null,null,null,"",""]
[null,null,null,"",null,null,null,"",""]
[null,null,null,"",null,null,null,"",""]
[null,null,null,"",null,null,null,"",""]
[null,null,null,"",null,null,null,"",""]
[null,null,null,"",null,null,null,"",""]
[null,null,null,"",null,null,null,"",""]
[null,null,null,"",null,null,null,"",""]
[null,null,null,"",null,null,null,"",""]
[null,null,null,"",null,null,null,"",""]
[null,null,null,"",null,null,null,"",""]
[null,null,null,"",null,null,null,"",""]
[null,null,null,"",null,null,null,"",""]
[null,null,null,"",null,null,null,"",""]
[null,null,null,"",null,null,null,"",""]
[null,null,null,"",null,null,null,"",""]
[null,null,null,"",null,null,null,"",""]
[null,null,null,"",null,null,null,"",""]
[null,null,null,"",null,null,null,"",""]
[null,null,null,"",null,null,null,"",""]
[null,null,null,"",null,null,null,"",""]
[null,null,null,"",null,null,null,"",""]
[null,null,null,"",null,null,null,"",""]
[null,null,null,"",null,null,null,"",""]
[null,null,null,"",null,null,null,"",""]
[null,null,null,"",null,null,null,"",""]
[null,null,null,"",null,null,null,"",""]
[null,null,null,"",null,null,null,"",""]
[null,null,null,"",null,null,null,"",""]
[null,null,null,"",null,null,null,"",""]
[null,null,null,"",null,null,null,"",""]
[null,null,null,{"$f":"IF(OR(C1347=\"\",E1347=\"Finalizado\"),\"\",IF(H1347=\"No Prazo\",1,IF(H1347=\"Finalizado\",1,-1)))","v":""},null,null,null,{"$f":"IF(C1347=\"\",\"\",IF(E1347<>\"Finalizado\",IF(C1347<TODAY(),\"Em Atraso\",\"No Prazo\"),\"Finalizado\"))","v":""},{"$f":"IF(E1347=\"Finalizado\",\"\",IF(C1347=\"\",\"\",MONTH(C1347)))","v":""}]
[null,null,null,"",null,null,null,"",""]
[null,null,null,"",null,null,null,"",""]
[null,null,null,"",null,null,null,"",""]
[null,null,null,"",null,null,null,"",""]
[null,null,null,"",null,null,null,"",""]
[null,null,null,"",null,null,null,"",""]
[null,null,null,"",null,null,null,"",""]
[null,null,null,"",null,null,null,"",""]
[null,null,null,"",null,null,null,"",""]
[null,null,null,"",null,null,null,"",""]
[null,null,null,"",null,null,null,"",""]
[null,null,null,"",null,null,null,"",""]
[null,null,null,"",null,null,null,"",""]
[null,null,null,"",null,null,null,"",""]
[null,null,null,"",null,null,null,"",""]
[null,null,null,"",null,null,null,"",""]
[null,null,null,"",null,null,null,"",""]
[null,null,null,"",null,null,null,"",""]
[null,null,null,"",null,null,null,"",""]
[null,null,null,"",null,null,null,"",""]
[null,null,null,"",null,null,null,"",""]
[null,null,null,"",null,null,null,"",""]
[null,null,null,"",null,null,null,"",""]
[null,null,null,"",null,null,null,"",""]
[null,null,null,"",null,null,null,"",""]
[null,null,null,"",null,null,null,"",""]
[null,null,null,"",null,null,null,"",""]
[null,null,null,"",null,null,null,"",""]
[null,null,null,"",null,null,null,"",""]
[null,null,null,"",null,null,null,"",""]
[null,null,null,"",null,null,null,"",""]
[null,null,null,"",null,null,null,"",""]
[null,null,null,"",null,null,null,"",""]
[null,null,null,"",null,null,null,"",""]
[null,null,null,"",null,null,null,"",""]
[null,null,null,"",null,null,null,"",""]
[null,null,null,"",null,null,null,"",""]
[null,null,null,"",null,null,null,"",""]
[null,null,null,"",null,null,null,"",""]
[null,null,null,"",null,null,null,"",""]
[null,null,null,"",null,null,null,"",""]
[null,null,null,"",null,null,null,"",""]
[null,null,null,"",null,null,null,"",""]
[null,null,null,"",null,null,null,"",""]
[null,null,null,"",null,null,null,"",""]
[null,null,null,"",null,null,null,"",""]
[null,null,null,"",null,null,null,"",""]
[null,null,null,"",null,null,null,"",""]
[null,null,null,"",null,null,null,"",""]
[null,null,null,"",null,null,null,"",""]
[null,null,null,"",null,null,null,"",""]
[null,null,null,"",null,null,null,"",""]
[null,null,null,"",null,null,null,"",""]
[null,null,null,"",null,null,null,"",""]
[null,null,null,"",null,null,null,"",""]
[null,null,null,"",null,null,null,"",""]
[null,null,null,"",null,null,null,"",""]
[null,null,null,"",null,null,null,"",""]
[null,null,null,"",null,null,null,"",""]
[null,null,null,"",null,null,null,"",""]
[null,null,null,"",null,null,null,"",""]
[null,null,null,"",null,null,null,"",""]
[null,null,null,"",null,null,null,"",""]
[null,null,null,{"$f":"IF(OR(C1411=\"\",E1411=\"Finalizado\"),\"\",IF(H1411=\"No Prazo\",1,IF(H1411=\"Finalizado\",1,-1)))","v":""},null,null,null,{"$f":"IF(C1411=\"\",\"\",IF(E1411<>\"Finalizado\",IF(C1411<TODAY(),\"Em Atraso\",\"No Prazo\"),\"Finalizado\"))","v":""},{"$f":"IF(E1411=\"Finalizado\",\"\",IF(C1411=\"\",\"\",MONTH(C1411)))","v":""}]
[null,null,null,"",null,null,null,"",""]
[null,null,null,"",null,null,null,"",""]
[null,null,null,"",null,null,null,"",""]
[null,null,null,"",null,null,null,"",""]
[null,null,null,"",null,null,null,"",""]
[null,null,null,"",null,null,null,"",""]
[null,null,null,"",null,null,null,"",""]
[null,null,null,"",null,null,null,"",""]
[null,null,null,"",null,null,null,"",""]
[null,null,null,"",null,null,null,"",""]
[null,null,null,"",null,null,null,"",""]
[null,null,null,"",null,null,null,"",""]
[null,null,null,"",null,null,null,"",""]
[null,null,null,"",null,null,null,"",""]
[null,null,null,"",null,null,null,"",""]
[null,null,null,"",null,null,null,"",""]
[null,null,null,"",null,null,null,"",""]
[null,null,null,"",null,null,null,"",""]
[null,null,null,"",null,null,null,"",""]
[null,null,null,"",null,null,null,"",""]
[null,null,null,"",null,null,null,"",""]
[null,null,null,"",null,null,null,"",""]
[null,null,null,"",null,null,null,"",""]
[null,null,null,"",null,null,null,"",""]
[null,null,null,"",null,null,null,"",""]
[null,null,null,"",null,null,null,"",""]
[null,null,null,"",null,null,null,"",""]
[null,null,null,"",null,null,null,"",""]
[null,null,null,"",null,null,null,"",""]
[null,null,null,"",null,null,null,"",""]
[null,null,null,"",null,null,null,"",""]
[null,null,null,"",null,null,null,"",""]
[null,null,null,"",null,null,null,"",""]
[null,null,null,"",null,null,null,"",""]
[null,null,null,"",null,null,null,"",""]
[null,null,null,"",null,null,null,"",""]
[null,null,null,"",null,null,null,"",""]
[null,null,null,"",null,null,null,"",""]
[null,null,null,"",null,null,null,"",""]
[null,null,null,"",null,null,null,"",""]
[null,null,null,"",null,null,null,"",""]
[null,null,null,"",null,null,null,"",""]
[null,null,null,"",null,null,null,"",""]
[null,null,null,"",null,null,null,"",""]
[null,null,null,"",null,null,null,"",""]
[null,null,null,"",null,null,null,"",""]
[null,null,null,"",null,null,null,"",""]
[null,null,null,"",null,null,null,"",""]
[null,null,null,"",null,null,null,"",""]
[null,null,null,"",null,null,null,"",""]
[null,null,null,"",null,null,null,"",""]
[null,null,null,"",null,null,null,"",""]
[null,null,null,"",null,null,null,"",""]
[null,null,null,"",null,null,null,"",""]
[null,null,null,"",null,null,null,"",""]
[null,null,null,"",null,null,null,"",""]
[null,null,null,"",null,null,null,"",""]
[null,null,null,"",null,null,null,"",""]
[null,null,null,"",null,null,null,"",""]
[null,null,null,"",null,null,null,"",""]
[null,null,null,"",null,null,null,"",""]
[null,null,null,"",null,null,null,"",""]
[null,null,null,"",null,null,null,"",""]
[null,null,null,{"$f":"IF(OR(C1475=\"\",E1475=\"Finalizado\"),\"\",IF(H1475=\"No Prazo\",1,IF(H1475=\"Finalizado\",1,-1)))","v":""},null,null,null,{"$f":"IF(C1475=\"\",\"\",IF(E1475<>\"Finalizado\",IF(C1475<TODAY(),\"Em Atraso\",\"No Prazo\"),\"Finalizado\"))","v":""},{"$f":"IF(E1475=\"Finalizado\",\"\",IF(C1475=\"\",\"\",MONTH(C1475)))","v":""}]
[null,null,null,"",null,null,null,"",""]
[null,null,null,"",null,null,null,"",""]
[null,null,null,"",null,null,null,"",""]
[null,null,null,"",null,null,null,"",""]
[null,null,null,"",null,null,null,"",""]
[null,null,null,"",null,null,null,"",""]
[null,null,null,"",null,null,null,"",""]
[null,null,null,"",null,null,null,"",""]
[null,null,null,"",null,null,null,"",""]
[null,null,null,"",null,null,null,"",""]
[null,null,null,"",null,null,null,"",""]
[null,null,null,"",null,null,null,"",""]
[null,null,null,"",null,null,null,"",""]
[null,null,null,"",null,null,null,"",""]
[null,null,null,"",null,null,null,"",""]
[null,null,null,"",null,null,null,"",""]
[null,null,null,"",null,null,null,"",""]
[null,null,null,"",null,null,null,"",""]
[null,null,null,"",null,null,null,"",""]
[null,null,null,"",null,null,null,"",""]
[null,null,null,"",null,null,null,"",""]
[null,null,null,"",null,null,null,"",""]
[null,null,null,"",null,null,null,"",""]
[null,null,null,"",null,null,null,"",""]
[null,null,null,"",null,null,null,"",""]
[null,null,null,"",null,null,null,"",""]
[null,null,null,"",null,null,null,"",""]
[null,null,null,"",null,null,null,"",""]
[null,null,null,"",null,null,null,"",""]
[null,null,null,"",null,null,null,"",""]
[null,null,null,"",null,null,null,"",""]
[null,null,null,"",null,null,null,"",""]
[null,null,null,"",null,null,null,"",""]
[null,null,null,"",null,null,null,"",""]
[null,null,null,"",null,null,null,"",""]
[null,null,null,"",null,null,null,"",""]
[null,null,null,"",null,null,null,"",""]
[null,null,null,"",null,null,null,"",""]
[null,null,null,"",null,null,null,"",""]
[null,null,null,"",null,null,null,"",""]
[null,null,null,"",null,null,null,"",""]
[null,null,null,"",null,null,null,"",""]
[null,null,null,"",null,null,null,"",""]
[null,null,null,"",null,null,null,"",""]
[null,null,null,"",null,null,null,"",""]
[null,null,null,"",null,null,null,"",""]
[null,null,null,"",null,null,null,"",""]
[null,null,null,"",null,null,null,"",""]
[null,null,null,"",null,null,null,"",""]
[null,null,null,"",null,null,null,"",""]
[null,null,null,"",null,null,null,"",""]
[null,null,null,"",null,null,null,"",""]
[null,null,null,"",null,null,null,"",""]
[null,null,null,"",null,null,null,"",""]
[null,null,null,"",null,null,null,"",""]
[null,null,null,"",null,null,null,"",""]
[null,null,null,"",null,null,null,"",""]
[null,null,null,"",null,null,null,"",""]
[null,null,null,"",null,null,null,"",""]
[null,null,null,"",null,null,null,"",""]
[null,null,null,"",null,null,null,"",""]
[null,null,null,"",null,null,null,"",""]
[null,null,null,"",null,null,null,"",""]
[null,null,null,{"$f":"IF(OR(C1539=\"\",E1539=\"Finalizado\"),\"\",IF(H1539=\"No Prazo\",1,IF(H1539=\"Finalizado\",1,-1)))","v":""},null,null,null,{"$f":"IF(C1539=\"\",\"\",IF(E1539<>\"Finalizado\",IF(C1539<TODAY(),\"Em Atraso\",\"No Prazo\"),\"Finalizado\"))","v":""},{"$f":"IF(E1539=\"Finalizado\",\"\",IF(C1539=\"\",\"\",MONTH(C1539)))","v":""}]
[null,null,null,"",null,null,null,"",""]
[null,null,null,"",null,null,null,"",""]
[null,null,null,"",null,null,null,"",""]
[null,null,null,"",null,null,null,"",""]
[null,null,null,"",null,null,null,"",""]
[null,null,null,"",null,null,null,"",""]
[null,null,null,"",null,null,null,"",""]
[null,null,null,"",null,null,null,"",""]
[null,null,null,"",null,null,null,"",""]
[null,null,null,"",null,null,null,"",""]
[null,null,null,"",null,null,null,"",""]
[null,null,null,"",null,null,null,"",""]
[null,null,null,"",null,null,null,"",""]
[null,null,null,"",null,null,null,"",""]
[null,null,null,"",null,null,null,"",""]
[null,null,null,"",null,null,null,"",""]
[null,null,null,"",null,null,null,"",""]
[null,null,null,"",null,null,null,"",""]
[null,null,null,"",null,null,null,"",""]
[null,null,null,"",null,null,null,"",""]
[null,null,null,"",null,null,null,"",""]
[null,null,null,"",null,null,null,"",""]
[null,null,null,"",null,null,null,"",""]
[null,null,null,"",null,null,null,"",""]
[null,null,null,"",null,null,null,"",""]
[null,null,null,"",null,null,null,"",""]
[null,null,null,"",null,null,null,"",""]
[null,null,null,"",null,null,null,"",""]
[null,null,null,"",null,null,null,"",""]
[null,null,null,"",null,null,null,"",""]
[null,null,null,"",null,null,null,"",""]
[null,null,null,"",null,null,null,"",""]
[null,null,null,"",null,null,null,"",""]
[null,null,null,"",null,null,null,"",""]
[null,null,null,"",null,null,null,"",""]
[null,null,null,"",null,null,null,"",""]
[null,null,null,"",null,null,null,"",""]
[null,null,null,"",null,null,null,"",""]
[null,null,null,"",null,null,null,"",""]
[null,null,null,"",null,null,null,"",""]
[null,null,null,"",null,null,null,"",""]
[null,null,null,"",null,null,null,"",""]
[null,null,null,"",null,null,null,"",""]
[null,null,null,"",null,null,null,"",""]
[null,null,null,"",null,null,null,"",""]
[null,null,null,"",null,null,null,"",""]
[null,null,null,"",null,null,null,"",""]
[null,null,null,"",null,null,null,"",""]
[null,null,null,"",null,null,null,"",""]
[null,null,null,"",null,null,null,"",""]
[null,null,null,"",null,null,null,"",""]
[null,null,null,"",null,null,null,"",""]
[null,null,null,"",null,null,null,"",""]
[null,null,null,"",null,null,null,"",""]
[null,null,null,"",null,null,null,"",""]
[null,null,null,"",null,null,null,"",""]
[null,null,null,"",null,null,null,"",""]
[null,null,null,"",null,null,null,"",""]
[null,null,null,"",null,null,null,"",""]
[null,null,null,"",null,null,null,"",""]
[null,null,null,"",null,null,null,"",""]
[null,null,null,"",null,null,null,"",""]
[null,null,null,"",null,null,null,"",""]
[null,null,null,{"$f":"IF(OR(C1603=\"\",E1603=\"Finalizado\"),\"\",IF(H1603=\"No Prazo\",1,IF(H1603=\"Finalizado\",1,-1)))","v":""},null,null,null,{"$f":"IF(C1603=\"\",\"\",IF(E1603<>\"Finalizado\",IF(C1603<TODAY(),\"Em Atraso\",\"No Prazo\"),\"Finalizado\"))","v":""},{"$f":"IF(E1603=\"Finalizado\",\"\",IF(C1603=\"\",\"\",MONTH(C1603)))","v":""}]
[null,null,null,"",null,null,null,"",""]
[null,null,null,"",null,null,null,"",""]
[null,null,null,"",null,null,null,"",""]
[null,null,null,"",null,null,null,"",""]
[null,null,null,"",null,null,null,"",""]
[null,null,null,"",null,null,null,"",""]
[null,null,null,"",null,null,null,"",""]
[null,null,null,"",null,null,null,"",""]
[null,null,null,"",null,null,null,"",""]
[null,null,null,"",null,null,null,"",""]
[null,null,null,"",null,null,null,"",""]
[null,null,null,"",null,null,null,"",""]
[null,null,null,"",null,null,null,"",""]
[null,null,null,"",null,null,null,"",""]
[null,null,null,"",null,null,null,"",""]
[null,null,null,"",null,null,null,"",""]
[null,null,null,"",null,null,null,"",""]
[null,null,null,"",null,null,null,"",""]
[null,null,null,"",null,null,null,"",""]
[null,null,null,"",null,null,null,"",""]
[null,null,null,"",null,null,null,"",""]
[null,null,null,"",null,null,null,"",""]
[null,null,null,"",null,null,null,"",""]
[null,null,null,"",null,null,null,"",""]
[null,null,null,"",null,null,null,"",""]
[null,null,null,"",null,null,null,"",""]
[null,null,null,"",null,null,null,"",""]
[null,null,null,"",null,null,null,"",""]
[null,null,null,"",null,null,null,"",""]
[null,null,null,"",null,null,null,"",""]
[null,null,null,"",null,null,null,"",""]
[null,null,null,"",null,null,null,"",""]
[null,null,null,"",null,null,null,"",""]
[null,null,null,"",null,null,null,"",""]
[null,null,null,"",null,null,null,"",""]
[null,null,null,"",null,null,null,"",""]
[null,null,null,"",null,null,null,"",""]
[null,null,null,"",null,null,null,"",""]
[null,null,null,"",null,null,null,"",""]
[null,null,null,"",null,null,null,"",""]
[null,null,null,"",null,null,null,"",""]
[null,null,null,"",null,null,null,"",""]
[null,null,null,"",null,null,null,"",""]
[null,null,null,"",null,null,null,"",""]
[null,null,null,"",null,null,null,"",""]
[null,null,null,"",null,null,null,"",""]
[null,null,null,"",null,null,null,"",""]
[null,null,null,"",null,null,null,"",""]
[null,null,null,"",null,null,null,"",""]
[null,null,null,"",null,null,null,"",""]
[null,null,null,"",null,null,null,"",""]
[null,null,null,"",null,null,null,"",""]
[null,null,null,"",null,null,null,"",""]
[null,null,null,"",null,null,null,"",""]
[null,null,null,"",null,null,null,"",""]
[null,null,null,"",null,null,null,"",""]
[null,null,null,"",null,null,null,"",""]
[null,null,null,"",null,null,null,"",""]
[null,null,null,"",null,null,null,"",""]
[null,null,null,"",null,null,null,"",""]
[null,null,null,"",null,null,null,"",""]
[null,null,null,"",null,null,null,"",""]
[null,null,null,"",null,null,null,"",""]
[null,null,null,{"$f":"IF(OR(C1667=\"\",E1667=\"Finalizado\"),\"\",IF(H1667=\"No Prazo\",1,IF(H1667=\"Finalizado\",1,-1)))","v":""},null,null,null,{"$f":"IF(C1667=\"\",\"\",IF(E1667<>\"Finalizado\",IF(C1667<TODAY(),\"Em Atraso\",\"No Prazo\"),\"Finalizado\"))","v":""},{"$f":"IF(E1667=\"Finalizado\",\"\",IF(C1667=\"\",\"\",MONTH(C1667)))","v":""}]
[null,null,null,"",null,null,null,"",""]
[null,null,null,"",null,null,null,"",""]
[null,null,null,"",null,null,null,"",""]
[null,null,null,"",null,null,null,"",""]
[null,null,null,"",null,null,null,"",""]
[null,null,null,"",null,null,null,"",""]
[null,null,null,"",null,null,null,"",""]
[null,null,null,"",null,null,null,"",""]
[null,null,null,"",null,null,null,"",""]
[null,null,null,"",null,null,null,"",""]
[null,null,null,"",null,null,null,"",""]
[null,null,null,"",null,null,null,"",""]
[null,null,null,"",null,null,null,"",""]
[null,null,null,"",null,null,null,"",""]
[null,null,null,"",null,null,null,"",""]
[null,null,null,"",null,null,null,"",""]
[null,null,null,"",null,null,null,"",""]
[null,null,null,"",null,null,null,"",""]
[null,null,null,"",null,null,null,"",""]
[null,null,null,"",null,null,null,"",""]
[null,null,null,"",null,null,null,"",""]
[null,null,null,"",null,null,null,"",""]
[null,null,null,"",null,null,null,"",""]
[null,null,null,"",null,null,null,"",""]
[null,null,null,"",null,null,null,"",""]
[null,null,null,"",null,null,null,"",""]
[null,null,null,"",null,null,null,"",""]
[null,null,null,"",null,null,null,"",""]
[null,null,null,"",null,null,null,"",""]
[null,null,null,"",null,null,null,"",""]
[null,null,null,"",null,null,null,"",""]
[null,null,null,"",null,null,null,"",""]
[null,null,null,"",null,null,null,"",""]
[null,null,null,"",null,null,null,"",""]
[null,null,null,"",null,null,null,"",""]
[null,null,null,"",null,null,null,"",""]
[null,null,null,"",null,null,null,"",""]
[null,null,null,"",null,null,null,"",""]
[null,null,null,"",null,null,null,"",""]
[null,null,null,"",null,null,null,"",""]
[null,null,null,"",null,null,null,"",""]
[null,null,null,"",null,null,null,"",""]
[null,null,null,"",null,null,null,"",""]
[null,null,null,"",null,null,null,"",""]
[null,null,null,"",null,null,null,"",""]
[null,null,null,"",null,null,null,"",""]
[null,null,null,"",null,null,null,"",""]
[null,null,null,"",null,null,null,"",""]
[null,null,null,"",null,null,null,"",""]
[null,null,null,"",null,null,null,"",""]
[null,null,null,"",null,null,null,"",""]
[null,null,null,"",null,null,null,"",""]
[null,null,null,"",null,null,null,"",""]
[null,null,null,"",null,null,null,"",""]
[null,null,null,"",null,null,null,"",""]
[null,null,null,"",null,null,null,"",""]
[null,null,null,"",null,null,null,"",""]
[null,null,null,"",null,null,null,"",""]
[null,null,null,"",null,null,null,"",""]
[null,null,null,"",null,null,null,"",""]
[null,null,null,"",null,null,null,"",""]
[null,null,null,"",null,null,null,"",""]
[null,null,null,"",null,null,null,"",""]
[null,null,null,{"$f":"IF(OR(C1731=\"\",E1731=\"Finalizado\"),\"\",IF(H1731=\"No Prazo\",1,IF(H1731=\"Finalizado\",1,-1)))","v":""},null,null,null,{"$f":"IF(C1731=\"\",\"\",IF(E1731<>\"Finalizado\",IF(C1731<TODAY(),\"Em Atraso\",\"No Prazo\"),\"Finalizado\"))","v":""},{"$f":"IF(E1731=\"Finalizado\",\"\",IF(C1731=\"\",\"\",MONTH(C1731)))","v":""}]
[null,null,null,"",null,null,null,"",""]
[null,null,null,"",null,null,null,"",""]
[null,null,null,"",null,null,null,"",""]
[null,null,null,"",null,null,null,"",""]
[null,null,null,"",null,null,null,"",""]
[null,null,null,"",null,null,null,"",""]
[null,null,null,"",null,null,null,"",""]
[null,null,null,"",null,null,null,"",""]
[null,null,null,"",null,null,null,"",""]
[null,null,null,"",null,null,null,"",""]
[null,null,null,"",null,null,null,"",""]
[null,null,null,"",null,null,null,"",""]
[null,null,null,"",null,null,null,"",""]
[null,null,null,"",null,null,null,"",""]
[null,null,null,"",null,null,null,"",""]
[null,null,null,"",null,null,null,"",""]
[null,null,null,"",null,null,null,"",""]
[null,null,null,"",null,null,null,"",""]
[null,null,null,"",null,null,null,"",""]
[null,null,null,"",null,null,null,"",""]
[null,null,null,"",null,null,null,"",""]
[null,null,null,"",null,null,null,"",""]
[null,null,null,"",null,null,null,"",""]
[null,null,null,"",null,null,null,"",""]
[null,null,null,"",null,null,null,"",""]
[null,null,null,"",null,null,null,"",""]
[null,null,null,"",null,null,null,"",""]
[null,null,null,"",null,null,null,"",""]
[null,null,null,"",null,null,null,"",""]
[null,null,null,"",null,null,null,"",""]
[null,null,null,"",null,null,null,"",""]
[null,null,null,"",null,null,null,"",""]
[null,null,null,"",null,null,null,"",""]
[null,null,null,"",null,null,null,"",""]
[null,null,null,"",null,null,null,"",""]
[null,null,null,"",null,null,null,"",""]
[null,null,null,"",null,null,null,"",""]
[null,null,null,"",null,null,null,"",""]
[null,null,null,"",null,null,null,"",""]
[null,null,null,"",null,null,null,"",""]
[null,null,null,"",null,null,null,"",""]
[null,null,null,"",null,null,null,"",""]
[null,null,null,"",null,null,null,"",""]
[null,null,null,"",null,null,null,"",""]
[null,null,null,"",null,null,null,"",""]
[null,null,null,"",null,null,null,"",""]
[null,null,null,"",null,null,null,"",""]
[null,null,null,"",null,null,null,"",""]
[null,null,null,"",null,null,null,"",""]
[null,null,null,"",null,null,null,"",""]
[null,null,null,"",null,null,null,"",""]
[null,null,null,"",null,null,null,"",""]
[null,null,null,"",null,null,null,"",""]
[null,null,null,"",null,null,null,"",""]
[null,null,null,"",null,null,null,"",""]
[null,null,null,"",null,null,null,"",""]
[null,null,null,"",null,null,null,"",""]
[null,null,null,"",null,null,null,"",""]
[null,null,null,"",null,null,null,"",""]
[null,null,null,"",null,null,null,"",""]
[null,null,null,"",null,null,null,"",""]
[null,null,null,"",null,null,null,"",""]
[null,null,null,"",null,null,null,"",""]
[null,null,null,{"$f":"IF(OR(C1795=\"\",E1795=\"Finalizado\"),\"\",IF(H1795=\"No Prazo\",1,IF(H1795=\"Finalizado\",1,-1)))","v":""},null,null,null,{"$f":"IF(C1795=\"\",\"\",IF(E1795<>\"Finalizado\",IF(C1795<TODAY(),\"Em Atraso\",\"No Prazo\"),\"Finalizado\"))","v":""},{"$f":"IF(E1795=\"Finalizado\",\"\",IF(C1795=\"\",\"\",MONTH(C1795)))","v":""}]
[null,null,null,"",null,null,null,"",""]
[null,null,null,"",null,null,null,"",""]
[null,null,null,"",null,null,null,"",""]
[null,null,null,"",null,null,null,"",""]
[null,null,null,"",null,null,null,"",""]
[null,null,null,"",null,null,null,"",""]
[null,null,null,"",null,null,null,"",""]
[null,null,null,"",null,null,null,"",""]
[null,null,null,"",null,null,null,"",""]
[null,null,null,"",null,null,null,"",""]
[null,null,null,"",null,null,null,"",""]
[null,null,null,"",null,null,null,"",""]
[null,null,null,"",null,null,null,"",""]
[null,null,null,"",null,null,null,"",""]
[null,null,null,"",null,null,null,"",""]
[null,null,null,"",null,null,null,"",""]
[null,null,null,"",null,null,null,"",""]
[null,null,null,"",null,null,null,"",""]
[null,null,null,"",null,null,null,"",""]
[null,null,null,"",null,null,null,"",""]
[null,null,null,"",null,null,null,"",""]
[null,null,null,"",null,null,null,"",""]
[null,null,null,"",null,null,null,"",""]
[null,null,null,"",null,null,null,"",""]
[null,null,null,"",null,null,null,"",""]
[null,null,null,"",null,null,null,"",""]
[null,null,null,"",null,null,null,"",""]
[null,null,null,"",null,null,null,"",""]
[null,null,null,"",null,null,null,"",""]
[null,null,null,"",null,null,null,"",""]
[null,null,null,"",null,null,null,"",""]
[null,null,null,"",null,null,null,"",""]
[null,null,null,"",null,null,null,"",""]
[null,null,null,"",null,null,null,"",""]
[null,null,null,"",null,null,null,"",""]
[null,null,null,"",null,null,null,"",""]
[null,null,null,"",null,null,null,"",""]
[null,null,null,"",null,null,null,"",""]
[null,null,null,"",null,null,null,"",""]
[null,null,null,"",null,null,null,"",""]
[null,null,null,"",null,null,null,"",""]
[null,null,null,"",null,null,null,"",""]
[null,null,null,"",null,null,null,"",""]
[null,null,null,"",null,null,null,"",""]
[null,null,null,"",null,null,null,"",""]
[null,null,null,"",null,null,null,"",""]
[null,null,null,"",null,null,null,"",""]
[null,null,null,"",null,null,null,"",""]
[null,null,null,"",null,null,null,"",""]
[null,null,null,"",null,null,null,"",""]
[null,null,null,"",null,null,null,"",""]
[null,null,null,"",null,null,null,"",""]
[null,null,null,"",null,null,null,"",""]
[null,null,null,"",null,null,null,"",""]
[null,null,null,"",null,null,null,"",""]
[null,null,null,"",null,null,null,"",""]
[null,null,null,"",null,null,null,"",""]
[null,null,null,"",null,null,null,"",""]
[null,null,null,"",null,null,null,"",""]
[null,null,null,"",null,null,null,"",""]
[null,null,null,"",null,null,null,"",""]
[null,null,null,"",null,null,null,"",""]
[null,null,null,"",null,null,null,"",""]
[null,null,null,{"$f":"IF(OR(C1859=\"\",E1859=\"Finalizado\"),\"\",IF(H1859=\"No Prazo\",1,IF(H1859=\"Finalizado\",1,-1)))","v":""},null,null,null,{"$f":"IF(C1859=\"\",\"\",IF(E1859<>\"Finalizado\",IF(C1859<TODAY(),\"Em Atraso\",\"No Prazo\"),\"Finalizado\"))","v":""},{"$f":"IF(E1859=\"Finalizado\",\"\",IF(C1859=\"\",\"\",MONTH(C1859)))","v":""}]
[null,null,null,"",null,null,null,"",""]
[null,null,null,"",null,null,null,"",""]
[null,null,null,"",null,null,null,"",""]
[null,null,null,"",null,null,null,"",""]
[null,null,null,"",null,null,null,"",""]
[null,null,null,"",null,null,null,"",""]
[null,null,null,"",null,null,null,"",""]
[null,null,null,"",null,null,null,"",""]
[null,null,null,"",null,null,null,"",""]
[null,null,null,"",null,null,null,"",""]
[null,null,null,"",null,null,null,"",""]
[null,null,null,"",null,null,null,"",""]
[null,null,null,"",null,null,null,"",""]
[null,null,null,"",null,null,null,"",""]
[null,null,null,"",null,null,null,"",""]
[null,null,null,"",null,null,null,"",""]
[null,null,null,"",null,null,null,"",""]
[null,null,null,"",null,null,null,"",""]
[null,null,null,"",null,null,null,"",""]
[null,null,null,"",null,null,null,"",""]
[null,null,null,"",null,null,null,"",""]
[null,null,null,"",null,null,null,"",""]
[null,null,null,"",null,null,null,"",""]
[null,null,null,"",null,null,null,"",""]
[null,null,null,"",null,null,null,"",""]
[null,null,null,"",null,null,null,"",""]
[null,null,null,"",null,null,null,"",""]
[null,null,null,"",null,null,null,"",""]
[null,null,null,"",null,null,null,"",""]
[null,null,null,"",null,null,null,"",""]
[null,null,null,"",null,null,null,"",""]
[null,null,null,"",null,null,null,"",""]
[null,null,null,"",null,null,null,"",""]
[null,null,null,"",null,null,null,"",""]
[null,null,null,"",null,null,null,"",""]
[null,null,null,"",null,null,null,"",""]
[null,null,null,"",null,null,null,"",""]
[null,null,null,"",null,null,null,"",""]
[null,null,null,"",null,null,null,"",""]
[null,null,null,"",null,null,null,"",""]
[null,null,null,"",null,null,null,"",""]
[null,null,null,"",null,null,null,"",""]
[null,null,null,"",null,null,null,"",""]
[null,null,null,"",null,null,null,"",""]
[null,null,null,"",null,null,null,"",""]
[null,null,null,"",null,null,null,"",""]
[null,null,null,"",null,null,null,"",""]
[null,null,null,"",null,null,null,"",""]
[null,null,null,"",null,null,null,"",""]
[null,null,null,"",null,null,null,"",""]
[null,null,null,"",null,null,null,"",""]
[null,null,null,"",null,null,null,"",""]
[null,null,null,"",null,null,null,"",""]
[null,null,null,"",null,null,null,"",""]
[null,null,null,"",null,null,null,"",""]
[null,null,null,"",null,null,null,"",""]
[null,null,null,"",null,null,null,"",""]
[null,null,null,"",null,null,null,"",""]
[null,null,null,"",null,null,null,"",""]
[null,null,null,"",null,null,null,"",""]
[null,null,null,"",null,null,null,"",""]
[null,null,null,"",null,null,null,"",""]
[null,null,null,"",null,null,null,"",""]
[null,null,null,{"$f":"IF(OR(C1923=\"\",E1923=\"Finalizado\"),\"\",IF(H1923=\"No Prazo\",1,IF(H1923=\"Finalizado\",1,-1)))","v":""},null,null,null,{"$f":"IF(C1923=\"\",\"\",IF(E1923<>\"Finalizado\",IF(C1923<TODAY(),\"Em Atraso\",\"No Prazo\"),\"Finalizado\"))","v":""},{"$f":"IF(E1923=\"Finalizado\",\"\",IF(C1923=\"\",\"\",MONTH(C1923)))","v":""}]
[null,null,null,"",null,null,null,"",""]
[null,null,null,"",null,null,null,"",""]
[null,null,null,"",null,null,null,"",""]
[null,null,null,"",null,null,null,"",""]
[null,null,null,"",null,null,null,"",""]
[null,null,null,"",null,null,null,"",""]
[null,null,null,"",null,null,null,"",""]
[null,null,null,"",null,null,null,"",""]
[null,null,null,"",null,null,null,"",""]
[null,null,null,"",null,null,null,"",""]
[null,null,null,"",null,null,null,"",""]
[null,null,null,"",null,null,null,"",""]
[null,null,null,"",null,null,null,"",""]
[null,null,null,"",null,null,null,"",""]
[null,null,null,"",null,null,null,"",""]
[null,null,null,"",null,null,null,"",""]
[null,null,null,"",null,null,null,"",""]
[null,null,null,"",null,null,null,"",""]
[null,null,null,"",null,null,null,"",""]
[null,null,null,"",null,null,null,"",""]
[null,null,null,"",null,null,null,"",""]
[null,null,null,"",null,null,null,"",""]
[null,null,null,"",null,null,null,"",""]
[null,null,null,"",null,null,null,"",""]
[null,null,null,"",null,null,null,"",""]
[null,null,null,"",null,null,null,"",""]
[null,null,null,"",null,null,null,"",""]
[null,null,null,"",null,null,null,"",""]
[null,null,null,"",null,null,null,"",""]
[null,null,null,"",null,null,null,"",""]
[null,null,null,"",null,null,null,"",""]
[null,null,null,"",null,null,null,"",""]
[null,null,null,"",null,null,null,"",""]
[null,null,null,"",null,null,null,"",""]
[null,null,null,"",null,null,null,"",""]
[null,null,null,"",null,null,null,"",""]
[null,null,null,"",null,null,null,"",""]
[null,null,null,"",null,null,null,"",""]
[null,null,null,"",null,null,null,"",""]
[null,null,null,"",null,null,null,"",""]
[null,null,null,"",null,null,null,"",""]
[null,null,null,"",null,null,null,"",""]
[null,null,null,"",null,null,null,"",""]
[null,null,null,"",null,null,null,"",""]
[null,null,null,"",null,null,null,"",""]
[null,null,null,"",null,null,null,"",""]
[null,null,null,"",null,null,null,"",""]
[null,null,null,"",null,null,null,"",""]
[null,null,null,"",null,null,null,"",""]
[null,null,null,"",null,null,null,"",""]
[null,null,null,"",null,null,null,"",""]
[null,null,null,"",null,null,null,"",""]
[null,null,null,"",null,null,null,"",""]
[null,null,null,"",null,null,null,"",""]
[null,null,null,"",null,null,null,"",""]
[null,null,null,"",null,null,null,"",""]
[null,null,null,"",null,null,null,"",""]
[null,null,null,"",null,null,null,"",""]
[null,null,null,"",null,null,null,"",""]
[null,null,null,"",null,null,null,"",""]
[null,null,null,"",null,null,null,"",""]
[null,null,null,"",null,null,null,"",""]
[null,null,null,"",null,null,null,"",""]
[null,null,null,{"$f":"IF(OR(C1987=\"\",E1987=\"Finalizado\"),\"\",IF(H1987=\"No Prazo\",1,IF(H1987=\"Finalizado\",1,-1)))","v":""},null,null,null,{"$f":"IF(C1987=\"\",\"\",IF(E1987<>\"Finalizado\",IF(C1987<TODAY(),\"Em Atraso\",\"No Prazo\"),\"Finalizado\"))","v":""},{"$f":"IF(E1987=\"Finalizado\",\"\",IF(C1987=\"\",\"\",MONTH(C1987)))","v":""}]
[null,null,null,"",null,null,null,"",""]
[null,null,null,"",null,null,null,"",""]
[null,null,null,"",null,null,null,"",""]
[null,null,null,"",null,null,null,"",""]
[null,null,null,"",null,null,null,"",""]
[null,null,null,"",null,null,null,"",""]
[null,null,null,"",null,null,null,"",""]
[null,null,null,"",null,null,null,"",""]
[null,null,null,"",null,null,null,"",""]
[null,null,null,"",null,null,null,"",""]
[null,null,null,"",null,null,null,"",""]
[null,null,null,"",null,null,null,"",""]
[null,null,null,"",null,null,null,"",""]
[null,null,null,"",null,null,null,"",""]
[null,null,null,"",null,null,null,"",""]
[null,null,null,"",null,null,null,"",""]
[null,null,null,"",null,null,null,"",""]
[null,null,null,"",null,null,null,"",""]
[null,null,null,"",null,null,null,"",""]
[null,null,null,"",null,null,null,"",""]
[null,null,null,"",null,null,null,"",""]
[null,null,null,"",null,null,null,"",""]
[null,null,null,"",null,null,null,"",""]
[null,null,null,"",null,null,null,"",""]
[null,null,null,"",null,null,null,"",""]
[null,null,null,"",null,null,null,"",""]
[null,null,null,"",null,null,null,"",""]
[null,null,null,"",null,null,null,"",""]
[null,null,null,"",null,null,null,"",""]
[null,null,null,"",null,null,null,"",""]
[null,null,null,"",null,null,null,"",""]
[null,null,null,"",null,null,null,"",""]
[null,null,null,"",null,null,null,"",""]
[null,null,null,"",null,null,null,"",""]
[null,null,null,"",null,null,null,"",""]
[null,null,null,"",null,null,null,"",""]
[null,null,null,"",null,null,null,"",""]
[null,null,null,"",null,null,null,"",""]
[null,null,null,"",null,null,null,"",""]
[null,null,null,"",null,null,null,"",""]
[null,null,null,"",null,null,null,"",""]
[null,null,null,"",null,null,null,"",""]
[null,null,null,"",null,null,null,"",""]
[null,null,null,"",null,null,null,"",""]
[null,null,null,"",null,null,null,"",""]
[null,null,null,"",null,null,null,"",""]
[null,null,null,"",null,null,null,"",""]
[null,null,null,"",null,null,null,"",""]
[null,null,null,"",null,null,null,"",""]
[null,null,null,"",null,null,null,"",""]
[null,null,null,"",null,null,null,"",""]
[null,null,null,"",null,null,null,"",""]
[null,null,null,"",null,null,null,"",""]
[null,null,null,"",null,null,null,"",""]
[null,null,null,"",null,null,null,"",""]
[null,null,null,"",null,null,null,"",""]
[null,null,null,"",null,null,null,"",""]
[null,null,null,"",null,null,null,"",""]
[null,null,null,"",null,null,null,"",""]
[null,null,null,"",null,null,null,"",""]
[null,null,null,"",null,null,null,"",""]
[null,null,null,"",null,null,null,"",""]
[null,null,null,"",null,null,null,"",""]
[null,null,null,{"$f":"IF(OR(C2051=\"\",E2051=\"Finalizado\"),\"\",IF(H2051=\"No Prazo\",1,IF(H2051=\"Finalizado\",1,-1)))","v":""},null,null,null,{"$f":"IF(C2051=\"\",\"\",IF(E2051<>\"Finalizado\",IF(C2051<TODAY(),\"Em Atraso\",\"No Prazo\"),\"Finalizado\"))","v":""},{"$f":"IF(E2051=\"Finalizado\",\"\",IF(C2051=\"\",\"\",MONTH(C2051)))","v":""}]
[null,null,null,"",null,null,null,"",""]
[null,null,null,"",null,null,null,"",""]
[null,null,null,"",null,null,null,"",""]
[null,null,null,"",null,null,null,"",""]
[null,null,null,"",null,null,null,"",""]
[null,null,null,"",null,null,null,"",""]
[null,null,null,"",null,null,null,"",""]
[null,null,null,"",null,null,null,"",""]
[null,null,null,"",null,null,null,"",""]
[null,null,null,"",null,null,null,"",""]
[null,null,null,"",null,null,null,"",""]
[null,null,null,"",null,null,null,"",""]
[null,null,null,"",null,null,null,"",""]
[null,null,null,"",null,null,null,"",""]
[null,null,null,"",null,null,null,"",""]
[null,null,null,"",null,null,null,"",""]
[null,null,null,"",null,null,null,"",""]
[null,null,null,"",null,null,null,"",""]
[null,null,null,"",null,null,null,"",""]
[null,null,null,"",null,null,null,"",""]
[null,null,null,"",null,null,null,"",""]
[null,null,null,"",null,null,null,"",""]
[null,null,null,"",null,null,null,"",""]
[null,null,null,"",null,null,null,"",""]
[null,null,null,"",null,null,null,"",""]
[null,null,null,"",null,null,null,"",""]
[null,null,null,"",null,null,null,"",""]
[null,null,null,"",null,null,null,"",""]
[null,null,null,"",null,null,null,"",""]
[null,null,null,"",null,null,null,"",""]
[null,null,null,"",null,null,null,"",""]
[null,null,null,"",null,null,null,"",""]
[null,null,null,"",null,null,null,"",""]
[null,null,null,"",null,null,null,"",""]
[null,null,null,"",null,null,null,"",""]
[null,null,null,"",null,null,null,"",""]
[null,null,null,"",null,null,null,"",""]
[null,null,null,"",null,null,null,"",""]
[null,null,null,"",null,null,null,"",""]
[null,null,null,"",null,null,null,"",""]
[null,null,null,"",null,null,null,"",""]
[null,null,null,"",null,null,null,"",""]
[null,null,null,"",null,null,null,"",""]
[null,null,null,"",null,null,null,"",""]
[null,null,null,"",null,null,null,"",""]
[null,null,null,"",null,null,null,"",""]
[null,null,null,"",null,null,null,"",""]
[null,null,null,"",null,null,null,"",""]
[null,null,null,"",null,null,null,"",""]
[null,null,null,"",null,null,null,"",""]
[null,null,null,"",null,null,null,"",""]
[null,null,null,"",null,null,null,"",""]
[null,null,null,"",null,null,null,"",""]
[null,null,null,"",null,null,null,"",""]
[null,null,null,"",null,null,null,"",""]
[null,null,null,"",null,null,null,"",""]
[null,null,null,"",null,null,null,"",""]
[null,null,null,"",null,null,null,"",""]
[null,null,null,"",null,null,null,"",""]
[null,null,null,"",null,null,null,"",""]
[null,null,null,"",null,null,null,"",""]
[null,null,null,"",null,null,null,"",""]
[null,null,null,"",null,null,null,"",""]
[null,null,null,{"$f":"IF(OR(C2115=\"\",E2115=\"Finalizado\"),\"\",IF(H2115=\"No Prazo\",1,IF(H2115=\"Finalizado\",1,-1)))","v":""},null,null,null,{"$f":"IF(C2115=\"\",\"\",IF(E2115<>\"Finalizado\",IF(C2115<TODAY(),\"Em Atraso\",\"No Prazo\"),\"Finalizado\"))","v":""},{"$f":"IF(E2115=\"Finalizado\",\"\",IF(C2115=\"\",\"\",MONTH(C2115)))","v":""}]
[null,null,null,"",null,null,null,"",""]
[null,null,null,"",null,null,null,"",""]
[null,null,null,"",null,null,null,"",""]
[null,null,null,"",null,null,null,"",""]
[null,null,null,"",null,null,null,"",""]
[null,null,null,"",null,null,null,"",""]
[null,null,null,"",null,null,null,"",""]
[null,null,null,"",null,null,null,"",""]
[null,null,null,"",null,null,null,"",""]
[null,null,null,"",null,null,null,"",""]
[null,null,null,"",null,null,null,"",""]
[null,null,null,"",null,null,null,"",""]
[null,null,null,"",null,null,null,"",""]
[null,null,null,"",null,null,null,"",""]
[null,null,null,"",null,null,null,"",""]
[null,null,null,"",null,null,null,"",""]
[null,null,null,"",null,null,null,"",""]
[null,null,null,"",null,null,null,"",""]
[null,null,null,"",null,null,null,"",""]
[null,null,null,"",null,null,null,"",""]
[null,null,null,"",null,null,null,"",""]
[null,null,null,"",null,null,null,"",""]
[null,null,null,"",null,null,null,"",""]
[null,null,null,"",null,null,null,"",""]
[null,null,null,"",null,null,null,"",""]
[null,null,null,"",null,null,null,"",""]
[null,null,null,"",null,null,null,"",""]
[null,null,null,"",null,null,null,"",""]
[null,null,null,"",null,null,null,"",""]
[null,null,null,"",null,null,null,"",""]
[null,null,null,"",null,null,null,"",""]
[null,null,null,"",null,null,null,"",""]
[null,null,null,"",null,null,null,"",""]
[null,null,null,"",null,null,null,"",""]
[null,null,null,"",null,null,null,"",""]
[null,null,null,"",null,null,null,"",""]
[null,null,null,"",null,null,null,"",""]
[null,null,null,"",null,null,null,"",""]
[null,null,null,"",null,null,null,"",""]
[null,null,null,"",null,null,null,"",""]
[null,null,null,"",null,null,null,"",""]
[null,null,null,"",null,null,null,"",""]
[null,null,null,"",null,null,null,"",""]
[null,null,null,"",null,null,null,"",""]
[null,null,null,"",null,null,null,"",""]
[null,null,null,"",null,null,null,"",""]
[null,null,null,"",null,null,null,"",""]
[null,null,null,"",null,null,null,"",""]
[null,null,null,"",null,null,null,"",""]
[null,null,null,"",null,null,null,"",""]
[null,null,null,"",null,null,null,"",""]
[null,null,null,"",null,null,null,"",""]
[null,null,null,"",null,null,null,"",""]
[null,null,null,"",null,null,null,"",""]
[null,null,null,"",null,null,null,"",""]
[null,null,null,"",null,null,null,"",""]
[null,null,null,"",null,null,null,"",""]
[null,null,null,"",null,null,null,"",""]
[null,null,null,"",null,null,null,"",""]
[null,null,null,"",null,null,null,"",""]
[null,null,null,"",null,null,null,"",""]
[null,null,null,"",null,null,null,"",""]
[null,null,null,"",null,null,null,"",""]
[null,null,null,{"$f":"IF(OR(C2179=\"\",E2179=\"Finalizado\"),\"\",IF(H2179=\"No Prazo\",1,IF(H2179=\"Finalizado\",1,-1)))","v":""},null,null,null,{"$f":"IF(C2179=\"\",\"\",IF(E2179<>\"Finalizado\",IF(C2179<TODAY(),\"Em Atraso\",\"No Prazo\"),\"Finalizado\"))","v":""},{"$f":"IF(E2179=\"Finalizado\",\"\",IF(C2179=\"\",\"\",MONTH(C2179)))","v":""}]
[null,null,null,"",null,null,null,"",""]
[null,null,null,"",null,null,null,"",""]
[null,null,null,"",null,null,null,"",""]
[null,null,null,"",null,null,null,"",""]
[null,null,null,"",null,null,null,"",""]
[null,null,null,"",null,null,null,"",""]
[null,null,null,"",null,null,null,"",""]
[null,null,null,"",null,null,null,"",""]
[null,null,null,"",null,null,null,"",""]
[null,null,null,"",null,null,null,"",""]
[null,null,null,"",null,null,null,"",""]
[null,null,null,"",null,null,null,"",""]
[null,null,null,"",null,null,null,"",""]
[null,null,null,"",null,null,null,"",""]
[null,null,null,"",null,null,null,"",""]
[null,null,null,"",null,null,null,"",""]
[null,null,null,"",null,null,null,"",""]
[null,null,null,"",null,null,null,"",""]
[null,null,null,"",null,null,null,"",""]
[null,null,null,"",null,null,null,"",""]
[null,null,null,"",null,null,null,"",""]
[null,null,null,"",null,null,null,"",""]
[null,null,null,"",null,null,null,"",""]
[null,null,null,"",null,null,null,"",""]
[null,null,null,"",null,null,null,"",""]
[null,null,null,"",null,null,null,"",""]
[null,null,null,"",null,null,null,"",""]
[null,null,null,"",null,null,null,"",""]
[null,null,null,"",null,null,null,"",""]
[null,null,null,"",null,null,null,"",""]
[null,null,null,"",null,null,null,"",""]
[null,null,null,"",null,null,null,"",""]
[null,null,null,"",null,null,null,"",""]
[null,null,null,"",null,null,null,"",""]
[null,null,null,"",null,null,null,"",""]
[null,null,null,"",null,null,null,"",""]
[null,null,null,"",null,null,null,"",""]
[null,null,null,"",null,null,null,"",""]
[null,null,null,"",null,null,null,"",""]
[null,null,null,"",null,null,null,"",""]
[null,null,null,"",null,null,null,"",""]
[null,null,null,"",null,null,null,"",""]
[null,null,null,"",null,null,null,"",""]
[null,null,null,"",null,null,null,"",""]
[null,null,null,"",null,null,null,"",""]
[null,null,null,"",null,null,null,"",""]
[null,null,null,"",null,null,null,"",""]
[null,null,null,"",null,null,null,"",""]
[null,null,null,"",null,null,null,"",""]
[null,null,null,"",null,null,null,"",""]
[null,null,null,"",null,null,null,"",""]
[null,null,null,"",null,null,null,"",""]
[null,null,null,"",null,null,null,"",""]
[null,null,null,"",null,null,null,"",""]
[null,null,null,"",null,null,null,"",""]
[null,null,null,"",null,null,null,"",""]
[null,null,null,"",null,null,null,"",""]
[null,null,null,"",null,null,null,"",""]
[null,null,null,"",null,null,null,"",""]
[null,null,null,"",null,null,null,"",""]
[null,null,null,"",null,null,null,"",""]
[null,null,null,"",null,null,null,"",""]
[null,null,null,"",null,null,null,"",""]
[null,null,null,{"$f":"IF(OR(C2243=\"\",E2243=\"Finalizado\"),\"\",IF(H2243=\"No Prazo\",1,IF(H2243=\"Finalizado\",1,-1)))","v":""},null,null,null,{"$f":"IF(C2243=\"\",\"\",IF(E2243<>\"Finalizado\",IF(C2243<TODAY(),\"Em Atraso\",\"No Prazo\"),\"Finalizado\"))","v":""},{"$f":"IF(E2243=\"Finalizado\",\"\",IF(C2243=\"\",\"\",MONTH(C2243)))","v":""}]
[null,null,null,"",null,null,null,"",""]
[null,null,null,"",null,null,null,"",""]
[null,null,null,"",null,null,null,"",""]
[null,null,null,"",null,null,null,"",""]
[null,null,null,"",null,null,null,"",""]
[null,null,null,"",null,null,null,"",""]
[null,null,null,"",null,null,null,"",""]
[null,null,null,"",null,null,null,"",""]
[null,null,null,"",null,null,null,"",""]
[null,null,null,"",null,null,null,"",""]
[null,null,null,"",null,null,null,"",""]
[null,null,null,"",null,null,null,"",""]
[null,null,null,"",null,null,null,"",""]
[null,null,null,"",null,null,null,"",""]
[null,null,null,"",null,null,null,"",""]
[null,null,null,"",null,null,null,"",""]
[null,null,null,"",null,null,null,"",""]
[null,null,null,"",null,null,null,"",""]
[null,null,null,"",null,null,null,"",""]
[null,null,null,"",null,null,null,"",""]
[null,null,null,"",null,null,null,"",""]
[null,null,null,"",null,null,null,"",""]
[null,null,null,"",null,null,null,"",""]
[null,null,null,"",null,null,null,"",""]
[null,null,null,"",null,null,null,"",""]
[null,null,null,"",null,null,null,"",""]
[null,null,null,"",null,null,null,"",""]
[null,null,null,"",null,null,null,"",""]
[null,null,null,"",null,null,null,"",""]
[null,null,null,"",null,null,null,"",""]
[null,null,null,"",null,null,null,"",""]
[null,null,null,"",null,null,null,"",""]
[null,null,null,"",null,null,null,"",""]
[null,null,null,"",null,null,null,"",""]
[null,null,null,"",null,null,null,"",""]
[null,null,null,"",null,null,null,"",""]
[null,null,null,"",null,null,null,"",""]
[null,null,null,"",null,null,null,"",""]
[null,null,null,"",null,null,null,"",""]
[null,null,null,"",null,null,null,"",""]
[null,null,null,"",null,null,null,"",""]
[null,null,null,"",null,null,null,"",""]
[null,null,null,"",null,null,null,"",""]
[null,null,null,"",null,null,null,"",""]
[null,null,null,"",null,null,null,"",""]
[null,null,null,"",null,null,null,"",""]
[null,null,null,"",null,null,null,"",""]
[null,null,null,"",null,null,null,"",""]
[null,null,null,"",null,null,null,"",""]
[null,null,null,"",null,null,null,"",""]
[null,null,null,"",null,null,null,"",""]
[null,null,null,"",null,null,null,"",""]
[null,null,null,"",null,null,null,"",""]
[null,null,null,"",null,null,null,"",""]
[null,null,null,"",null,null,null,"",""]
[null,null,null,"",null,null,null,"",""]
[null,null,null,"",null,null,null,"",""]
[null,null,null,"",null,null,null,"",""]
[null,null,null,"",null,null,null,"",""]
[null,null,null,"",null,null,null,"",""]
[null,null,null,"",null,null,null,"",""]
[null,null,null,"",null,null,null,"",""]
[null,null,null,"",null,null,null,"",""]
[null,null,null,{"$f":"IF(OR(C2307=\"\",E2307=\"Finalizado\"),\"\",IF(H2307=\"No Prazo\",1,IF(H2307=\"Finalizado\",1,-1)))","v":""},null,null,null,{"$f":"IF(C2307=\"\",\"\",IF(E2307<>\"Finalizado\",IF(C2307<TODAY(),\"Em Atraso\",\"No Prazo\"),\"Finalizado\"))","v":""},{"$f":"IF(E2307=\"Finalizado\",\"\",IF(C2307=\"\",\"\",MONTH(C2307)))","v":""}]
[null,null,null,"",null,null,null,"",""]
[null,null,null,"",null,null,null,"",""]
[null,null,null,"",null,null,null,"",""]
[null,null,null,"",null,null,null,"",""]
[null,null,null,"",null,null,null,"",""]
[null,null,null,"",null,null,null,"",""]
[null,null,null,"",null,null,null,"",""]
[null,null,null,"",null,null,null,"",""]
[null,null,null,"",null,null,null,"",""]
[null,null,null,"",null,null,null,"",""]
[null,null,null,"",null,null,null,"",""]
[null,null,null,"",null,null,null,"",""]
[null,null,null,"",null,null,null,"",""]
[null,null,null,"",null,null,null,"",""]
[null,null,null,"",null,null,null,"",""]
[null,null,null,"",null,null,null,"",""]
[null,null,null,"",null,null,null,"",""]
[null,null,null,"",null,null,null,"",""]
[null,null,null,"",null,null,null,"",""]
[null,null,null,"",null,null,null,"",""]
[null,null,null,"",null,null,null,"",""]
[null,null,null,"",null,null,null,"",""]
[null,null,null,"",null,null,null,"",""]
[null,null,null,"",null,null,null,"",""]
[null,null,null,"",null,null,null,"",""]
[null,null,null,"",null,null,null,"",""]
[null,null,null,"",null,null,null,"",""]
[null,null,null,"",null,null,null,"",""]
[null,null,null,"",null,null,null,"",""]
[null,null,null,"",null,null,null,"",""]
[null,null,null,"",null,null,null,"",""]
[null,null,null,"",null,null,null,"",""]
[null,null,null,"",null,null,null,"",""]
[null,null,null,"",null,null,null,"",""]
[null,null,null,"",null,null,null,"",""]
[null,null,null,"",null,null,null,"",""]
[null,null,null,"",null,null,null,"",""]
[null,null,null,"",null,null,null,"",""]
[null,null,null,"",null,null,null,"",""]
[null,null,null,"",null,null,null,"",""]
[null,null,null,"",null,null,null,"",""]
[null,null,null,"",null,null,null,"",""]
[null,null,null,"",null,null,null,"",""]
[null,null,null,"",null,null,null,"",""]
[null,null,null,"",null,null,null,"",""]
[null,null,null,"",null,null,null,"",""]
[null,null,null,"",null,null,null,"",""]
[null,null,null,"",null,null,null,"",""]
[null,null,null,"",null,null,null,"",""]
[null,null,null,"",null,null,null,"",""]
[null,null,null,"",null,null,null,"",""]
[null,null,null,"",null,null,null,"",""]
[null,null,null,"",null,null,null,"",""]
[null,null,null,"",null,null,null,"",""]
[null,null,null,"",null,null,null,"",""]
[null,null,null,"",null,null,null,"",""]
[null,null,null,"",null,null,null,"",""]
[null,null,null,"",null,null,null,"",""]
[null,null,null,"",null,null,null,"",""]
[null,null,null,"",null,null,null,"",""]
[null,null,null,"",null,null,null,"",""]
[null,null,null,"",null,null,null,"",""]
[null,null,null,"",null,null,null,"",""]
[null,null,null,{"$f":"IF(OR(C2371=\"\",E2371=\"Finalizado\"),\"\",IF(H2371=\"No Prazo\",1,IF(H2371=\"Finalizado\",1,-1)))","v":""},null,null,null,{"$f":"IF(C2371=\"\",\"\",IF(E2371<>\"Finalizado\",IF(C2371<TODAY(),\"Em Atraso\",\"No Prazo\"),\"Finalizado\"))","v":""},{"$f":"IF(E2371=\"Finalizado\",\"\",IF(C2371=\"\",\"\",MONTH(C2371)))","v":""}]
[null,null,null,"",null,null,null,"",""]
[null,null,null,"",null,null,null,"",""]
[null,null,null,"",null,null,null,"",""]
[null,null,null,"",null,null,null,"",""]
[null,null,null,"",null,null,null,"",""]
[null,null,null,"",null,null,null,"",""]
[null,null,null,"",null,null,null,"",""]
[null,null,null,"",null,null,null,"",""]
[null,null,null,"",null,null,null,"",""]
[null,null,null,"",null,null,null,"",""]
[null,null,null,"",null,null,null,"",""]
[null,null,null,"",null,null,null,"",""]
[null,null,null,"",null,null,null,"",""]
[null,null,null,"",null,null,null,"",""]
[null,null,null,"",null,null,null,"",""]
[null,null,null,"",null,null,null,"",""]
[null,null,null,"",null,null,null,"",""]
[null,null,null,"",null,null,null,"",""]
[null,null,null,"",null,null,null,"",""]
[null,null,null,"",null,null,null,"",""]
[null,null,null,"",null,null,null,"",""]
[null,null,null,"",null,null,null,"",""]
[null,null,null,"",null,null,null,"",""]
[null,null,null,"",null,null,null,"",""]
[null,null,null,"",null,null,null,"",""]
[null,null,null,"",null,null,null,"",""]
[null,null,null,"",null,null,null,"",""]
[null,null,null,"",null,null,null,"",""]
[null,null,null,"",null,null,null,"",""]
[null,null,null,"",null,null,null,"",""]
[null,null,null,"",null,null,null,"",""]
[null,null,null,"",null,null,null,"",""]
[null,null,null,"",null,null,null,"",""]
[null,null,null,"",null,null,null,"",""]
[null,null,null,"",null,null,null,"",""]
[null,null,null,"",null,null,null,"",""]
[null,null,null,"",null,null,null,"",""]
[null,null,null,"",null,null,null,"",""]
[null,null,null,"",null,null,null,"",""]
[null,null,null,"",null,null,null,"",""]
[null,null,null,"",null,null,null,"",""]
[null,null,null,"",null,null,null,"",""]
[null,null,null,"",null,null,null,"",""]
[null,null,null,"",null,null,null,"",""]
[null,null,null,"",null,null,null,"",""]
[null,null,null,"",null,null,null,"",""]
[null,null,null,"",null,null,null,"",""]
[null,null,null,"",null,null,null,"",""]
[null,null,null,"",null,null,null,"",""]
[null,null,null,"",null,null,null,"",""]
[null,null,null,"",null,null,null,"",""]
[null,null,null,"",null,null,null,"",""]
[null,null,null,"",null,null,null,"",""]
[null,null,null,"",null,null,null,"",""]
[null,null,null,"",null,null,null,"",""]
[null,null,null,"",null,null,null,"",""]
[null,null,null,"",null,null,null,"",""]
[null,null,null,"",null,null,null,"",""]
[null,null,null,"",null,null,null,"",""]
[null,null,null,"",null,null,null,"",""]
[null,null,null,"",null,null,null,"",""]
[null,null,null,"",null,null,null,"",""]
[null,null,null,"",null,null,null,"",""]
[null,null,null,{"$f":"IF(OR(C2435=\"\",E2435=\"Finalizado\"),\"\",IF(H2435=\"No Prazo\",1,IF(H2435=\"Finalizado\",1,-1)))","v":""},null,null,null,{"$f":"IF(C2435=\"\",\"\",IF(E2435<>\"Finalizado\",IF(C2435<TODAY(),\"Em Atraso\",\"No Prazo\"),\"Finalizado\"))","v":""},{"$f":"IF(E2435=\"Finalizado\",\"\",IF(C2435=\"\",\"\",MONTH(C2435)))","v":""}]
[null,null,null,"",null,null,null,"",""]
[null,null,null,"",null,null,null,"",""]
[null,null,null,"",null,null,null,"",""]
[null,null,null,"",null,null,null,"",""]
[null,null,null,"",null,null,null,"",""]
[null,null,null,"",null,null,null,"",""]
[null,null,null,"",null,null,null,"",""]
[null,null,null,"",null,null,null,"",""]
[null,null,null,"",null,null,null,"",""]
[null,null,null,"",null,null,null,"",""]
[null,null,null,"",null,null,null,"",""]
[null,null,null,"",null,null,null,"",""]
[null,null,null,"",null,null,null,"",""]
[null,null,null,"",null,null,null,"",""]
[null,null,null,"",null,null,null,"",""]
[null,null,null,"",null,null,null,"",""]
[null,null,null,"",null,null,null,"",""]
[null,null,null,"",null,null,null,"",""]
[null,null,null,"",null,null,null,"",""]
[null,null,null,"",null,null,null,"",""]
[null,null,null,"",null,null,null,"",""]
[null,null,null,"",null,null,null,"",""]
[null,null,null,"",null,null,null,"",""]
[null,null,null,"",null,null,null,"",""]
[null,null,null,"",null,null,null,"",""]
[null,null,null,"",null,null,null,"",""]
[null,null,null,"",null,null,null,"",""]
[null,null,null,"",null,null,null,"",""]
[null,null,null,"",null,null,null,"",""]
[null,null,null,"",null,null,null,"",""]
[null,null,null,"",null,null,null,"",""]
[null,null,null,"",null,null,null,"",""]
[null,null,null,"",null,null,null,"",""]
[null,null,null,"",null,null,null,"",""]
[null,null,null,"",null,null,null,"",""]
[null,null,null,"",null,null,null,"",""]
[null,null,null,"",null,null,null,"",""]
[null,null,null,"",null,null,null,"",""]
[null,null,null,"",null,null,null,"",""]
[null,null,null,"",null,null,null,"",""]
[null,null,null,"",null,null,null,"",""]
[null,null,null,"",null,null,null,"",""]
[null,null,null,"",null,null,null,"",""]
[null,null,null,"",null,null,null,"",""]
[null,null,null,"",null,null,null,"",""]
[null,null,null,"",null,null,null,"",""]
[null,null,null,"",null,null,null,"",""]
[null,null,null,"",null,null,null,"",""]
[null,null,null,"",null,null,null,"",""]
[null,null,null,"",null,null,null,"",""]
[null,null,null,"",null,null,null,"",""]
[null,null,null,"",null,null,null,"",""]
[null,null,null,"",null,null,null,"",""]
[null,null,null,"",null,null,null,"",""]
[null,null,null,"",null,null,null,"",""]
[null,null,null,"",null,null,null,"",""]
[null,null,null,"",null,null,null,"",""]
[null,null,null,"",null,null,null,"",""]
[null,null,null,"",null,null,null,"",""]
[null,null,null,"",null,null,null,"",""]
[null,null,null,"",null,null,null,"",""]
[null,null,null,"",null,null,null,"",""]
[null,null,null,"",null,null,null,"",""]
[null,null,null,{"$f":"IF(OR(C2499=\"\",E2499=\"Finalizado\"),\"\",IF(H2499=\"No Prazo\",1,IF(H2499=\"Finalizado\",1,-1)))","v":""},null,null,null,{"$f":"IF(C2499=\"\",\"\",IF(E2499<>\"Finalizado\",IF(C2499<TODAY(),\"Em Atraso\",\"No Prazo\"),\"Finalizado\"))","v":""},{"$f":"IF(E2499=\"Finalizado\",\"\",IF(C2499=\"\",\"\",MONTH(C2499)))","v":""}]
[null,null,null,"",null,null,null,"",""]
[null,null,null,"",null,null,null,"",""]
[null,null,null,"",null,null,null,"",""]
[null,null,null,"",null,null,null,"",""]
[null,null,null,"",null,null,null,"",""]
[null,null,null,"",null,null,null,"",""]
[null,null,null,"",null,null,null,"",""]
[null,null,null,"",null,null,null,"",""]
[null,null,null,"",null,null,null,"",""]
[null,null,null,"",null,null,null,"",""]
[null,null,null,"",null,null,null,"",""]
[null,null,null,"",null,null,null,"",""]
[null,null,null,"",null,null,null,"",""]
[null,null,null,"",null,null,null,"",""]
[null,null,null,"",null,null,null,"",""]
[null,null,null,"",null,null,null,"",""]
[null,null,null,"",null,null,null,"",""]
[null,null,null,"",null,null,null,"",""]
[null,null,null,"",null,null,null,"",""]
[null,null,null,"",null,null,null,"",""]
[null,null,null,"",null,null,null,"",""]
[null,null,null,"",null,null,null,"",""]
[null,null,null,"",null,null,null,"",""]
[null,null,null,"",null,null,null,"",""]
[null,null,null,"",null,null,null,"",""]
[null,null,null,"",null,null,null,"",""]
[null,null,null,"",null,null,null,"",""]
[null,null,null,"",null,null,null,"",""]
[null,null,null,"",null,null,null,"",""]
[null,null,null,"",null,null,null,"",""]
[null,null,null,"",null,null,null,"",""]
[null,null,null,"",null,null,null,"",""]
[null,null,null,"",null,null,null,"",""]
[null,null,null,"",null,null,null,"",""]
[null,null,null,"",null,null,null,"",""]
[null,null,null,"",null,null,null,"",""]
[null,null,null,"",null,null,null,"",""]
[null,null,null,"",null,null,null,"",""]
[null,null,null,"",null,null,null,"",""]
[null,null,null,"",null,null,null,"",""]
[null,null,null,"",null,null,null,"",""]
[null,null,null,"",null,null,null,"",""]
[null,null,null,"",null,null,null,"",""]
[null,null,null,"",null,null,null,"",""]
[null,null,null,"",null,null,null,"",""]
[null,null,null,"",null,null,null,"",""]
[null,null,null,"",null,null,null,"",""]
[null,null,null,"",null,null,null,"",""]
[null,null,null,"",null,null,null,"",""]
[null,null,null,"",null,null,null,"",""]
[null,null,null,"",null,null,null,"",""]
[null,null,null,"",null,null,null,"",""]
[null,null,null,"",null,null,null,"",""]
[null,null,null,"",null,null,null,"",""]
[null,null,null,"",null,null,null,"",""]
[null,null,null,"",null,null,null,"",""]
[null,null,null,"",null,null,null,"",""]
[null,null,null,"",null,null,null,"",""]
[null,null,null,"",null,null,null,"",""]
[null,null,null,"",null,null,null,"",""]
[null,null,null,"",null,null,null,"",""]
[null,null,null,"",null,null,null,"",""]
[null,null,null,"",null,null,null,"",""]
[null,null,null,{"$f":"IF(OR(C2563=\"\",E2563=\"Finalizado\"),\"\",IF(H2563=\"No Prazo\",1,IF(H2563=\"Finalizado\",1,-1)))","v":""},null,null,null,{"$f":"IF(C2563=\"\",\"\",IF(E2563<>\"Finalizado\",IF(C2563<TODAY(),\"Em Atraso\",\"No Prazo\"),\"Finalizado\"))","v":""},{"$f":"IF(E2563=\"Finalizado\",\"\",IF(C2563=\"\",\"\",MONTH(C2563)))","v":""}]
[null,null,null,"",null,null,null,"",""]
[null,null,null,"",null,null,null,"",""]
[null,null,null,"",null,null,null,"",""]
[null,null,null,"",null,null,null,"",""]
[null,null,null,"",null,null,null,"",""]
[null,null,null,"",null,null,null,"",""]
[null,null,null,"",null,null,null,"",""]
[null,null,null,"",null,null,null,"",""]
[null,null,null,"",null,null,null,"",""]
[null,null,null,"",null,null,null,"",""]
[null,null,null,"",null,null,null,"",""]
[null,null,null,"",null,null,null,"",""]
[null,null,null,"",null,null,null,"",""]
[null,null,null,"",null,null,null,"",""]
[null,null,null,"",null,null,null,"",""]
[null,null,null,"",null,null,null,"",""]
[null,null,null,"",null,null,null,"",""]
[null,null,null,"",null,null,null,"",""]
[null,null,null,"",null,null,null,"",""]
[null,null,null,"",null,null,null,"",""]
[null,null,null,"",null,null,null,"",""]
[null,null,null,"",null,null,null,"",""]
[null,null,null,"",null,null,null,"",""]
[null,null,null,"",null,null,null,"",""]
[null,null,null,"",null,null,null,"",""]
[null,null,null,"",null,null,null,"",""]
[null,null,null,"",null,null,null,"",""]
[null,null,null,"",null,null,null,"",""]
[null,null,null,"",null,null,null,"",""]
[null,null,null,"",null,null,null,"",""]
[null,null,null,"",null,null,null,"",""]
[null,null,null,"",null,null,null,"",""]
[null,null,null,"",null,null,null,"",""]
[null,null,null,"",null,null,null,"",""]
[null,null,null,"",null,null,null,"",""]
[null,null,null,"",null,null,null,"",""]
[null,null,null,"",null,null,null,"",""]
[null,null,null,"",null,null,null,"",""]
[null,null,null,"",null,null,null,"",""]
[null,null,null,"",null,null,null,"",""]
[null,null,null,"",null,null,null,"",""]
[null,null,null,"",null,null,null,"",""]
[null,null,null,"",null,null,null,"",""]
[null,null,null,"",null,null,null,"",""]
[null,null,null,"",null,null,null,"",""]
[null,null,null,"",null,null,null,"",""]
[null,null,null,"",null,null,null,"",""]
[null,null,null,"",null,null,null,"",""]
[null,null,null,"",null,null,null,"",""]
[null,null,null,"",null,null,null,"",""]
[null,null,null,"",null,null,null,"",""]
[null,null,null,"",null,null,null,"",""]
[null,null,null,"",null,null,null,"",""]
[null,null,null,"",null,null,null,"",""]
[null,null,null,"",null,null,null,"",""]
[null,null,null,"",null,null,null,"",""]
[null,null,null,"",null,null,null,"",""]
[null,null,null,"",null,null,null,"",""]
[null,null,null,"",null,null,null,"",""]
[null,null,null,"",null,null,null,"",""]
[null,null,null,"",null,null,null,"",""]
[null,null,null,"",null,null,null,"",""]
[null,null,null,"",null,null,null,"",""]
[null,null,null,{"$f":"IF(OR(C2627=\"\",E2627=\"Finalizado\"),\"\",IF(H2627=\"No Prazo\",1,IF(H2627=\"Finalizado\",1,-1)))","v":""},null,null,null,{"$f":"IF(C2627=\"\",\"\",IF(E2627<>\"Finalizado\",IF(C2627<TODAY(),\"Em Atraso\",\"No Prazo\"),\"Finalizado\"))","v":""},{"$f":"IF(E2627=\"Finalizado\",\"\",IF(C2627=\"\",\"\",MONTH(C2627)))","v":""}]
[null,null,null,"",null,null,null,"",""]
[null,null,null,"",null,null,null,"",""]
[null,null,null,"",null,null,null,"",""]
[null,null,null,"",null,null,null,"",""]
[null,null,null,"",null,null,null,"",""]
[null,null,null,"",null,null,null,"",""]
[null,null,null,"",null,null,null,"",""]
[null,null,null,"",null,null,null,"",""]
[null,null,null,"",null,null,null,"",""]
[null,null,null,"",null,null,null,"",""]
[null,null,null,"",null,null,null,"",""]
[null,null,null,"",null,null,null,"",""]
[null,null,null,"",null,null,null,"",""]
[null,null,null,"",null,null,null,"",""]
[null,null,null,"",null,null,null,"",""]
[null,null,null,"",null,null,null,"",""]
[null,null,null,"",null,null,null,"",""]
[null,null,null,"",null,null,null,"",""]
[null,null,null,"",null,null,null,"",""]
[null,null,null,"",null,null,null,"",""]
[null,null,null,"",null,null,null,"",""]
[null,null,null,"",null,null,null,"",""]
[null,null,null,"",null,null,null,"",""]
[null,null,null,"",null,null,null,"",""]
[null,null,null,"",null,null,null,"",""]
[null,null,null,"",null,null,null,"",""]
[null,null,null,"",null,null,null,"",""]
[null,null,null,"",null,null,null,"",""]
[null,null,null,"",null,null,null,"",""]
[null,null,null,"",null,null,null,"",""]
[null,null,null,"",null,null,null,"",""]
[null,null,null,"",null,null,null,"",""]
[null,null,null,"",null,null,null,"",""]
[null,null,null,"",null,null,null,"",""]
[null,null,null,"",null,null,null,"",""]
[null,null,null,"",null,null,null,"",""]
[null,null,null,"",null,null,null,"",""]
[null,null,null,"",null,null,null,"",""]
[null,null,null,"",null,null,null,"",""]
[null,null,null,"",null,null,null,"",""]
[null,null,null,"",null,null,null,"",""]
[null,null,null,"",null,null,null,"",""]
[null,null,null,"",null,null,null,"",""]
[null,null,null,"",null,null,null,"",""]
[null,null,null,"",null,null,null,"",""]
[null,null,null,"",null,null,null,"",""]
[null,null,null,"",null,null,null,"",""]
[null,null,null,"",null,null,null,"",""]
[null,null,null,"",null,null,null,"",""]
[null,null,null,"",null,null,null,"",""]
[null,null,null,"",null,null,null,"",""]
[null,null,null,"",null,null,null,"",""]
[null,null,null,"",null,null,null,"",""]
[null,null,null,"",null,null,null,"",""]
[null,null,null,"",null,null,null,"",""]
[null,null,null,"",null,null,null,"",""]
[null,null,null,"",null,null,null,"",""]
[null,null,null,"",null,null,null,"",""]
[null,null,null,"",null,null,null,"",""]
[null,null,null,"",null,null,null,"",""]
[null,null,null,"",null,null,null,"",""]
[null,null,null,"",null,null,null,"",""]
[null,null,null,"",null,null,null,"",""]
[null,null,null,{"$f":"IF(OR(C2691=\"\",E2691=\"Finalizado\"),\"\",IF(H2691=\"No Prazo\",1,IF(H2691=\"Finalizado\",1,-1)))","v":""},null,null,null,{"$f":"IF(C2691=\"\",\"\",IF(E2691<>\"Finalizado\",IF(C2691<TODAY(),\"Em Atraso\",\"No Prazo\"),\"Finalizado\"))","v":""},{"$f":"IF(E2691=\"Finalizado\",\"\",IF(C2691=\"\",\"\",MONTH(C2691)))","v":""}]
[null,null,null,"",null,null,null,"",""]
[null,null,null,"",null,null,null,"",""]
[null,null,null,"",null,null,null,"",""]
[null,null,null,"",null,null,null,"",""]
[null,null,null,"",null,null,null,"",""]
[null,null,null,"",null,null,null,"",""]
[null,null,null,"",null,null,null,"",""]
[null,null,null,"",null,null,null,"",""]
[null,null,null,"",null,null,null,"",""]
[null,null,null,"",null,null,null,"",""]
[null,null,null,"",null,null,null,"",""]
[null,null,null,"",null,null,null,"",""]
[null,null,null,"",null,null,null,"",""]
[null,null,null,"",null,null,null,"",""]
[null,null,null,"",null,null,null,"",""]
[null,null,null,"",null,null,null,"",""]
[null,null,null,"",null,null,null,"",""]
[null,null,null,"",null,null,null,"",""]
[null,null,null,"",null,null,null,"",""]
[null,null,null,"",null,null,null,"",""]
[null,null,null,"",null,null,null,"",""]
[null,null,null,"",null,null,null,"",""]
[null,null,null,"",null,null,null,"",""]
[null,null,null,"",null,null,null,"",""]
[null,null,null,"",null,null,null,"",""]
[null,null,null,"",null,null,null,"",""]
[null,null,null,"",null,null,null,"",""]
[null,null,null,"",null,null,null,"",""]
[null,null,null,"",null,null,null,"",""]
[null,null,null,"",null,null,null,"",""]
[null,null,null,"",null,null,null,"",""]
[null,null,null,"",null,null,null,"",""]
[null,null,null,"",null,null,null,"",""]
[null,null,null,"",null,null,null,"",""]
[null,null,null,"",null,null,null,"",""]
[null,null,null,"",null,null,null,"",""]
[null,null,null,"",null,null,null,"",""]
[null,null,null,"",null,null,null,"",""]
[null,null,null,"",null,null,null,"",""]
[null,null,null,"",null,null,null,"",""]
[null,null,null,"",null,null,null,"",""]
[null,null,null,"",null,null,null,"",""]
[null,null,null,"",null,null,null,"",""]
[null,null,null,"",null,null,null,"",""]
[null,null,null,"",null,null,null,"",""]
[null,null,null,"",null,null,null,"",""]
[null,null,null,"",null,null,null,"",""]
[null,null,null,"",null,null,null,"",""]
[null,null,null,"",null,null,null,"",""]
[null,null,null,"",null,null,null,"",""]
[null,null,null,"",null,null,null,"",""]
[null,null,null,"",null,null,null,"",""]
[null,null,null,"",null,null,null,"",""]
[null,null,null,"",null,null,null,"",""]
[null,null,null,"",null,null,null,"",""]
[null,null,null,"",null,null,null,"",""]
[null,null,null,"",null,null,null,"",""]
[null,null,null,"",null,null,null,"",""]
[null,null,null,"",null,null,null,"",""]
[null,null,null,"",null,null,null,"",""]
[null,null,null,"",null,null,null,"",""]
[null,null,null,"",null,null,null,"",""]
[null,null,null,"",null,null,null,"",""]
[null,null,null,{"$f":"IF(OR(C2755=\"\",E2755=\"Finalizado\"),\"\",IF(H2755=\"No Prazo\",1,IF(H2755=\"Finalizado\",1,-1)))","v":""},null,null,null,{"$f":"IF(C2755=\"\",\"\",IF(E2755<>\"Finalizado\",IF(C2755<TODAY(),\"Em Atraso\",\"No Prazo\"),\"Finalizado\"))","v":""},{"$f":"IF(E2755=\"Finalizado\",\"\",IF(C2755=\"\",\"\",MONTH(C2755)))","v":""}]
[null,null,null,"",null,null,null,"",""]
[null,null,null,"",null,null,null,"",""]
[null,null,null,"",null,null,null,"",""]
[null,null,null,"",null,null,null,"",""]
[null,null,null,"",null,null,null,"",""]
[null,null,null,"",null,null,null,"",""]
[null,null,null,"",null,null,null,"",""]
[null,null,null,"",null,null,null,"",""]
[null,null,null,"",null,null,null,"",""]
[null,null,null,"",null,null,null,"",""]
[null,null,null,"",null,null,null,"",""]
[null,null,null,"",null,null,null,"",""]
[null,null,null,"",null,null,null,"",""]
[null,null,null,"",null,null,null,"",""]
[null,null,null,"",null,null,null,"",""]
[null,null,null,"",null,null,null,"",""]
[null,null,null,"",null,null,null,"",""]
[null,null,null,"",null,null,null,"",""]
[null,null,null,"",null,null,null,"",""]
[null,null,null,"",null,null,null,"",""]
[null,null,null,"",null,null,null,"",""]
[null,null,null,"",null,null,null,"",""]
[null,null,null,"",null,null,null,"",""]
[null,null,null,"",null,null,null,"",""]
[null,null,null,"",null,null,null,"",""]
[null,null,null,"",null,null,null,"",""]
[null,null,null,"",null,null,null,"",""]
[null,null,null,"",null,null,null,"",""]
[null,null,null,"",null,null,null,"",""]
[null,null,null,"",null,null,null,"",""]
[null,null,null,"",null,null,null,"",""]
[null,null,null,"",null,null,null,"",""]
[null,null,null,"",null,null,null,"",""]
[null,null,null,"",null,null,null,"",""]
[null,null,null,"",null,null,null,"",""]
[null,null,null,"",null,null,null,"",""]
[null,null,null,"",null,null,null,"",""]
[null,null,null,"",null,null,null,"",""]
[null,null,null,"",null,null,null,"",""]
[null,null,null,"",null,null,null,"",""]
[null,null,null,"",null,null,null,"",""]
[null,null,null,"",null,null,null,"",""]
[null,null,null,"",null,null,null,"",""]
[null,null,null,"",null,null,null,"",""]
[null,null,null,"",null,null,null,"",""]
[null,null,null,"",null,null,null,"",""]
[null,null,null,"",null,null,null,"",""]
[null,null,null,"",null,null,null,"",""]
[null,null,null,"",null,null,null,"",""]
[null,null,null,"",null,null,null,"",""]
[null,null,null,"",null,null,null,"",""]
[null,null,null,"",null,null,null,"",""]
[null,null,null,"",null,null,null,"",""]
[null,null,null,"",null,null,null,"",""]
[null,null,null,"",null,null,null,"",""]
[null,null,null,"",null,null,null,"",""]
[null,null,null,"",null,null,null,"",""]
[null,null,null,"",null,null,null,"",""]
[null,null,null,"",null,null,null,"",""]
[null,null,null,"",null,null,null,"",""]
[null,null,null,"",null,null,null,"",""]
[null,null,null,"",null,null,null,"",""]
[null,null,null,"",null,null,null,"",""]
[null,null,null,{"$f":"IF(OR(C2819=\"\",E2819=\"Finalizado\"),\"\",IF(H2819=\"No Prazo\",1,IF(H2819=\"Finalizado\",1,-1)))","v":""},null,null,null,{"$f":"IF(C2819=\"\",\"\",IF(E2819<>\"Finalizado\",IF(C2819<TODAY(),\"Em Atraso\",\"No Prazo\"),\"Finalizado\"))","v":""},{"$f":"IF(E2819=\"Finalizado\",\"\",IF(C2819=\"\",\"\",MONTH(C2819)))","v":""}]
[null,null,null,"",null,null,null,"",""]
[null,null,null,"",null,null,null,"",""]
[null,null,null,"",null,null,null,"",""]
[null,null,null,"",null,null,null,"",""]
[null,null,null,"",null,null,null,"",""]
[null,null,null,"",null,null,null,"",""]
[null,null,null,"",null,null,null,"",""]
[null,null,null,"",null,null,null,"",""]
[null,null,null,"",null,null,null,"",""]
[null,null,null,"",null,null,null,"",""]
[null,null,null,"",null,null,null,"",""]
[null,null,null,"",null,null,null,"",""]
[null,null,null,"",null,null,null,"",""]
[null,null,null,"",null,null,null,"",""]
[null,null,null,"",null,null,null,"",""]
[null,null,null,"",null,null,null,"",""]
[null,null,null,"",null,null,null,"",""]
[null,null,null,"",null,null,null,"",""]
[null,null,null,"",null,null,null,"",""]
[null,null,null,"",null,null,null,"",""]
[null,null,null,"",null,null,null,"",""]
[null,null,null,"",null,null,null,"",""]
[null,null,null,"",null,null,null,"",""]
[null,null,null,"",null,null,null,"",""]
[null,null,null,"",null,null,null,"",""]
[null,null,null,"",null,null,null,"",""]
[null,null,null,"",null,null,null,"",""]
[null,null,null,"",null,null,null,"",""]
[null,null,null,"",null,null,null,"",""]
[null,null,null,"",null,null,null,"",""]
[null,null,null,"",null,null,null,"",""]
[null,null,null,"",null,null,null,"",""]
[null,null,null,"",null,null,null,"",""]
[null,null,null,"",null,null,null,"",""]
[null,null,null,"",null,null,null,"",""]
[null,null,null,"",null,null,null,"",""]
[null,null,null,"",null,null,null,"",""]
[null,null,null,"",null,null,null,"",""]
[null,null,null,"",null,null,null,"",""]
[null,null,null,"",null,null,null,"",""]
[null,null,null,"",null,null,null,"",""]
[null,null,null,"",null,null,null,"",""]
[null,null,null,"",null,null,null,"",""]
[null,null,null,"",null,null,null,"",""]
[null,null,null,"",null,null,null,"",""]
[null,null,null,"",null,null,null,"",""]
[null,null,null,"",null,null,null,"",""]
[null,null,null,"",null,null,null,"",""]
[null,null,null,"",null,null,null,"",""]
[null,null,null,"",null,null,null,"",""]
[null,null,null,"",null,null,null,"",""]
[null,null,null,"",null,null,null,"",""]
[null,null,null,"",null,null,null,"",""]
[null,null,null,"",null,null,null,"",""]
[null,null,null,"",null,null,null,"",""]
[null,null,null,"",null,null,null,"",""]
[null,null,null,"",null,null,null,"",""]
[null,null,null,"",null,null,null,"",""]
[null,null,null,"",null,null,null,"",""]
[null,null,null,"",null,null,null,"",""]
[null,null,null,"",null,null,null,"",""]
[null,null,null,"",null,null,null,"",""]
[null,null,null,"",null,null,null,"",""]
[null,null,null,{"$f":"IF(OR(C2883=\"\",E2883=\"Finalizado\"),\"\",IF(H2883=\"No Prazo\",1,IF(H2883=\"Finalizado\",1,-1)))","v":""},null,null,null,{"$f":"IF(C2883=\"\",\"\",IF(E2883<>\"Finalizado\",IF(C2883<TODAY(),\"Em Atraso\",\"No Prazo\"),\"Finalizado\"))","v":""},{"$f":"IF(E2883=\"Finalizado\",\"\",IF(C2883=\"\",\"\",MONTH(C2883)))","v":""}]
[null,null,null,"",null,null,null,"",""]
[null,null,null,"",null,null,null,"",""]
[null,null,null,"",null,null,null,"",""]
[null,null,null,"",null,null,null,"",""]
[null,null,null,"",null,null,null,"",""]
[null,null,null,"",null,null,null,"",""]
[null,null,null,"",null,null,null,"",""]
[null,null,null,"",null,null,null,"",""]
[null,null,null,"",null,null,null,"",""]
[null,null,null,"",null,null,null,"",""]
[null,null,null,"",null,null,null,"",""]
[null,null,null,"",null,null,null,"",""]
[null,null,null,"",null,null,null,"",""]
[null,null,null,"",null,null,null,"",""]
[null,null,null,"",null,null,null,"",""]
[null,null,null,"",null,null,null,"",""]
[null,null,null,"",null,null,null,"",""]
[null,null,null,"",null,null,null,"",""]
[null,null,null,"",null,null,null,"",""]
[null,null,null,"",null,null,null,"",""]
[null,null,null,"",null,null,null,"",""]
[null,null,null,"",null,null,null,"",""]
[null,null,null,"",null,null,null,"",""]
[null,null,null,"",null,null,null,"",""]
[null,null,null,"",null,null,null,"",""]
[null,null,null,"",null,null,null,"",""]
[null,null,null,"",null,null,null,"",""]
[null,null,null,"",null,null,null,"",""]
[null,null,null,"",null,null,null,"",""]
[null,null,null,"",null,null,null,"",""]
[null,null,null,"",null,null,null,"",""]
[null,null,null,"",null,null,null,"",""]
[null,null,null,"",null,null,null,"",""]
[null,null,null,"",null,null,null,"",""]
[null,null,null,"",null,null,null,"",""]
[null,null,null,"",null,null,null,"",""]
[null,null,null,"",null,null,null,"",""]
[null,null,null,"",null,null,null,"",""]
[null,null,null,"",null,null,null,"",""]
[null,null,null,"",null,null,null,"",""]
[null,null,null,"",null,null,null,"",""]
[null,null,null,"",null,null,null,"",""]
[null,null,null,"",null,null,null,"",""]
[null,null,null,"",null,null,null,"",""]
[null,null,null,"",null,null,null,"",""]
[null,null,null,"",null,null,null,"",""]
[null,null,null,"",null,null,null,"",""]
[null,null,null,"",null,null,null,"",""]
[null,null,null,"",null,null,null,"",""]
[null,null,null,"",null,null,null,"",""]
[null,null,null,"",null,null,null,"",""]
[null,null,null,"",null,null,null,"",""]
[null,null,null,"",null,null,null,"",""]
[null,null,null,"",null,null,null,"",""]
[null,null,null,"",null,null,null,"",""]
[null,null,null,"",null,null,null,"",""]
[null,null,null,"",null,null,null,"",""]
[null,null,null,"",null,null,null,"",""]
[null,null,null,"",null,null,null,"",""]
[null,null,null,"",null,null,null,"",""]
[null,null,null,"",null,null,null,"",""]
[null,null,null,"",null,null,null,"",""]
[null,null,null,"",null,null,null,"",""]
[null,null,null,{"$f":"IF(OR(C2947=\"\",E2947=\"Finalizado\"),\"\",IF(H2947=\"No Prazo\",1,IF(H2947=\"Finalizado\",1,-1)))","v":""},null,null,null,{"$f":"IF(C2947=\"\",\"\",IF(E2947<>\"Finalizado\",IF(C2947<TODAY(),\"Em Atraso\",\"No Prazo\"),\"Finalizado\"))","v":""},{"$f":"IF(E2947=\"Finalizado\",\"\",IF(C2947=\"\",\"\",MONTH(C2947)))","v":""}]
[null,null,null,"",null,null,null,"",""]
[null,null,null,"",null,null,null,"",""]
[null,null,null,"",null,null,null,"",""]
[null,null,null,"",null,null,null,"",""]
[null,null,null,"",null,null,null,"",""]
[null,null,null,"",null,null,null,"",""]
[null,null,null,"",null,null,null,"",""]
[null,null,null,"",null,null,null,"",""]
[null,null,null,"",null,null,null,"",""]
[null,null,null,"",null,null,null,"",""]
[null,null,null,"",null,null,null,"",""]
[null,null,null,"",null,null,null,"",""]
[null,null,null,"",null,null,null,"",""]
[null,null,null,"",null,null,null,"",""]
[null,null,null,"",null,null,null,"",""]
[null,null,null,"",null,null,null,"",""]
[null,null,null,"",null,null,null,"",""]
[null,null,null,"",null,null,null,"",""]
[null,null,null,"",null,null,null,"",""]
[null,null,null,"",null,null,null,"",""]
[null,null,null,"",null,null,null,"",""]
[null,null,null,"",null,null,null,"",""]
[null,null,null,"",null,null,null,"",""]
[null,null,null,"",null,null,null,"",""]
[null,null,null,"",null,null,null,"",""]
[null,null,null,"",null,null,null,"",""]
[null,null,null,"",null,null,null,"",""]
[null,null,null,"",null,null,null,"",""]
[null,null,null,"",null,null,null,"",""]
[null,null,null,"",null,null,null,"",""]
[null,null,null,"",null,null,null,"",""]
[null,null,null,"",null,null,null,"",""]
[null,null,null,"",null,null,null,"",""]
[null,null,null,"",null,null,null,"",""]
[null,null,null,"",null,null,null,"",""]
[null,null,null,"",null,null,null,"",""]
[null,null,null,"",null,null,null,"",""]
[null,null,null,"",null,null,null,"",""]
[null,null,null,"",null,null,null,"",""]
[null,null,null,"",null,null,null,"",""]
[null,null,null,"",null,null,null,"",""]
[null,null,null,"",null,null,null,"",""]
[null,null,null,"",null,null,null,"",""]
[null,null,null,"",null,null,null,"",""]
[null,null,null,"",null,null,null,"",""]
[null,null,null,"",null,null,null,"",""]
[null,null,null,"",null,null,null,"",""]
[null,null,null,"",null,null,null,"",""]
[null,null,null,"",null,null,null,"",""]
[null,null,null,"",null,null,null,"",""]
[null,null,null,"",null,null,null,"",""]
[null,null,null,"",null,null,null,"",""]
[null,null,null,"",null,null,null,"",""]
[null,null,null,"",null,null,null,"",""]
[null,null,null,"",null,null,null,"",""]
[null,null,null,"",null,null,null,"",""]
[null,null,null,"",null,null,null,"",""]
[null,null,null,"",null,null,null,"",""]
[null,null,null,"",null,null,null,"",""]
[null,null,null,"",null,null,null,"",""]
[null,null,null,"",null,null,null,"",""]
[null,null,null,"",null,null,null,"",""]
[null,null,null,"",null,null,null,"",""]
[null,null,null,{"$f":"IF(OR(C3011=\"\",E3011=\"Finalizado\"),\"\",IF(H3011=\"No Prazo\",1,IF(H3011=\"Finalizado\",1,-1)))","v":""},null,null,null,{"$f":"IF(C3011=\"\",\"\",IF(E3011<>\"Finalizado\",IF(C3011<TODAY(),\"Em Atraso\",\"No Prazo\"),\"Finalizado\"))","v":""},{"$f":"IF(E3011=\"Finalizado\",\"\",IF(C3011=\"\",\"\",MONTH(C3011)))","v":""}]
[null,null,null,"",null,null,null,"",""]
[null,null,null,"",null,null,null,"",""]
[null,null,null,"",null,null,null,"",""]
[null,null,null,"",null,null,null,"",""]
[null,null,null,"",null,null,null,"",""]
[null,null,null,"",null,null,null,"",""]
[null,null,null,"",null,null,null,"",""]
[null,null,null,"",null,null,null,"",""]
[null,null,null,"",null,null,null,"",""]
[null,null,null,"",null,null,null,"",""]
[null,null,null,"",null,null,null,"",""]
[null,null,null,"",null,null,null,"",""]
[null,null,null,"",null,null,null,"",""]
[null,null,null,"",null,null,null,"",""]
[null,null,null,"",null,null,null,"",""]
[null,null,null,"",null,null,null,"",""]
[null,null,null,"",null,null,null,"",""]
[null,null,null,"",null,null,null,"",""]
[null,null,null,"",null,null,null,"",""]
[null,null,null,"",null,null,null,"",""]
[null,null,null,"",null,null,null,"",""]
[null,null,null,"",null,null,null,"",""]
[null,null,null,"",null,null,null,"",""]
[null,null,null,"",null,null,null,"",""]
[null,null,null,"",null,null,null,"",""]
[null,null,null,"",null,null,null,"",""]
[null,null,null,"",null,null,null,"",""]
[null,null,null,"",null,null,null,"",""]
[null,null,null,"",null,null,null,"",""]
[null,null,null,"",null,null,null,"",""]
[null,null,null,"",null,null,null,"",""]
[null,null,null,"",null,null,null,"",""]
[null,null,null,"",null,null,null,"",""]
[null,null,null,"",null,null,null,"",""]
[null,null,null,"",null,null,null,"",""]
[null,null,null,"",null,null,null,"",""]
[null,null,null,"",null,null,null,"",""]
[null,null,null,"",null,null,null,"",""]
[null,null,null,"",null,null,null,"",""]
[null,null,null,"",null,null,null,"",""]
[null,null,null,"",null,null,null,"",""]
[null,null,null,"",null,null,null,"",""]
[null,null,null,"",null,null,null,"",""]
[null,null,null,"",null,null,null,"",""]
[null,null,null,"",null,null,null,"",""]
[null,null,null,"",null,null,null,"",""]
[null,null,null,"",null,null,null,"",""]
[null,null,null,"",null,null,null,"",""]
[null,null,null,"",null,null,null,"",""]
[null,null,null,"",null,null,null,"",""]
[null,null,null,"",null,null,null,"",""]
[null,null,null,"",null,null,null,"",""]
[null,null,null,"",null,null,null,"",""]
[null,null,null,"",null,null,null,"",""]
[null,null,null,"",null,null,null,"",""]
[null,null,null,"",null,null,null,"",""]
[null,null,null,"",null,null,null,"",""]
[null,null,null,"",null,null,null,"",""]
[null,null,null,"",null,null,null,"",""]
[null,null,null,"",null,null,null,"",""]
[null,null,null,"",null,null,null,"",""]
[null,null,null,"",null,null,null,"",""]
[null,null,null,"",null,null,null,"",""]
[null,null,null,{"$f":"IF(OR(C3075=\"\",E3075=\"Finalizado\"),\"\",IF(H3075=\"No Prazo\",1,IF(H3075=\"Finalizado\",1,-1)))","v":""},null,null,null,{"$f":"IF(C3075=\"\",\"\",IF(E3075<>\"Finalizado\",IF(C3075<TODAY(),\"Em Atraso\",\"No Prazo\"),\"Finalizado\"))","v":""},{"$f":"IF(E3075=\"Finalizado\",\"\",IF(C3075=\"\",\"\",MONTH(C3075)))","v":""}]
[null,null,null,"",null,null,null,"",""]
[null,null,null,"",null,null,null,"",""]
[null,null,null,"",null,null,null,"",""]
[null,null,null,"",null,null,null,"",""]
[null,null,null,"",null,null,null,"",""]
[null,null,null,"",null,null,null,"",""]
[null,null,null,"",null,null,null,"",""]
[null,null,null,"",null,null,null,"",""]
[null,null,null,"",null,null,null,"",""]
[null,null,null,"",null,null,null,"",""]
[null,null,null,"",null,null,null,"",""]
[null,null,null,"",null,null,null,"",""]
[null,null,null,"",null,null,null,"",""]
[null,null,null,"",null,null,null,"",""]
[null,null,null,"",null,null,null,"",""]
[null,null,null,"",null,null,null,"",""]
[null,null,null,"",null,null,null,"",""]
[null,null,null,"",null,null,null,"",""]
[null,null,null,"",null,null,null,"",""]
[null,null,null,"",null,null,null,"",""]
[null,null,null,"",null,null,null,"",""]
[null,null,null,"",null,null,null,"",""]
[null,null,null,"",null,null,null,"",""]
[null,null,null,"",null,null,null,"",""]
[null,null,null,"",null,null,null,"",""]
[null,null,null,"",null,null,null,"",""]
[null,null,null,"",null,null,null,"",""]
[null,null,null,"",null,null,null,"",""]
[null,null,null,"",null,null,null,"",""]
[null,null,null,"",null,null,null,"",""]
[null,null,null,"",null,null,null,"",""]
[null,null,null,"",null,null,null,"",""]
[null,null,null,"",null,null,null,"",""]
[null,null,null,"",null,null,null,"",""]
[null,null,null,"",null,null,null,"",""]
[null,null,null,"",null,null,null,"",""]
[null,null,null,"",null,null,null,"",""]
[null,null,null,"",null,null,null,"",""]
[null,null,null,"",null,null,null,"",""]
[null,null,null,"",null,null,null,"",""]
[null,null,null,"",null,null,null,"",""]
[null,null,null,"",null,null,null,"",""]
[null,null,null,"",null,null,null,"",""]
[null,null,null,"",null,null,null,"",""]
[null,null,null,"",null,null,null,"",""]
[null,null,null,"",null,null,null,"",""]
[null,null,null,"",null,null,null,"",""]
[null,null,null,"",null,null,null,"",""]
[null,null,null,"",null,null,null,"",""]
[null,null,null,"",null,null,null,"",""]
[null,null,null,"",null,null,null,"",""]
[null,null,null,"",null,null,null,"",""]
[null,null,null,"",null,null,null,"",""]
[null,null,null,"",null,null,null,"",""]
[null,null,null,"",null,null,null,"",""]
[null,null,null,"",null,null,null,"",""]
[null,null,null,"",null,null,null,"",""]
[null,null,null,"",null,null,null,"",""]
[null,null,null,"",null,null,null,"",""]
[null,null,null,"",null,null,null,"",""]
[null,null,null,"",null,null,null,"",""]
[null,null,null,"",null,null,null,"",""]
[null,null,null,"",null,null,null,"",""]
[null,null,null,{"$f":"IF(OR(C3139=\"\",E3139=\"Finalizado\"),\"\",IF(H3139=\"No Prazo\",1,IF(H3139=\"Finalizado\",1,-1)))","v":""},null,null,null,{"$f":"IF(C3139=\"\",\"\",IF(E3139<>\"Finalizado\",IF(C3139<TODAY(),\"Em Atraso\",\"No Prazo\"),\"Finalizado\"))","v":""},{"$f":"IF(E3139=\"Finalizado\",\"\",IF(C3139=\"\",\"\",MONTH(C3139)))","v":""}]
[null,null,null,"",null,null,null,"",""]
[null,null,null,"",null,null,null,"",""]
[null,null,null,"",null,null,null,"",""]
[null,null,null,"",null,null,null,"",""]
[null,null,null,"",null,null,null,"",""]
[null,null,null,"",null,null,null,"",""]
[null,null,null,"",null,null,null,"",""]
[null,null,null,"",null,null,null,"",""]
[null,null,null,"",null,null,null,"",""]
[null,null,null,"",null,null,null,"",""]
[null,null,null,"",null,null,null,"",""]
[null,null,null,"",null,null,null,"",""]
[null,null,null,"",null,null,null,"",""]
[null,null,null,"",null,null,null,"",""]
[null,null,null,"",null,null,null,"",""]
[null,null,null,"",null,null,null,"",""]
[null,null,null,"",null,null,null,"",""]
[null,null,null,"",null,null,null,"",""]
[null,null,null,"",null,null,null,"",""]
[null,null,null,"",null,null,null,"",""]
[null,null,null,"",null,null,null,"",""]
[null,null,null,"",null,null,null,"",""]
[null,null,null,"",null,null,null,"",""]
[null,null,null,"",null,null,null,"",""]
[null,null,null,"",null,null,null,"",""]
[null,null,null,"",null,null,null,"",""]
[null,null,null,"",null,null,null,"",""]
[null,null,null,"",null,null,null,"",""]
[null,null,null,"",null,null,null,"",""]
[null,null,null,"",null,null,null,"",""]
[null,null,null,"",null,null,null,"",""]
[null,null,null,"",null,null,null,"",""]
[null,null,null,"",null,null,null,"",""]
[null,null,null,"",null,null,null,"",""]
[null,null,null,"",null,null,null,"",""]
[null,null,null,"",null,null,null,"",""]
[null,null,null,"",null,null,null,"",""]
[null,null,null,"",null,null,null,"",""]
[null,null,null,"",null,null,null,"",""]
[null,null,null,"",null,null,null,"",""]
[null,null,null,"",null,null,null,"",""]
[null,null,null,"",null,null,null,"",""]
[null,null,null,"",null,null,null,"",""]
[null,null,null,"",null,null,null,"",""]
[null,null,null,"",null,null,null,"",""]
[null,null,null,"",null,null,null,"",""]
[null,null,null,"",null,null,null,"",""]
[null,null,null,"",null,null,null,"",""]
[null,null,null,"",null,null,null,"",""]
[null,null,null,"",null,null,null,"",""]
[null,null,null,"",null,null,null,"",""]
[null,null,null,"",null,null,null,"",""]
[null,null,null,"",null,null,null,"",""]
[null,null,null,"",null,null,null,"",""]
[null,null,null,"",null,null,null,"",""]
[null,null,null,"",null,null,null,"",""]
[null,null,null,"",null,null,null,"",""]
[null,null,null,"",null,null,null,"",""]
[null,null,null,"",null,null,null,"",""]
[null,null,null,"",null,null,null,"",""]
[null,null,null,"",null,null,null,"",""]
[null,null,null,"",null,null,null,"",""]
[null,null,null,"",null,null,null,"",""]
[null,null,null,{"$f":"IF(OR(C3203=\"\",E3203=\"Finalizado\"),\"\",IF(H3203=\"No Prazo\",1,IF(H3203=\"Finalizado\",1,-1)))","v":""},null,null,null,{"$f":"IF(C3203=\"\",\"\",IF(E3203<>\"Finalizado\",IF(C3203<TODAY(),\"Em Atraso\",\"No Prazo\"),\"Finalizado\"))","v":""},{"$f":"IF(E3203=\"Finalizado\",\"\",IF(C3203=\"\",\"\",MONTH(C3203)))","v":""}]
[null,null,null,"",null,null,null,"",""]
[null,null,null,"",null,null,null,"",""]
[null,null,null,"",null,null,null,"",""]
[null,null,null,"",null,null,null,"",""]
[null,null,null,"",null,null,null,"",""]
[null,null,null,"",null,null,null,"",""]
[null,null,null,"",null,null,null,"",""]
[null,null,null,"",null,null,null,"",""]
[null,null,null,"",null,null,null,"",""]
[null,null,null,"",null,null,null,"",""]
[null,null,null,"",null,null,null,"",""]
[null,null,null,"",null,null,null,"",""]
[null,null,null,"",null,null,null,"",""]
[null,null,null,"",null,null,null,"",""]
[null,null,null,"",null,null,null,"",""]
[null,null,null,"",null,null,null,"",""]
[null,null,null,"",null,null,null,"",""]
[null,null,null,"",null,null,null,"",""]
[null,null,null,"",null,null,null,"",""]
[null,null,null,"",null,null,null,"",""]
[null,null,null,"",null,null,null,"",""]
[null,null,null,"",null,null,null,"",""]
[null,null,null,"",null,null,null,"",""]
[null,null,null,"",null,null,null,"",""]
[null,null,null,"",null,null,null,"",""]
[null,null,null,"",null,null,null,"",""]
[null,null,null,"",null,null,null,"",""]
[null,null,null,"",null,null,null,"",""]
[null,null,null,"",null,null,null,"",""]
[null,null,null,"",null,null,null,"",""]
[null,null,null,"",null,null,null,"",""]
[null,null,null,"",null,null,null,"",""]
[null,null,null,"",null,null,null,"",""]
[null,null,null,"",null,null,null,"",""]
[null,null,null,"",null,null,null,"",""]
[null,null,null,"",null,null,null,"",""]
[null,null,null,"",null,null,null,"",""]
[null,null,null,"",null,null,null,"",""]
[null,null,null,"",null,null,null,"",""]
[null,null,null,"",null,null,null,"",""]
[null,null,null,"",null,null,null,"",""]
[null,null,null,"",null,null,null,"",""]
[null,null,null,"",null,null,null,"",""]
[null,null,null,"",null,null,null,"",""]
[null,null,null,"",null,null,null,"",""]
[null,null,null,"",null,null,null,"",""]
[null,null,null,"",null,null,null,"",""]
[null,null,null,"",null,null,null,"",""]
[null,null,null,"",null,null,null,"",""]
[null,null,null,"",null,null,null,"",""]
[null,null,null,"",null,null,null,"",""]
[null,null,null,"",null,null,null,"",""]
[null,null,null,"",null,null,null,"",""]
[null,null,null,"",null,null,null,"",""]
[null,null,null,"",null,null,null,"",""]
[null,null,null,"",null,null,null,"",""]
[null,null,null,"",null,null,null,"",""]
[null,null,null,"",null,null,null,"",""]
[null,null,null,"",null,null,null,"",""]
[null,null,null,"",null,null,null,"",""]
[null,null,null,"",null,null,null,"",""]
[null,null,null,"",null,null,null,"",""]
[null,null,null,"",null,null,null,"",""]
[null,null,null,{"$f":"IF(OR(C3267=\"\",E3267=\"Finalizado\"),\"\",IF(H3267=\"No Prazo\",1,IF(H3267=\"Finalizado\",1,-1)))","v":""},null,null,null,{"$f":"IF(C3267=\"\",\"\",IF(E3267<>\"Finalizado\",IF(C3267<TODAY(),\"Em Atraso\",\"No Prazo\"),\"Finalizado\"))","v":""},{"$f":"IF(E3267=\"Finalizado\",\"\",IF(C3267=\"\",\"\",MONTH(C3267)))","v":""}]
[null,null,null,"",null,null,null,"",""]
[null,null,null,"",null,null,null,"",""]
[null,null,null,"",null,null,null,"",""]
[null,null,null,"",null,null,null,"",""]
[null,null,null,"",null,null,null,"",""]
[null,null,null,"",null,null,null,"",""]
[null,null,null,"",null,null,null,"",""]
[null,null,null,"",null,null,null,"",""]
[null,null,null,"",null,null,null,"",""]
[null,null,null,"",null,null,null,"",""]
[null,null,null,"",null,null,null,"",""]
[null,null,null,"",null,null,null,"",""]
[null,null,null,"",null,null,null,"",""]
[null,null,null,"",null,null,null,"",""]
[null,null,null,"",null,null,null,"",""]
[null,null,null,"",null,null,null,"",""]
[null,null,null,"",null,null,null,"",""]
[null,null,null,"",null,null,null,"",""]
[null,null,null,"",null,null,null,"",""]
[null,null,null,"",null,null,null,"",""]
[null,null,null,"",null,null,null,"",""]
[null,null,null,"",null,null,null,"",""]
[null,null,null,"",null,null,null,"",""]
[null,null,null,"",null,null,null,"",""]
[null,null,null,"",null,null,null,"",""]
[null,null,null,"",null,null,null,"",""]
[null,null,null,"",null,null,null,"",""]
[null,null,null,"",null,null,null,"",""]
[null,null,null,"",null,null,null,"",""]
[null,null,null,"",null,null,null,"",""]
[null,null,null,"",null,null,null,"",""]
[null,null,null,"",null,null,null,"",""]
[null,null,null,"",null,null,null,"",""]
[null,null,null,"",null,null,null,"",""]
[null,null,null,"",null,null,null,"",""]
[null,null,null,"",null,null,null,"",""]
[null,null,null,"",null,null,null,"",""]
[null,null,null,"",null,null,null,"",""]
[null,null,null,"",null,null,null,"",""]
[null,null,null,"",null,null,null,"",""]
[null,null,null,"",null,null,null,"",""]
[null,null,null,"",null,null,null,"",""]
[null,null,null,"",null,null,null,"",""]
[null,null,null,"",null,null,null,"",""]
[null,null,null,"",null,null,null,"",""]
[null,null,null,"",null,null,null,"",""]
[null,null,null,"",null,null,null,"",""]
[null,null,null,"",null,null,null,"",""]
[null,null,null,"",null,null,null,"",""]
[null,null,null,"",null,null,null,"",""]
[null,null,null,"",null,null,null,"",""]
[null,null,null,"",null,null,null,"",""]
[null,null,null,"",null,null,null,"",""]
[null,null,null,"",null,null,null,"",""]
[null,null,null,"",null,null,null,"",""]
[null,null,null,"",null,null,null,"",""]
[null,null,null,"",null,null,null,"",""]
[null,null,null,"",null,null,null,"",""]
[null,null,null,"",null,null,null,"",""]
[null,null,null,"",null,null,null,"",""]
[null,null,null,"",null,null,null,"",""]
[null,null,null,"",null,null,null,"",""]
[null,null,null,"",null,null,null,"",""]
[null,null,null,{"$f":"IF(OR(C3331=\"\",E3331=\"Finalizado\"),\"\",IF(H3331=\"No Prazo\",1,IF(H3331=\"Finalizado\",1,-1)))","v":""},null,null,null,{"$f":"IF(C3331=\"\",\"\",IF(E3331<>\"Finalizado\",IF(C3331<TODAY(),\"Em Atraso\",\"No Prazo\"),\"Finalizado\"))","v":""},{"$f":"IF(E3331=\"Finalizado\",\"\",IF(C3331=\"\",\"\",MONTH(C3331)))","v":""}]
[null,null,null,"",null,null,null,"",""]
[null,null,null,"",null,null,null,"",""]
[null,null,null,"",null,null,null,"",""]
[null,null,null,"",null,null,null,"",""]
[null,null,null,"",null,null,null,"",""]
[null,null,null,"",null,null,null,"",""]
[null,null,null,"",null,null,null,"",""]
[null,null,null,"",null,null,null,"",""]
[null,null,null,"",null,null,null,"",""]
[null,null,null,"",null,null,null,"",""]
[null,null,null,"",null,null,null,"",""]
[null,null,null,"",null,null,null,"",""]
[null,null,null,"",null,null,null,"",""]
[null,null,null,"",null,null,null,"",""]
[null,null,null,"",null,null,null,"",""]
[null,null,null,"",null,null,null,"",""]
[null,null,null,"",null,null,null,"",""]
[null,null,null,"",null,null,null,"",""]
[null,null,null,"",null,null,null,"",""]
[null,null,null,"",null,null,null,"",""]
[null,null,null,"",null,null,null,"",""]
[null,null,null,"",null,null,null,"",""]
[null,null,null,"",null,null,null,"",""]
[null,null,null,"",null,null,null,"",""]
[null,null,null,"",null,null,null,"",""]
[null,null,null,"",null,null,null,"",""]
[null,null,null,"",null,null,null,"",""]
[null,null,null,"",null,null,null,"",""]
[null,null,null,"",null,null,null,"",""]
[null,null,null,"",null,null,null,"",""]
[null,null,null,"",null,null,null,"",""]
[null,null,null,"",null,null,null,"",""]
[null,null,null,"",null,null,null,"",""]
[null,null,null,"",null,null,null,"",""]
[null,null,null,"",null,null,null,"",""]
[null,null,null,"",null,null,null,"",""]
[null,null,null,"",null,null,null,"",""]
[null,null,null,"",null,null,null,"",""]
[null,null,null,"",null,null,null,"",""]
[null,null,null,"",null,null,null,"",""]
[null,null,null,"",null,null,null,"",""]
[null,null,null,"",null,null,null,"",""]
[null,null,null,"",null,null,null,"",""]
[null,null,null,"",null,null,null,"",""]
[null,null,null,"",null,null,null,"",""]
[null,null,null,"",null,null,null,"",""]
[null,null,null,"",null,null,null,"",""]
[null,null,null,"",null,null,null,"",""]
[null,null,null,"",null,null,null,"",""]
[null,null,null,"",null,null,null,"",""]
[null,null,null,"",null,null,null,"",""]
[null,null,null,"",null,null,null,"",""]
[null,null,null,"",null,null,null,"",""]
[null,null,null,"",null,null,null,"",""]
[null,null,null,"",null,null,null,"",""]
[null,null,null,"",null,null,null,"",""]
[null,null,null,"",null,null,null,"",""]
[null,null,null,"",null,null,null,"",""]
[null,null,null,"",null,null,null,"",""]
[null,null,null,"",null,null,null,"",""]
[null,null,null,"",null,null,null,"",""]
[null,null,null,"",null,null,null,"",""]
[null,null,null,"",null,null,null,"",""]
[null,null,null,{"$f":"IF(OR(C3395=\"\",E3395=\"Finalizado\"),\"\",IF(H3395=\"No Prazo\",1,IF(H3395=\"Finalizado\",1,-1)))","v":""},null,null,null,{"$f":"IF(C3395=\"\",\"\",IF(E3395<>\"Finalizado\",IF(C3395<TODAY(),\"Em Atraso\",\"No Prazo\"),\"Finalizado\"))","v":""},{"$f":"IF(E3395=\"Finalizado\",\"\",IF(C3395=\"\",\"\",MONTH(C3395)))","v":""}]
[null,null,null,"",null,null,null,"",""]
[null,null,null,"",null,null,null,"",""]
[null,null,null,"",null,null,null,"",""]
[null,null,null,"",null,null,null,"",""]
[null,null,null,"",null,null,null,"",""]
[null,null,null,"",null,null,null,"",""]
[null,null,null,"",null,null,null,"",""]
[null,null,null,"",null,null,null,"",""]
[null,null,null,"",null,null,null,"",""]
[null,null,null,"",null,null,null,"",""]
[null,null,null,"",null,null,null,"",""]
[null,null,null,"",null,null,null,"",""]
[null,null,null,"",null,null,null,"",""]
[null,null,null,"",null,null,null,"",""]
[null,null,null,"",null,null,null,"",""]
[null,null,null,"",null,null,null,"",""]
[null,null,null,"",null,null,null,"",""]
[null,null,null,"",null,null,null,"",""]
[null,null,null,"",null,null,null,"",""]
[null,null,null,"",null,null,null,"",""]
[null,null,null,"",null,null,null,"",""]
[null,null,null,"",null,null,null,"",""]
[null,null,null,"",null,null,null,"",""]
[null,null,null,"",null,null,null,"",""]
[null,null,null,"",null,null,null,"",""]
[null,null,null,"",null,null,null,"",""]
[null,null,null,"",null,null,null,"",""]
[null,null,null,"",null,null,null,"",""]
[null,null,null,"",null,null,null,"",""]
[null,null,null,"",null,null,null,"",""]
[null,null,null,"",null,null,null,"",""]
[null,null,null,"",null,null,null,"",""]
[null,null,null,"",null,null,null,"",""]
[null,null,null,"",null,null,null,"",""]
[null,null,null,"",null,null,null,"",""]
[null,null,null,"",null,null,null,"",""]
[null,null,null,"",null,null,null,"",""]
[null,null,null,"",null,null,null,"",""]
[null,null,null,"",null,null,null,"",""]
[null,null,null,"",null,null,null,"",""]
[null,null,null,"",null,null,null,"",""]
[null,null,null,"",null,null,null,"",""]
[null,null,null,"",null,null,null,"",""]
[null,null,null,"",null,null,null,"",""]
[null,null,null,"",null,null,null,"",""]
[null,null,null,"",null,null,null,"",""]
[null,null,null,"",null,null,null,"",""]
[null,null,null,"",null,null,null,"",""]
[null,null,null,"",null,null,null,"",""]
[null,null,null,"",null,null,null,"",""]
[null,null,null,"",null,null,null,"",""]
[null,null,null,"",null,null,null,"",""]
[null,null,null,"",null,null,null,"",""]
[null,null,null,"",null,null,null,"",""]
[null,null,null,"",null,null,null,"",""]
[null,null,null,"",null,null,null,"",""]
[null,null,null,"",null,null,null,"",""]
[null,null,null,"",null,null,null,"",""]
[null,null,null,"",null,null,null,"",""]
[null,null,null,"",null,null,null,"",""]
[null,null,null,"",null,null,null,"",""]
[null,null,null,"",null,null,null,"",""]
[null,null,null,"",null,null,null,"",""]
[null,null,null,{"$f":"IF(OR(C3459=\"\",E3459=\"Finalizado\"),\"\",IF(H3459=\"No Prazo\",1,IF(H3459=\"Finalizado\",1,-1)))","v":""},null,null,null,{"$f":"IF(C3459=\"\",\"\",IF(E3459<>\"Finalizado\",IF(C3459<TODAY(),\"Em Atraso\",\"No Prazo\"),\"Finalizado\"))","v":""},{"$f":"IF(E3459=\"Finalizado\",\"\",IF(C3459=\"\",\"\",MONTH(C3459)))","v":""}]
[null,null,null,"",null,null,null,"",""]
[null,null,null,"",null,null,null,"",""]
[null,null,null,"",null,null,null,"",""]
[null,null,null,"",null,null,null,"",""]
[null,null,null,"",null,null,null,"",""]
[null,null,null,"",null,null,null,"",""]
[null,null,null,"",null,null,null,"",""]
[null,null,null,"",null,null,null,"",""]
[null,null,null,"",null,null,null,"",""]
[null,null,null,"",null,null,null,"",""]
[null,null,null,"",null,null,null,"",""]
[null,null,null,"",null,null,null,"",""]
[null,null,null,"",null,null,null,"",""]
[null,null,null,"",null,null,null,"",""]
[null,null,null,"",null,null,null,"",""]
[null,null,null,"",null,null,null,"",""]
[null,null,null,"",null,null,null,"",""]
[null,null,null,"",null,null,null,"",""]
[null,null,null,"",null,null,null,"",""]
[null,null,null,"",null,null,null,"",""]
[null,null,null,"",null,null,null,"",""]
[null,null,null,"",null,null,null,"",""]
[null,null,null,"",null,null,null,"",""]
[null,null,null,"",null,null,null,"",""]
[null,null,null,"",null,null,null,"",""]
[null,null,null,"",null,null,null,"",""]
[null,null,null,"",null,null,null,"",""]
[null,null,null,"",null,null,null,"",""]
[null,null,null,"",null,null,null,"",""]
[null,null,null,"",null,null,null,"",""]
[null,null,null,"",null,null,null,"",""]
[null,null,null,"",null,null,null,"",""]
[null,null,null,"",null,null,null,"",""]
[null,null,null,"",null,null,null,"",""]
[null,null,null,"",null,null,null,"",""]
[null,null,null,"",null,null,null,"",""]
[null,null,null,"",null,null,null,"",""]
[null,null,null,"",null,null,null,"",""]
[null,null,null,"",null,null,null,"",""]
[null,null,null,"",null,null,null,"",""]
[null,null,null,"",null,null,null,"",""]
[null,null,null,"",null,null,null,"",""]
[null,null,null,"",null,null,null,"",""]
[null,null,null,"",null,null,null,"",""]
[null,null,null,"",null,null,null,"",""]
[null,null,null,"",null,null,null,"",""]
[null,null,null,"",null,null,null,"",""]
[null,null,null,"",null,null,null,"",""]
[null,null,null,"",null,null,null,"",""]
[null,null,null,"",null,null,null,"",""]
[null,null,null,"",null,null,null,"",""]
[null,null,null,"",null,null,null,"",""]
[null,null,null,"",null,null,null,"",""]
[null,null,null,"",null,null,null,"",""]
[null,null,null,"",null,null,null,"",""]
[null,null,null,"",null,null,null,"",""]
[null,null,null,"",null,null,null,"",""]
[null,null,null,"",null,null,null,"",""]
[null,null,null,"",null,null,null,"",""]
[null,null,null,"",null,null,null,"",""]
[null,null,null,"",null,null,null,"",""]
[null,null,null,"",null,null,null,"",""]
[null,null,null,"",null,null,null,"",""]
[null,null,null,{"$f":"IF(OR(C3523=\"\",E3523=\"Finalizado\"),\"\",IF(H3523=\"No Prazo\",1,IF(H3523=\"Finalizado\",1,-1)))","v":""},null,null,null,{"$f":"IF(C3523=\"\",\"\",IF(E3523<>\"Finalizado\",IF(C3523<TODAY(),\"Em Atraso\",\"No Prazo\"),\"Finalizado\"))","v":""},{"$f":"IF(E3523=\"Finalizado\",\"\",IF(C3523=\"\",\"\",MONTH(C3523)))","v":""}]
[null,null,null,"",null,null,null,"",""]
[null,null,null,"",null,null,null,"",""]
[null,null,null,"",null,null,null,"",""]
[null,null,null,"",null,null,null,"",""]
[null,null,null,"",null,null,null,"",""]
[null,null,null,"",null,null,null,"",""]
[null,null,null,"",null,null,null,"",""]
[null,null,null,"",null,null,null,"",""]
[null,null,null,"",null,null,null,"",""]
[null,null,null,"",null,null,null,"",""]
[null,null,null,"",null,null,null,"",""]
[null,null,null,"",null,null,null,"",""]
[null,null,null,"",null,null,null,"",""]
[null,null,null,"",null,null,null,"",""]
[null,null,null,"",null,null,null,"",""]
[null,null,null,"",null,null,null,"",""]
[null,null,null,"",null,null,null,"",""]
[null,null,null,"",null,null,null,"",""]
[null,null,null,"",null,null,null,"",""]
[null,null,null,"",null,null,null,"",""]
[null,null,null,"",null,null,null,"",""]
[null,null,null,"",null,null,null,"",""]
[null,null,null,"",null,null,null,"",""]
[null,null,null,"",null,null,null,"",""]
[null,null,null,"",null,null,null,"",""]
[null,null,null,"",null,null,null,"",""]
[null,null,null,"",null,null,null,"",""]
[null,null,null,"",null,null,null,"",""]
[null,null,null,"",null,null,null,"",""]
[null,null,null,"",null,null,null,"",""]
[null,null,null,"",null,null,null,"",""]
[null,null,null,"",null,null,null,"",""]
[null,null,null,"",null,null,null,"",""]
[null,null,null,"",null,null,null,"",""]
[null,null,null,"",null,null,null,"",""]
[null,null,null,"",null,null,null,"",""]
[null,null,null,"",null,null,null,"",""]
[null,null,null,"",null,null,null,"",""]
[null,null,null,"",null,null,null,"",""]
[null,null,null,"",null,null,null,"",""]
[null,null,null,"",null,null,null,"",""]
[null,null,null,"",null,null,null,"",""]
[null,null,null,"",null,null,null,"",""]
[null,null,null,"",null,null,null,"",""]
[null,null,null,"",null,null,null,"",""]
[null,null,null,"",null,null,null,"",""]
[null,null,null,"",null,null,null,"",""]
[null,null,null,"",null,null,null,"",""]
[null,null,null,"",null,null,null,"",""]
[null,null,null,"",null,null,null,"",""]
[null,null,null,"",null,null,null,"",""]
[null,null,null,"",null,null,null,"",""]
[null,null,null,"",null,null,null,"",""]
[null,null,null,"",null,null,null,"",""]
[null,null,null,"",null,null,null,"",""]
[null,null,null,"",null,null,null,"",""]
[null,null,null,"",null,null,null,"",""]
[null,null,null,"",null,null,null,"",""]
[null,null,null,"",null,null,null,"",""]
[null,null,null,"",null,null,null,"",""]
[null,null,null,"",null,null,null,"",""]
[null,null,null,"",null,null,null,"",""]
[null,null,null,"",null,null,null,"",""]
[null,null,null,{"$f":"IF(OR(C3587=\"\",E3587=\"Finalizado\"),\"\",IF(H3587=\"No Prazo\",1,IF(H3587=\"Finalizado\",1,-1)))","v":""},null,null,null,{"$f":"IF(C3587=\"\",\"\",IF(E3587<>\"Finalizado\",IF(C3587<TODAY(),\"Em Atraso\",\"No Prazo\"),\"Finalizado\"))","v":""},{"$f":"IF(E3587=\"Finalizado\",\"\",IF(C3587=\"\",\"\",MONTH(C3587)))","v":""}]
[null,null,null,"",null,null,null,"",""]
[null,null,null,"",null,null,null,"",""]
[null,null,null,"",null,null,null,"",""]
[null,null,null,"",null,null,null,"",""]
[null,null,null,"",null,null,null,"",""]
[null,null,null,"",null,null,null,"",""]
[null,null,null,"",null,null,null,"",""]
[null,null,null,"",null,null,null,"",""]
[null,null,null,"",null,null,null,"",""]
[null,null,null,"",null,null,null,"",""]
[null,null,null,"",null,null,null,"",""]
[null,null,null,"",null,null,null,"",""]
[null,null,null,"",null,null,null,"",""]
[null,null,null,"",null,null,null,"",""]
[null,null,null,"",null,null,null,"",""]
[null,null,null,"",null,null,null,"",""]
[null,null,null,"",null,null,null,"",""]
[null,null,null,"",null,null,null,"",""]
[null,null,null,"",null,null,null,"",""]
[null,null,null,"",null,null,null,"",""]
[null,null,null,"",null,null,null,"",""]
[null,null,null,"",null,null,null,"",""]
[null,null,null,"",null,null,null,"",""]
[null,null,null,"",null,null,null,"",""]
[null,null,null,"",null,null,null,"",""]
[null,null,null,"",null,null,null,"",""]
[null,null,null,"",null,null,null,"",""]
[null,null,null,"",null,null,null,"",""]
[null,null,null,"",null,null,null,"",""]
[null,null,null,"",null,null,null,"",""]
[null,null,null,"",null,null,null,"",""]
[null,null,null,"",null,null,null,"",""]
[null,null,null,"",null,null,null,"",""]
[null,null,null,"",null,null,null,"",""]
[null,null,null,"",null,null,null,"",""]
[null,null,null,"",null,null,null,"",""]
[null,null,null,"",null,null,null,"",""]
[null,null,null,"",null,null,null,"",""]
[null,null,null,"",null,null,null,"",""]
[null,null,null,"",null,null,null,"",""]
[null,null,null,"",null,null,null,"",""]
[null,null,null,"",null,null,null,"",""]
[null,null,null,"",null,null,null,"",""]
[null,null,null,"",null,null,null,"",""]
[null,null,null,"",null,null,null,"",""]
[null,null,null,"",null,null,null,"",""]
[null,null,null,"",null,null,null,"",""]
[null,null,null,"",null,null,null,"",""]
[null,null,null,"",null,null,null,"",""]
[null,null,null,"",null,null,null,"",""]
[null,null,null,"",null,null,null,"",""]
[null,null,null,"",null,null,null,"",""]
[null,null,null,"",null,null,null,"",""]
[null,null,null,"",null,null,null,"",""]
[null,null,null,"",null,null,null,"",""]
[null,null,null,"",null,null,null,"",""]
[null,null,null,"",null,null,null,"",""]
[null,null,null,"",null,null,null,"",""]
[null,null,null,"",null,null,null,"",""]
[null,null,null,"",null,null,null,"",""]
[null,null,null,"",null,null,null,"",""]
[null,null,null,"",null,null,null,"",""]
[null,null,null,"",null,null,null,"",""]
[null,null,null,{"$f":"IF(OR(C3651=\"\",E3651=\"Finalizado\"),\"\",IF(H3651=\"No Prazo\",1,IF(H3651=\"Finalizado\",1,-1)))","v":""},null,null,null,{"$f":"IF(C3651=\"\",\"\",IF(E3651<>\"Finalizado\",IF(C3651<TODAY(),\"Em Atraso\",\"No Prazo\"),\"Finalizado\"))","v":""},{"$f":"IF(E3651=\"Finalizado\",\"\",IF(C3651=\"\",\"\",MONTH(C3651)))","v":""}]
[null,null,null,"",null,null,null,"",""]
[null,null,null,"",null,null,null,"",""]
[null,null,null,"",null,null,null,"",""]
[null,null,null,"",null,null,null,"",""]
[null,null,null,"",null,null,null,"",""]
[null,null,null,"",null,null,null,"",""]
[null,null,null,"",null,null,null,"",""]
[null,null,null,"",null,null,null,"",""]
[null,null,null,"",null,null,null,"",""]
[null,null,null,"",null,null,null,"",""]
[null,null,null,"",null,null,null,"",""]
[null,null,null,"",null,null,null,"",""]
[null,null,null,"",null,null,null,"",""]
[null,null,null,"",null,null,null,"",""]
[null,null,null,"",null,null,null,"",""]
[null,null,null,"",null,null,null,"",""]
[null,null,null,"",null,null,null,"",""]
[null,null,null,"",null,null,null,"",""]
[null,null,null,"",null,null,null,"",""]
[null,null,null,"",null,null,null,"",""]
[null,null,null,"",null,null,null,"",""]
[null,null,null,"",null,null,null,"",""]
[null,null,null,"",null,null,null,"",""]
[null,null,null,"",null,null,null,"",""]
[null,null,null,"",null,null,null,"",""]
[null,null,null,"",null,null,null,"",""]
[null,null,null,"",null,null,null,"",""]
[null,null,null,"",null,null,null,"",""]
[null,null,null,"",null,null,null,"",""]
[null,null,null,"",null,null,null,"",""]
[null,null,null,"",null,null,null,"",""]
[null,null,null,"",null,null,null,"",""]
[null,null,null,"",null,null,null,"",""]
[null,null,null,"",null,null,null,"",""]
[null,null,null,"",null,null,null,"",""]
[null,null,null,"",null,null,null,"",""]
[null,null,null,"",null,null,null,"",""]
[null,null,null,"",null,null,null,"",""]
[null,null,null,"",null,null,null,"",""]
[null,null,null,"",null,null,null,"",""]
[null,null,null,"",null,null,null,"",""]
[null,null,null,"",null,null,null,"",""]
[null,null,null,"",null,null,null,"",""]
[null,null,null,"",null,null,null,"",""]
[null,null,null,"",null,null,null,"",""]
[null,null,null,"",null,null,null,"",""]
[null,null,null,"",null,null,null,"",""]
[null,null,null,"",null,null,null,"",""]
[null,null,null,"",null,null,null,"",""]
[null,null,null,"",null,null,null,"",""]
[null,null,null,"",null,null,null,"",""]
[null,null,null,"",null,null,null,"",""]
[null,null,null,"",null,null,null,"",""]
[null,null,null,"",null,null,null,"",""]
[null,null,null,"",null,null,null,"",""]
[null,null,null,"",null,null,null,"",""]
[null,null,null,"",null,null,null,"",""]
[null,null,null,"",null,null,null,"",""]
[null,null,null,"",null,null,null,"",""]
[null,null,null,"",null,null,null,"",""]
[null,null,null,"",null,null,null,"",""]
[null,null,null,"",null,null,null,"",""]
[null,null,null,"",null,null,null,"",""]
[null,null,null,{"$f":"IF(OR(C3715=\"\",E3715=\"Finalizado\"),\"\",IF(H3715=\"No Prazo\",1,IF(H3715=\"Finalizado\",1,-1)))","v":""},null,null,null,{"$f":"IF(C3715=\"\",\"\",IF(E3715<>\"Finalizado\",IF(C3715<TODAY(),\"Em Atraso\",\"No Prazo\"),\"Finalizado\"))","v":""},{"$f":"IF(E3715=\"Finalizado\",\"\",IF(C3715=\"\",\"\",MONTH(C3715)))","v":""}]
[null,null,null,"",null,null,null,"",""]
[null,null,null,"",null,null,null,"",""]
[null,null,null,"",null,null,null,"",""]
[null,null,null,"",null,null,null,"",""]
[null,null,null,"",null,null,null,"",""]
[null,null,null,"",null,null,null,"",""]
[null,null,null,"",null,null,null,"",""]
[null,null,null,"",null,null,null,"",""]
[null,null,null,"",null,null,null,"",""]
[null,null,null,"",null,null,null,"",""]
[null,null,null,"",null,null,null,"",""]
[null,null,null,"",null,null,null,"",""]
[null,null,null,"",null,null,null,"",""]
[null,null,null,"",null,null,null,"",""]
[null,null,null,"",null,null,null,"",""]
[null,null,null,"",null,null,null,"",""]
[null,null,null,"",null,null,null,"",""]
[null,null,null,"",null,null,null,"",""]
[null,null,null,"",null,null,null,"",""]
[null,null,null,"",null,null,null,"",""]
[null,null,null,"",null,null,null,"",""]
[null,null,null,"",null,null,null,"",""]
[null,null,null,"",null,null,null,"",""]
[null,null,null,"",null,null,null,"",""]
[null,null,null,"",null,null,null,"",""]
[null,null,null,"",null,null,null,"",""]
[null,null,null,"",null,null,null,"",""]
[null,null,null,"",null,null,null,"",""]
[null,null,null,"",null,null,null,"",""]
[null,null,null,"",null,null,null,"",""]
[null,null,null,"",null,null,null,"",""]
[null,null,null,"",null,null,null,"",""]
[null,null,null,"",null,null,null,"",""]
[null,null,null,"",null,null,null,"",""]
[null,null,null,"",null,null,null,"",""]
[null,null,null,"",null,null,null,"",""]
[null,null,null,"",null,null,null,"",""]
[null,null,null,"",null,null,null,"",""]
[null,null,null,"",null,null,null,"",""]
[null,null,null,"",null,null,null,"",""]
[null,null,null,"",null,null,null,"",""]
[null,null,null,"",null,null,null,"",""]
[null,null,null,"",null,null,null,"",""]
[null,null,null,"",null,null,null,"",""]
[null,null,null,"",null,null,null,"",""]
[null,null,null,"",null,null,null,"",""]
[null,null,null,"",null,null,null,"",""]
[null,null,null,"",null,null,null,"",""]
[null,null,null,"",null,null,null,"",""]
[null,null,null,"",null,null,null,"",""]
[null,null,null,"",null,null,null,"",""]
[null,null,null,"",null,null,null,"",""]
[null,null,null,"",null,null,null,"",""]
[null,null,null,"",null,null,null,"",""]
[null,null,null,"",null,null,null,"",""]
[null,null,null,"",null,null,null,"",""]
[null,null,null,"",null,null,null,"",""]
[null,null,null,"",null,null,null,"",""]
[null,null,null,"",null,null,null,"",""]
[null,null,null,"",null,null,null,"",""]
[null,null,null,"",null,null,null,"",""]
[null,null,null,"",null,null,null,"",""]
[null,null,null,"",null,null,null,"",""]
[null,null,null,{"$f":"IF(OR(C3779=\"\",E3779=\"Finalizado\"),\"\",IF(H3779=\"No Prazo\",1,IF(H3779=\"Finalizado\",1,-1)))","v":""},null,null,null,{"$f":"IF(C3779=\"\",\"\",IF(E3779<>\"Finalizado\",IF(C3779<TODAY(),\"Em Atraso\",\"No Prazo\"),\"Finalizado\"))","v":""},{"$f":"IF(E3779=\"Finalizado\",\"\",IF(C3779=\"\",\"\",MONTH(C3779)))","v":""}]
[null,null,null,"",null,null,null,"",""]
[null,null,null,"",null,null,null,"",""]
[null,null,null,"",null,null,null,"",""]
[null,null,null,"",null,null,null,"",""]
[null,null,null,"",null,null,null,"",""]
[null,null,null,"",null,null,null,"",""]
[null,null,null,"",null,null,null,"",""]
[null,null,null,"",null,null,null,"",""]
[null,null,null,"",null,null,null,"",""]
[null,null,null,"",null,null,null,"",""]
[null,null,null,"",null,null,null,"",""]
[null,null,null,"",null,null,null,"",""]
[null,null,null,"",null,null,null,"",""]
[null,null,null,"",null,null,null,"",""]
[null,null,null,"",null,null,null,"",""]
[null,null,null,"",null,null,null,"",""]
[null,null,null,"",null,null,null,"",""]
[null,null,null,"",null,null,null,"",""]
[null,null,null,"",null,null,null,"",""]
[null,null,null,"",null,null,null,"",""]
[null,null,null,"",null,null,null,"",""]
[null,null,null,"",null,null,null,"",""]
[null,null,null,"",null,null,null,"",""]
[null,null,null,"",null,null,null,"",""]
[null,null,null,"",null,null,null,"",""]
[null,null,null,"",null,null,null,"",""]
[null,null,null,"",null,null,null,"",""]
[null,null,null,"",null,null,null,"",""]
[null,null,null,"",null,null,null,"",""]
[null,null,null,"",null,null,null,"",""]
[null,null,null,"",null,null,null,"",""]
[null,null,null,"",null,null,null,"",""]
[null,null,null,"",null,null,null,"",""]
[null,null,null,"",null,null,null,"",""]
[null,null,null,"",null,null,null,"",""]
[null,null,null,"",null,null,null,"",""]
[null,null,null,"",null,null,null,"",""]
[null,null,null,"",null,null,null,"",""]
[null,null,null,"",null,null,null,"",""]
[null,null,null,"",null,null,null,"",""]
[null,null,null,"",null,null,null,"",""]
[null,null,null,"",null,null,null,"",""]
[null,null,null,"",null,null,null,"",""]
[null,null,null,"",null,null,null,"",""]
[null,null,null,"",null,null,null,"",""]
[null,null,null,"",null,null,null,"",""]
[null,null,null,"",null,null,null,"",""]
[null,null,null,"",null,null,null,"",""]
[null,null,null,"",null,null,null,"",""]
[null,null,null,"",null,null,null,"",""]
[null,null,null,"",null,null,null,"",""]
[null,null,null,"",null,null,null,"",""]
[null,null,null,"",null,null,null,"",""]
[null,null,null,"",null,null,null,"",""]
[null,null,null,"",null,null,null,"",""]
[null,null,null,"",null,null,null,"",""]
[null,null,null,"",null,null,null,"",""]
[null,null,null,"",null,null,null,"",""]
[null,null,null,"",null,null,null,"",""]
[null,null,null,"",null,null,null,"",""]
[null,null,null,"",null,null,null,"",""]
[null,null,null,"",null,null,null,"",""]
[null,null,null,"",null,null,null,"",""]
[null,null,null,{"$f":"IF(OR(C3843=\"\",E3843=\"Finalizado\"),\"\",IF(H3843=\"No Prazo\",1,IF(H3843=\"Finalizado\",1,-1)))","v":""},null,null,null,{"$f":"IF(C3843=\"\",\"\",IF(E3843<>\"Finalizado\",IF(C3843<TODAY(),\"Em Atraso\",\"No Prazo\"),\"Finalizado\"))","v":""},{"$f":"IF(E3843=\"Finalizado\",\"\",IF(C3843=\"\",\"\",MONTH(C3843)))","v":""}]
[null,null,null,"",null,null,null,"",""]
[null,null,null,"",null,null,null,"",""]
[null,null,null,"",null,null,null,"",""]
[null,null,null,"",null,null,null,"",""]
[null,null,null,"",null,null,null,"",""]
[null,null,null,"",null,null,null,"",""]
[null,null,null,"",null,null,null,"",""]
[null,null,null,"",null,null,null,"",""]
[null,null,null,"",null,null,null,"",""]
[null,null,null,"",null,null,null,"",""]
[null,null,null,"",null,null,null,"",""]
[null,null,null,"",null,null,null,"",""]
[null,null,null,"",null,null,null,"",""]
[null,null,null,"",null,null,null,"",""]
[null,null,null,"",null,null,null,"",""]
[null,null,null,"",null,null,null,"",""]
[null,null,null,"",null,null,null,"",""]
[null,null,null,"",null,null,null,"",""]
[null,null,null,"",null,null,null,"",""]
[null,null,null,"",null,null,null,"",""]
[null,null,null,"",null,null,null,"",""]
[null,null,null,"",null,null,null,"",""]
[null,null,null,"",null,null,null,"",""]
[null,null,null,"",null,null,null,"",""]
[null,null,null,"",null,null,null,"",""]
[null,null,null,"",null,null,null,"",""]
[null,null,null,"",null,null,null,"",""]
[null,null,null,"",null,null,null,"",""]
[null,null,null,"",null,null,null,"",""]
[null,null,null,"",null,null,null,"",""]
[null,null,null,"",null,null,null,"",""]
[null,null,null,"",null,null,null,"",""]
[null,null,null,"",null,null,null,"",""]
[null,null,null,"",null,null,null,"",""]
[null,null,null,"",null,null,null,"",""]
[null,null,null,"",null,null,null,"",""]
[null,null,null,"",null,null,null,"",""]
[null,null,null,"",null,null,null,"",""]
[null,null,null,"",null,null,null,"",""]
[null,null,null,"",null,null,null,"",""]
[null,null,null,"",null,null,null,"",""]
[null,null,null,"",null,null,null,"",""]
[null,null,null,"",null,null,null,"",""]
[null,null,null,"",null,null,null,"",""]
[null,null,null,"",null,null,null,"",""]
[null,null,null,"",null,null,null,"",""]
[null,null,null,"",null,null,null,"",""]
[null,null,null,"",null,null,null,"",""]
[null,null,null,"",null,null,null,"",""]
[null,null,null,"",null,null,null,"",""]
[null,null,null,"",null,null,null,"",""]
[null,null,null,"",null,null,null,"",""]
[null,null,null,"",null,null,null,"",""]
[null,null,null,"",null,null,null,"",""]
[null,null,null,"",null,null,null,"",""]
[null,null,null,"",null,null,null,"",""]
[null,null,null,"",null,null,null,"",""]
[null,null,null,"",null,null,null,"",""]
[null,null,null,"",null,null,null,"",""]
[null,null,null,"",null,null,null,"",""]
[null,null,null,"",null,null,null,"",""]
[null,null,null,"",null,null,null,"",""]
[null,null,null,"",null,null,null,"",""]
[null,null,null,{"$f":"IF(OR(C3907=\"\",E3907=\"Finalizado\"),\"\",IF(H3907=\"No Prazo\",1,IF(H3907=\"Finalizado\",1,-1)))","v":""},null,null,null,{"$f":"IF(C3907=\"\",\"\",IF(E3907<>\"Finalizado\",IF(C3907<TODAY(),\"Em Atraso\",\"No Prazo\"),\"Finalizado\"))","v":""},{"$f":"IF(E3907=\"Finalizado\",\"\",IF(C3907=\"\",\"\",MONTH(C3907)))","v":""}]
[null,null,null,"",null,null,null,"",""]
[null,null,null,"",null,null,null,"",""]
[null,null,null,"",null,null,null,"",""]
[null,null,null,"",null,null,null,"",""]
[null,null,null,"",null,null,null,"",""]
[null,null,null,"",null,null,null,"",""]
[null,null,null,"",null,null,null,"",""]
[null,null,null,"",null,null,null,"",""]
[null,null,null,"",null,null,null,"",""]
[null,null,null,"",null,null,null,"",""]
[null,null,null,"",null,null,null,"",""]
[null,null,null,"",null,null,null,"",""]
[null,null,null,"",null,null,null,"",""]
[null,null,null,"",null,null,null,"",""]
[null,null,null,"",null,null,null,"",""]
[null,null,null,"",null,null,null,"",""]
[null,null,null,"",null,null,null,"",""]
[null,null,null,"",null,null,null,"",""]
[null,null,null,"",null,null,null,"",""]
[null,null,null,"",null,null,null,"",""]
[null,null,null,"",null,null,null,"",""]
[null,null,null,"",null,null,null,"",""]
[null,null,null,"",null,null,null,"",""]
[null,null,null,"",null,null,null,"",""]
[null,null,null,"",null,null,null,"",""]
[null,null,null,"",null,null,null,"",""]
[null,null,null,"",null,null,null,"",""]
[null,null,null,"",null,null,null,"",""]
[null,null,null,"",null,null,null,"",""]
[null,null,null,"",null,null,null,"",""]
[null,null,null,"",null,null,null,"",""]
[null,null,null,"",null,null,null,"",""]
[null,null,null,"",null,null,null,"",""]
[null,null,null,"",null,null,null,"",""]
[null,null,null,"",null,null,null,"",""]
[null,null,null,"",null,null,null,"",""]
[null,null,null,"",null,null,null,"",""]
[null,null,null,"",null,null,null,"",""]
[null,null,null,"",null,null,null,"",""]
[null,null,null,"",null,null,null,"",""]
[null,null,null,"",null,null,null,"",""]
[null,null,null,"",null,null,null,"",""]
[null,null,null,"",null,null,null,"",""]
[null,null,null,"",null,null,null,"",""]
[null,null,null,"",null,null,null,"",""]
[null,null,null,"",null,null,null,"",""]
[null,null,null,"",null,null,null,"",""]
[null,null,null,"",null,null,null,"",""]
[null,null,null,"",null,null,null,"",""]
[null,null,null,"",null,null,null,"",""]
[null,null,null,"",null,null,null,"",""]
[null,null,null,"",null,null,null,"",""]
[null,null,null,"",null,null,null,"",""]
[null,null,null,"",null,null,null,"",""]
[null,null,null,"",null,null,null,"",""]
[null,null,null,"",null,null,null,"",""]
[null,null,null,"",null,null,null,"",""]
[null,null,null,"",null,null,null,"",""]
[null,null,null,"",null,null,null,"",""]
[null,null,null,"",null,null,null,"",""]
[null,null,null,"",null,null,null,"",""]
[null,null,null,"",null,null,null,"",""]
[null,null,null,"",null,null,null,"",""]
[null,null,null,{"$f":"IF(OR(C3971=\"\",E3971=\"Finalizado\"),\"\",IF(H3971=\"No Prazo\",1,IF(H3971=\"Finalizado\",1,-1)))","v":""},null,null,null,{"$f":"IF(C3971=\"\",\"\",IF(E3971<>\"Finalizado\",IF(C3971<TODAY(),\"Em Atraso\",\"No Prazo\"),\"Finalizado\"))","v":""},{"$f":"IF(E3971=\"Finalizado\",\"\",IF(C3971=\"\",\"\",MONTH(C3971)))","v":""}]
[null,null,null,"",null,null,null,"",""]
[null,null,null,"",null,null,null,"",""]
[null,null,null,"",null,null,null,"",""]
[null,null,null,"",null,null,null,"",""]
[null,null,null,"",null,null,null,"",""]
[null,null,null,"",null,null,null,"",""]
[null,null,null,"",null,null,null,"",""]
[null,null,null,"",null,null,null,"",""]
[null,null,null,"",null,null,null,"",""]
[null,null,null,"",null,null,null,"",""]
[null,null,null,"",null,null,null,"",""]
[null,null,null,"",null,null,null,"",""]
[null,null,null,"",null,null,null,"",""]
[null,null,null,"",null,null,null,"",""]
[null,null,null,"",null,null,null,"",""]
[null,null,null,"",null,null,null,"",""]
[null,null,null,"",null,null,null,"",""]
[null,null,null,"",null,null,null,"",""]
[null,null,null,"",null,null,null,"",""]
[null,null,null,"",null,null,null,"",""]
[null,null,null,"",null,null,null,"",""]
[null,null,null,"",null,null,null,"",""]
[null,null,null,"",null,null,null,"",""]
[null,null,null,"",null,null,null,"",""]
[null,null,null,"",null,null,null,"",""]
[null,null,null,"",null,null,null,"",""]
[null,null,null,"",null,null,null,"",""]
[null,null,null,"",null,null,null,"",""]
[null,null,null,"",null,null,null,"",""]
[null,null,null,"",null,null,null,"",""]
[null,null,null,"",null,null,null,"",""]
[null,null,null,"",null,null,null,"",""]
[null,null,null,"",null,null,null,"",""]
[null,null,null,"",null,null,null,"",""]
[null,null,null,"",null,null,null,"",""]
[null,null,null,"",null,null,null,"",""]
[null,null,null,"",null,null,null,"",""]
[null,null,null,"",null,null,null,"",""]
[null,null,null,"",null,null,null,"",""]
[null,null,null,"",null,null,null,"",""]
[null,null,null,"",null,null,null,"",""]
[null,null,null,"",null,null,null,"",""]
[null,null,null,"",null,null,null,"",""]
[null,null,null,"",null,null,null,"",""]
[null,null,null,"",null,null,null,"",""]
[null,null,null,"",null,null,null,"",""]
[null,null,null,"",null,null,null,"",""]
[null,null,null,"",null,null,null,"",""]
[null,null,null,"",null,null,null,"",""]
[null,null,null,"",null,null,null,"",""]
[null,null,null,"",null,null,null,"",""]
[null,null,null,"",null,null,null,"",""]
[null,null,null,"",null,null,null,"",""]
[null,null,null,"",null,null,null,"",""]
[null,null,null,"",null,null,null,"",""]
[null,null,null,"",null,null,null,"",""]
[null,null,null,"",null,null,null,"",""]
[null,null,null,"",null,null,null,"",""]
[null,null,null,"",null,null,null,"",""]
[null,null,null,"",null,null,null,"",""]
[null,null,null,"",null,null,null,"",""]
[null,null,null,"",null,null,null,"",""]
[null,null,null,"",null,null,null,"",""]
[null,null,null,{"$f":"IF(OR(C4035=\"\",E4035=\"Finalizado\"),\"\",IF(H4035=\"No Prazo\",1,IF(H4035=\"Finalizado\",1,-1)))","v":""},null,null,null,{"$f":"IF(C4035=\"\",\"\",IF(E4035<>\"Finalizado\",IF(C4035<TODAY(),\"Em Atraso\",\"No Prazo\"),\"Finalizado\"))","v":""},{"$f":"IF(E4035=\"Finalizado\",\"\",IF(C4035=\"\",\"\",MONTH(C4035)))","v":""}]
[null,null,null,"",null,null,null,"",""]
[null,null,null,"",null,null,null,"",""]
[null,null,null,"",null,null,null,"",""]
[null,null,null,"",null,null,null,"",""]
[null,null,null,"",null,null,null,"",""]
[null,null,null,"",null,null,null,"",""]
[null,null,null,"",null,null,null,"",""]
[null,null,null,"",null,null,null,"",""]
[null,null,null,"",null,null,null,"",""]
[null,null,null,"",null,null,null,"",""]
[null,null,null,"",null,null,null,"",""]
[null,null,null,"",null,null,null,"",""]
[null,null,null,"",null,null,null,"",""]
[null,null,null,"",null,null,null,"",""]
[null,null,null,"",null,null,null,"",""]
[null,null,null,"",null,null,null,"",""]
[null,null,null,"",null,null,null,"",""]
[null,null,null,"",null,null,null,"",""]
[null,null,null,"",null,null,null,"",""]
[null,null,null,"",null,null,null,"",""]
[null,null,null,"",null,null,null,"",""]
[null,null,null,"",null,null,null,"",""]
[null,null,null,"",null,null,null,"",""]
[null,null,null,"",null,null,null,"",""]
[null,null,null,"",null,null,null,"",""]
[null,null,null,"",null,null,null,"",""]
[null,null,null,"",null,null,null,"",""]
[null,null,null,"",null,null,null,"",""]
[null,null,null,"",null,null,null,"",""]
[null,null,null,"",null,null,null,"",""]
[null,null,null,"",null,null,null,"",""]
[null,null,null,"",null,null,null,"",""]
[null,null,null,"",null,null,null,"",""]
[null,null,null,"",null,null,null,"",""]
[null,null,null,"",null,null,null,"",""]
[null,null,null,"",null,null,null,"",""]
[null,null,null,"",null,null,null,"",""]
[null,null,null,"",null,null,null,"",""]
[null,null,null,"",null,null,null,"",""]
[null,null,null,"",null,null,null,"",""]
[null,null,null,"",null,null,null,"",""]
[null,null,null,"",null,null,null,"",""]
[null,null,null,"",null,null,null,"",""]
[null,null,null,"",null,null,null,"",""]
[null,null,null,"",null,null,null,"",""]
[null,null,null,"",null,null,null,"",""]
[null,null,null,"",null,null,null,"",""]
[null,null,null,"",null,null,null,"",""]
[null,null,null,"",null,null,null,"",""]
[null,null,null,"",null,null,null,"",""]
[null,null,null,"",null,null,null,"",""]
[null,null,null,"",null,null,null,"",""]
[null,null,null,"",null,null,null,"",""]
[null,null,null,"",null,null,null,"",""]
[null,null,null,"",null,null,null,"",""]
[null,null,null,"",null,null,null,"",""]
[null,null,null,"",null,null,null,"",""]
[null,null,null,"",null,null,null,"",""]
[null,null,null,"",null,null,null,"",""]
[null,null,null,"",null,null,null,"",""]
[null,null,null,"",null,null,null,"",""]
[null,null,null,"",null,null,null,"",""]
[null,null,null,"",null,null,null,"",""]
[null,null,null,{"$f":"IF(OR(C4099=\"\",E4099=\"Finalizado\"),\"\",IF(H4099=\"No Prazo\",1,IF(H4099=\"Finalizado\",1,-1)))","v":""},null,null,null,{"$f":"IF(C4099=\"\",\"\",IF(E4099<>\"Finalizado\",IF(C4099<TODAY(),\"Em Atraso\",\"No Prazo\"),\"Finalizado\"))","v":""},{"$f":"IF(E4099=\"Finalizado\",\"\",IF(C4099=\"\",\"\",MONTH(C4099)))","v":""}]
[null,null,null,"",null,null,null,"",""]
[null,null,null,"",null,null,null,"",""]
[null,null,null,"",null,null,null,"",""]
[null,null,null,"",null,null,null,"",""]
[null,null,null,"",null,null,null,"",""]
[null,null,null,"",null,null,null,"",""]
[null,null,null,"",null,null,null,"",""]
[null,null,null,"",null,null,null,"",""]
[null,null,null,"",null,null,null,"",""]
[null,null,null,"",null,null,null,"",""]
[null,null,null,"",null,null,null,"",""]
[null,null,null,"",null,null,null,"",""]
[null,null,null,"",null,null,null,"",""]
[null,null,null,"",null,null,null,"",""]
[null,null,null,"",null,null,null,"",""]
[null,null,null,"",null,null,null,"",""]
[null,null,null,"",null,null,null,"",""]
[null,null,null,"",null,null,null,"",""]
[null,null,null,"",null,null,null,"",""]
[null,null,null,"",null,null,null,"",""]
[null,null,null,"",null,null,null,"",""]
[null,null,null,"",null,null,null,"",""]
[null,null,null,"",null,null,null,"",""]
[null,null,null,"",null,null,null,"",""]
[null,null,null,"",null,null,null,"",""]
[null,null,null,"",null,null,null,"",""]
[null,null,null,"",null,null,null,"",""]
[null,null,null,"",null,null,null,"",""]
[null,null,null,"",null,null,null,"",""]
[null,null,null,"",null,null,null,"",""]
[null,null,null,"",null,null,null,"",""]
[null,null,null,"",null,null,null,"",""]
[null,null,null,"",null,null,null,"",""]
[null,null,null,"",null,null,null,"",""]
[null,null,null,"",null,null,null,"",""]
[null,null,null,"",null,null,null,"",""]
[null,null,null,"",null,null,null,"",""]
[null,null,null,"",null,null,null,"",""]
[null,null,null,"",null,null,null,"",""]
[null,null,null,"",null,null,null,"",""]
[null,null,null,"",null,null,null,"",""]
[null,null,null,"",null,null,null,"",""]
[null,null,null,"",null,null,null,"",""]
[null,null,null,"",null,null,null,"",""]
[null,null,null,"",null,null,null,"",""]
[null,null,null,"",null,null,null,"",""]
[null,null,null,"",null,null,null,"",""]
[null,null,null,"",null,null,null,"",""]
[null,null,null,"",null,null,null,"",""]
[null,null,null,"",null,null,null,"",""]
[null,null,null,"",null,null,null,"",""]
[null,null,null,"",null,null,null,"",""]
[null,null,null,"",null,null,null,"",""]
[null,null,null,"",null,null,null,"",""]
[null,null,null,"",null,null,null,"",""]
[null,null,null,"",null,null,null,"",""]
[null,null,null,"",null,null,null,"",""]
[null,null,null,"",null,null,null,"",""]
[null,null,null,"",null,null,null,"",""]
[null,null,null,"",null,null,null,"",""]
[null,null,null,"",null,null,null,"",""]
[null,null,null,"",null,null,null,"",""]
[null,null,null,"",null,null,null,"",""]
[null,null,null,{"$f":"IF(OR(C4163=\"\",E4163=\"Finalizado\"),\"\",IF(H4163=\"No Prazo\",1,IF(H4163=\"Finalizado\",1,-1)))","v":""},null,null,null,{"$f":"IF(C4163=\"\",\"\",IF(E4163<>\"Finalizado\",IF(C4163<TODAY(),\"Em Atraso\",\"No Prazo\"),\"Finalizado\"))","v":""},{"$f":"IF(E4163=\"Finalizado\",\"\",IF(C4163=\"\",\"\",MONTH(C4163)))","v":""}]
[null,null,null,"",null,null,null,"",""]
[null,null,null,"",null,null,null,"",""]
[null,null,null,"",null,null,null,"",""]
[null,null,null,"",null,null,null,"",""]
[null,null,null,"",null,null,null,"",""]
[null,null,null,"",null,null,null,"",""]
[null,null,null,"",null,null,null,"",""]
[null,null,null,"",null,null,null,"",""]
[null,null,null,"",null,null,null,"",""]
[null,null,null,"",null,null,null,"",""]
[null,null,null,"",null,null,null,"",""]
[null,null,null,"",null,null,null,"",""]
[null,null,null,"",null,null,null,"",""]
[null,null,null,"",null,null,null,"",""]
[null,null,null,"",null,null,null,"",""]
[null,null,null,"",null,null,null,"",""]
[null,null,null,"",null,null,null,"",""]
[null,null,null,"",null,null,null,"",""]
[null,null,null,"",null,null,null,"",""]
[null,null,null,"",null,null,null,"",""]
[null,null,null,"",null,null,null,"",""]
[null,null,null,"",null,null,null,"",""]
[null,null,null,"",null,null,null,"",""]
[null,null,null,"",null,null,null,"",""]
[null,null,null,"",null,null,null,"",""]
[null,null,null,"",null,null,null,"",""]
[null,null,null,"",null,null,null,"",""]
[null,null,null,"",null,null,null,"",""]
[null,null,null,"",null,null,null,"",""]
[null,null,null,"",null,null,null,"",""]
[null,null,null,"",null,null,null,"",""]
[null,null,null,"",null,null,null,"",""]
[null,null,null,"",null,null,null,"",""]
[null,null,null,"",null,null,null,"",""]
[null,null,null,"",null,null,null,"",""]
[null,null,null,"",null,null,null,"",""]
[null,null,null,"",null,null,null,"",""]
[null,null,null,"",null,null,null,"",""]
[null,null,null,"",null,null,null,"",""]
[null,null,null,"",null,null,null,"",""]
[null,null,null,"",null,null,null,"",""]
[null,null,null,"",null,null,null,"",""]
[null,null,null,"",null,null,null,"",""]
[null,null,null,"",null,null,null,"",""]
[null,null,null,"",null,null,null,"",""]
[null,null,null,"",null,null,null,"",""]
[null,null,null,"",null,null,null,"",""]
[null,null,null,"",null,null,null,"",""]
[null,null,null,"",null,null,null,"",""]
[null,null,null,"",null,null,null,"",""]
[null,null,null,"",null,null,null,"",""]
[null,null,null,"",null,null,null,"",""]
[null,null,null,"",null,null,null,"",""]
[null,null,null,"",null,null,null,"",""]
[null,null,null,"",null,null,null,"",""]
[null,null,null,"",null,null,null,"",""]
[null,null,null,"",null,null,null,"",""]
[null,null,null,"",null,null,null,"",""]
[null,null,null,"",null,null,null,"",""]
[null,null,null,"",null,null,null,"",""]
[null,null,null,"",null,null,null,"",""]
[null,null,null,"",null,null,null,"",""]
[null,null,null,"",null,null,null,"",""]
[null,null,null,{"$f":"IF(OR(C4227=\"\",E4227=\"Finalizado\"),\"\",IF(H4227=\"No Prazo\",1,IF(H4227=\"Finalizado\",1,-1)))","v":""},null,null,null,{"$f":"IF(C4227=\"\",\"\",IF(E4227<>\"Finalizado\",IF(C4227<TODAY(),\"Em Atraso\",\"No Prazo\"),\"Finalizado\"))","v":""},{"$f":"IF(E4227=\"Finalizado\",\"\",IF(C4227=\"\",\"\",MONTH(C4227)))","v":""}]
[null,null,null,"",null,null,null,"",""]
[null,null,null,"",null,null,null,"",""]
[null,null,null,"",null,null,null,"",""]
[null,null,null,"",null,null,null,"",""]
[null,null,null,"",null,null,null,"",""]
[null,null,null,"",null,null,null,"",""]
[null,null,null,"",null,null,null,"",""]
[null,null,null,"",null,null,null,"",""]
[null,null,null,"",null,null,null,"",""]
[null,null,null,"",null,null,null,"",""]
[null,null,null,"",null,null,null,"",""]
[null,null,null,"",null,null,null,"",""]
[null,null,null,"",null,null,null,"",""]
[null,null,null,"",null,null,null,"",""]
[null,null,null,"",null,null,null,"",""]
[null,null,null,"",null,null,null,"",""]
[null,null,null,"",null,null,null,"",""]
[null,null,null,"",null,null,null,"",""]
[null,null,null,"",null,null,null,"",""]
[null,null,null,"",null,null,null,"",""]
[null,null,null,"",null,null,null,"",""]
[null,null,null,"",null,null,null,"",""]
[null,null,null,"",null,null,null,"",""]
[null,null,null,"",null,null,null,"",""]
[null,null,null,"",null,null,null,"",""]
[null,null,null,"",null,null,null,"",""]
[null,null,null,"",null,null,null,"",""]
[null,null,null,"",null,null,null,"",""]
[null,null,null,"",null,null,null,"",""]
[null,null,null,"",null,null,null,"",""]
[null,null,null,"",null,null,null,"",""]
[null,null,null,"",null,null,null,"",""]
[null,null,null,"",null,null,null,"",""]
[null,null,null,"",null,null,null,"",""]
[null,null,null,"",null,null,null,"",""]
[null,null,null,"",null,null,null,"",""]
[null,null,null,"",null,null,null,"",""]
[null,null,null,"",null,null,null,"",""]
[null,null,null,"",null,null,null,"",""]
[null,null,null,"",null,null,null,"",""]
[null,null,null,"",null,null,null,"",""]
[null,null,null,"",null,null,null,"",""]
[null,null,null,"",null,null,null,"",""]
[null,null,null,"",null,null,null,"",""]
[null,null,null,"",null,null,null,"",""]
[null,null,null,"",null,null,null,"",""]
[null,null,null,"",null,null,null,"",""]
[null,null,null,"",null,null,null,"",""]
[null,null,null,"",null,null,null,"",""]
[null,null,null,"",null,null,null,"",""]
[null,null,null,"",null,null,null,"",""]
[null,null,null,"",null,null,null,"",""]
[null,null,null,"",null,null,null,"",""]
[null,null,null,"",null,null,null,"",""]
[null,null,null,"",null,null,null,"",""]
[null,null,null,"",null,null,null,"",""]
[null,null,null,"",null,null,null,"",""]
[null,null,null,"",null,null,null,"",""]
[null,null,null,"",null,null,null,"",""]
[null,null,null,"",null,null,null,"",""]
[null,null,null,"",null,null,null,"",""]
[null,null,null,"",null,null,null,"",""]
[null,null,null,"",null,null,null,"",""]
[null,null,null,{"$f":"IF(OR(C4291=\"\",E4291=\"Finalizado\"),\"\",IF(H4291=\"No Prazo\",1,IF(H4291=\"Finalizado\",1,-1)))","v":""},null,null,null,{"$f":"IF(C4291=\"\",\"\",IF(E4291<>\"Finalizado\",IF(C4291<TODAY(),\"Em Atraso\",\"No Prazo\"),\"Finalizado\"))","v":""},{"$f":"IF(E4291=\"Finalizado\",\"\",IF(C4291=\"\",\"\",MONTH(C4291)))","v":""}]
[null,null,null,"",null,null,null,"",""]
[null,null,null,"",null,null,null,"",""]
[null,null,null,"",null,null,null,"",""]
[null,null,null,"",null,null,null,"",""]
[null,null,null,"",null,null,null,"",""]
[null,null,null,"",null,null,null,"",""]
[null,null,null,"",null,null,null,"",""]
[null,null,null,"",null,null,null,"",""]
[null,null,null,"",null,null,null,"",""]
[null,null,null,"",null,null,null,"",""]
[null,null,null,"",null,null,null,"",""]
[null,null,null,"",null,null,null,"",""]
[null,null,null,"",null,null,null,"",""]
[null,null,null,"",null,null,null,"",""]
[null,null,null,"",null,null,null,"",""]
[null,null,null,"",null,null,null,"",""]
[null,null,null,"",null,null,null,"",""]
[null,null,null,"",null,null,null,"",""]
[null,null,null,"",null,null,null,"",""]
[null,null,null,"",null,null,null,"",""]
[null,null,null,"",null,null,null,"",""]
[null,null,null,"",null,null,null,"",""]
[null,null,null,"",null,null,null,"",""]
[null,null,null,"",null,null,null,"",""]
[null,null,null,"",null,null,null,"",""]
[null,null,null,"",null,null,null,"",""]
[null,null,null,"",null,null,null,"",""]
[null,null,null,"",null,null,null,"",""]
[null,null,null,"",null,null,null,"",""]
[null,null,null,"",null,null,null,"",""]
[null,null,null,"",null,null,null,"",""]
[null,null,null,"",null,null,null,"",""]
[null,null,null,"",null,null,null,"",""]
[null,null,null,"",null,null,null,"",""]
[null,null,null,"",null,null,null,"",""]
[null,null,null,"",null,null,null,"",""]
[null,null,null,"",null,null,null,"",""]
[null,null,null,"",null,null,null,"",""]
[null,null,null,"",null,null,null,"",""]
[null,null,null,"",null,null,null,"",""]
[null,null,null,"",null,null,null,"",""]
[null,null,null,"",null,null,null,"",""]
[null,null,null,"",null,null,null,"",""]
[null,null,null,"",null,null,null,"",""]
[null,null,null,"",null,null,null,"",""]
[null,null,null,"",null,null,null,"",""]
[null,null,null,"",null,null,null,"",""]
[null,null,null,"",null,null,null,"",""]
[null,null,null,"",null,null,null,"",""]
[null,null,null,"",null,null,null,"",""]
[null,null,null,"",null,null,null,"",""]
[null,null,null,"",null,null,null,"",""]
[null,null,null,"",null,null,null,"",""]
[null,null,null,"",null,null,null,"",""]
[null,null,null,"",null,null,null,"",""]
[null,null,null,"",null,null,null,"",""]
[null,null,null,"",null,null,null,"",""]
[null,null,null,"",null,null,null,"",""]
[null,null,null,"",null,null,null,"",""]
[null,null,null,"",null,null,null,"",""]
[null,null,null,"",null,null,null,"",""]
[null,null,null,"",null,null,null,"",""]
[null,null,null,"",null,null,null,"",""]
[null,null,null,{"$f":"IF(OR(C4355=\"\",E4355=\"Finalizado\"),\"\",IF(H4355=\"No Prazo\",1,IF(H4355=\"Finalizado\",1,-1)))","v":""},null,null,null,{"$f":"IF(C4355=\"\",\"\",IF(E4355<>\"Finalizado\",IF(C4355<TODAY(),\"Em Atraso\",\"No Prazo\"),\"Finalizado\"))","v":""},{"$f":"IF(E4355=\"Finalizado\",\"\",IF(C4355=\"\",\"\",MONTH(C4355)))","v":""}]
[null,null,null,"",null,null,null,"",""]
[null,null,null,"",null,null,null,"",""]
[null,null,null,"",null,null,null,"",""]
[null,null,null,"",null,null,null,"",""]
[null,null,null,"",null,null,null,"",""]
[null,null,null,"",null,null,null,"",""]
[null,null,null,"",null,null,null,"",""]
[null,null,null,"",null,null,null,"",""]
[null,null,null,"",null,null,null,"",""]
[null,null,null,"",null,null,null,"",""]
[null,null,null,"",null,null,null,"",""]
[null,null,null,"",null,null,null,"",""]
[null,null,null,"",null,null,null,"",""]
[null,null,null,"",null,null,null,"",""]
[null,null,null,"",null,null,null,"",""]
[null,null,null,"",null,null,null,"",""]
[null,null,null,"",null,null,null,"",""]
[null,null,null,"",null,null,null,"",""]
[null,null,null,"",null,null,null,"",""]
[null,null,null,"",null,null,null,"",""]
[null,null,null,"",null,null,null,"",""]
[null,null,null,"",null,null,null,"",""]
[null,null,null,"",null,null,null,"",""]
[null,null,null,"",null,null,null,"",""]
[null,null,null,"",null,null,null,"",""]
[null,null,null,"",null,null,null,"",""]
[null,null,null,"",null,null,null,"",""]
[null,null,null,"",null,null,null,"",""]
[null,null,null,"",null,null,null,"",""]
[null,null,null,"",null,null,null,"",""]
[null,null,null,"",null,null,null,"",""]
[null,null,null,"",null,null,null,"",""]
[null,null,null,"",null,null,null,"",""]
[null,null,null,"",null,null,null,"",""]
[null,null,null,"",null,null,null,"",""]
[null,null,null,"",null,null,null,"",""]
[null,null,null,"",null,null,null,"",""]
[null,null,null,"",null,null,null,"",""]
[null,null,null,"",null,null,null,"",""]
[null,null,null,"",null,null,null,"",""]
[null,null,null,"",null,null,null,"",""]
[null,null,null,"",null,null,null,"",""]
[null,null,null,"",null,null,null,"",""]
[null,null,null,"",null,null,null,"",""]
[null,null,null,"",null,null,null,"",""]
[null,null,null,"",null,null,null,"",""]
[null,null,null,"",null,null,null,"",""]
[null,null,null,"",null,null,null,"",""]
[null,null,null,"",null,null,null,"",""]
[null,null,null,"",null,null,null,"",""]
[null,null,null,"",null,null,null,"",""]
[null,null,null,"",null,null,null,"",""]
[null,null,null,"",null,null,null,"",""]
[null,null,null,"",null,null,null,"",""]
[null,null,null,"",null,null,null,"",""]
[null,null,null,"",null,null,null,"",""]
[null,null,null,"",null,null,null,"",""]
[null,null,null,"",null,null,null,"",""]
[null,null,null,"",null,null,null,"",""]
[null,null,null,"",null,null,null,"",""]
[null,null,null,"",null,null,null,"",""]
[null,null,null,"",null,null,null,"",""]
[null,null,null,"",null,null,null,"",""]
[null,null,null,{"$f":"IF(OR(C4419=\"\",E4419=\"Finalizado\"),\"\",IF(H4419=\"No Prazo\",1,IF(H4419=\"Finalizado\",1,-1)))","v":""},null,null,null,{"$f":"IF(C4419=\"\",\"\",IF(E4419<>\"Finalizado\",IF(C4419<TODAY(),\"Em Atraso\",\"No Prazo\"),\"Finalizado\"))","v":""},{"$f":"IF(E4419=\"Finalizado\",\"\",IF(C4419=\"\",\"\",MONTH(C4419)))","v":""}]
[null,null,null,"",null,null,null,"",""]
[null,null,null,"",null,null,null,"",""]
[null,null,null,"",null,null,null,"",""]
[null,null,null,"",null,null,null,"",""]
[null,null,null,"",null,null,null,"",""]
[null,null,null,"",null,null,null,"",""]
[null,null,null,"",null,null,null,"",""]
[null,null,null,"",null,null,null,"",""]
[null,null,null,"",null,null,null,"",""]
[null,null,null,"",null,null,null,"",""]
[null,null,null,"",null,null,null,"",""]
[null,null,null,"",null,null,null,"",""]
[null,null,null,"",null,null,null,"",""]
[null,null,null,"",null,null,null,"",""]
[null,null,null,"",null,null,null,"",""]
[null,null,null,"",null,null,null,"",""]
[null,null,null,"",null,null,null,"",""]
[null,null,null,"",null,null,null,"",""]
[null,null,null,"",null,null,null,"",""]
[null,null,null,"",null,null,null,"",""]
[null,null,null,"",null,null,null,"",""]
[null,null,null,"",null,null,null,"",""]
[null,null,null,"",null,null,null,"",""]
[null,null,null,"",null,null,null,"",""]
[null,null,null,"",null,null,null,"",""]
[null,null,null,"",null,null,null,"",""]
[null,null,null,"",null,null,null,"",""]
[null,null,null,"",null,null,null,"",""]
[null,null,null,"",null,null,null,"",""]
[null,null,null,"",null,null,null,"",""]
[null,null,null,"",null,null,null,"",""]
[null,null,null,"",null,null,null,"",""]
[null,null,null,"",null,null,null,"",""]
[null,null,null,"",null,null,null,"",""]
[null,null,null,"",null,null,null,"",""]
[null,null,null,"",null,null,null,"",""]
[null,null,null,"",null,null,null,"",""]
[null,null,null,"",null,null,null,"",""]
[null,null,null,"",null,null,null,"",""]
[null,null,null,"",null,null,null,"",""]
[null,null,null,"",null,null,null,"",""]
[null,null,null,"",null,null,null,"",""]
[null,null,null,"",null,null,null,"",""]
[null,null,null,"",null,null,null,"",""]
[null,null,null,"",null,null,null,"",""]
[null,null,null,"",null,null,null,"",""]
[null,null,null,"",null,null,null,"",""]
[null,null,null,"",null,null,null,"",""]
[null,null,null,"",null,null,null,"",""]
[null,null,null,"",null,null,null,"",""]
[null,null,null,"",null,null,null,"",""]
[null,null,null,"",null,null,null,"",""]
[null,null,null,"",null,null,null,"",""]
[null,null,null,"",null,null,null,"",""]
[null,null,null,"",null,null,null,"",""]
[null,null,null,"",null,null,null,"",""]
[null,null,null,"",null,null,null,"",""]
[null,null,null,"",null,null,null,"",""]
[null,null,null,"",null,null,null,"",""]
[null,null,null,"",null,null,null,"",""]
[null,null,null,"",null,null,null,"",""]
[null,null,null,"",null,null,null,"",""]
[null,null,null,"",null,null,null,"",""]
[null,null,null,{"$f":"IF(OR(C4483=\"\",E4483=\"Finalizado\"),\"\",IF(H4483=\"No Prazo\",1,IF(H4483=\"Finalizado\",1,-1)))","v":""},null,null,null,{"$f":"IF(C4483=\"\",\"\",IF(E4483<>\"Finalizado\",IF(C4483<TODAY(),\"Em Atraso\",\"No Prazo\"),\"Finalizado\"))","v":""},{"$f":"IF(E4483=\"Finalizado\",\"\",IF(C4483=\"\",\"\",MONTH(C4483)))","v":""}]
[null,null,null,"",null,null,null,"",""]
[null,null,null,"",null,null,null,"",""]
[null,null,null,"",null,null,null,"",""]
[null,null,null,"",null,null,null,"",""]
[null,null,null,"",null,null,null,"",""]
[null,null,null,"",null,null,null,"",""]
[null,null,null,"",null,null,null,"",""]
[null,null,null,"",null,null,null,"",""]
[null,null,null,"",null,null,null,"",""]
[null,null,null,"",null,null,null,"",""]
[null,null,null,"",null,null,null,"",""]
[null,null,null,"",null,null,null,"",""]
[null,null,null,"",null,null,null,"",""]
[null,null,null,"",null,null,null,"",""]
[null,null,null,"",null,null,null,"",""]
[null,null,null,"",null,null,null,"",""]
[null,null,null,"",null,null,null,"",""]
[null,null,null,"",null,null,null,"",""]
[null,null,null,"",null,null,null,"",""]
[null,null,null,"",null,null,null,"",""]
[null,null,null,"",null,null,null,"",""]
[null,null,null,"",null,null,null,"",""]
[null,null,null,"",null,null,null,"",""]
[null,null,null,"",null,null,null,"",""]
[null,null,null,"",null,null,null,"",""]
[null,null,null,"",null,null,null,"",""]
[null,null,null,"",null,null,null,"",""]
[null,null,null,"",null,null,null,"",""]
[null,null,null,"",null,null,null,"",""]
[null,null,null,"",null,null,null,"",""]
[null,null,null,"",null,null,null,"",""]
[null,null,null,"",null,null,null,"",""]
[null,null,null,"",null,null,null,"",""]
[null,null,null,"",null,null,null,"",""]
[null,null,null,"",null,null,null,"",""]
[null,null,null,"",null,null,null,"",""]
[null,null,null,"",null,null,null,"",""]
[null,null,null,"",null,null,null,"",""]
[null,null,null,"",null,null,null,"",""]
[null,null,null,"",null,null,null,"",""]
[null,null,null,"",null,null,null,"",""]
[null,null,null,"",null,null,null,"",""]
[null,null,null,"",null,null,null,"",""]
[null,null,null,"",null,null,null,"",""]
[null,null,null,"",null,null,null,"",""]
[null,null,null,"",null,null,null,"",""]
[null,null,null,"",null,null,null,"",""]
[null,null,null,"",null,null,null,"",""]
[null,null,null,"",null,null,null,"",""]
[null,null,null,"",null,null,null,"",""]
[null,null,null,"",null,null,null,"",""]
[null,null,null,"",null,null,null,"",""]
[null,null,null,"",null,null,null,"",""]
[null,null,null,"",null,null,null,"",""]
[null,null,null,"",null,null,null,"",""]
[null,null,null,"",null,null,null,"",""]
[null,null,null,"",null,null,null,"",""]
[null,null,null,"",null,null,null,"",""]
[null,null,null,"",null,null,null,"",""]
[null,null,null,"",null,null,null,"",""]
[null,null,null,"",null,null,null,"",""]
[null,null,null,"",null,null,null,"",""]
[null,null,null,"",null,null,null,"",""]
[null,null,null,{"$f":"IF(OR(C4547=\"\",E4547=\"Finalizado\"),\"\",IF(H4547=\"No Prazo\",1,IF(H4547=\"Finalizado\",1,-1)))","v":""},null,null,null,{"$f":"IF(C4547=\"\",\"\",IF(E4547<>\"Finalizado\",IF(C4547<TODAY(),\"Em Atraso\",\"No Prazo\"),\"Finalizado\"))","v":""},{"$f":"IF(E4547=\"Finalizado\",\"\",IF(C4547=\"\",\"\",MONTH(C4547)))","v":""}]
[null,null,null,"",null,null,null,"",""]
[null,null,null,"",null,null,null,"",""]
[null,null,null,"",null,null,null,"",""]
[null,null,null,"",null,null,null,"",""]
[null,null,null,"",null,null,null,"",""]
[null,null,null,"",null,null,null,"",""]
[null,null,null,"",null,null,null,"",""]
[null,null,null,"",null,null,null,"",""]
[null,null,null,"",null,null,null,"",""]
[null,null,null,"",null,null,null,"",""]
[null,null,null,"",null,null,null,"",""]
[null,null,null,"",null,null,null,"",""]
[null,null,null,"",null,null,null,"",""]
[null,null,null,"",null,null,null,"",""]
[null,null,null,"",null,null,null,"",""]
[null,null,null,"",null,null,null,"",""]
[null,null,null,"",null,null,null,"",""]
[null,null,null,"",null,null,null,"",""]
[null,null,null,"",null,null,null,"",""]
[null,null,null,"",null,null,null,"",""]
[null,null,null,"",null,null,null,"",""]
[null,null,null,"",null,null,null,"",""]
[null,null,null,"",null,null,null,"",""]
[null,null,null,"",null,null,null,"",""]
[null,null,null,"",null,null,null,"",""]
[null,null,null,"",null,null,null,"",""]
[null,null,null,"",null,null,null,"",""]
[null,null,null,"",null,null,null,"",""]
[null,null,null,"",null,null,null,"",""]
[null,null,null,"",null,null,null,"",""]
[null,null,null,"",null,null,null,"",""]
[null,null,null,"",null,null,null,"",""]
[null,null,null,"",null,null,null,"",""]
[null,null,null,"",null,null,null,"",""]
[null,null,null,"",null,null,null,"",""]
[null,null,null,"",null,null,null,"",""]
[null,null,null,"",null,null,null,"",""]
[null,null,null,"",null,null,null,"",""]
[null,null,null,"",null,null,null,"",""]
[null,null,null,"",null,null,null,"",""]
[null,null,null,"",null,null,null,"",""]
[null,null,null,"",null,null,null,"",""]
[null,null,null,"",null,null,null,"",""]
[null,null,null,"",null,null,null,"",""]
[null,null,null,"",null,null,null,"",""]
[null,null,null,"",null,null,null,"",""]
[null,null,null,"",null,null,null,"",""]
[null,null,null,"",null,null,null,"",""]
[null,null,null,"",null,null,null,"",""]
[null,null,null,"",null,null,null,"",""]
[null,null,null,"",null,null,null,"",""]
[null,null,null,"",null,null,null,"",""]
[null,null,null,"",null,null,null,"",""]
[null,null,null,"",null,null,null,"",""]
[null,null,null,"",null,null,null,"",""]
[null,null,null,"",null,null,null,"",""]
[null,null,null,"",null,null,null,"",""]
[null,null,null,"",null,null,null,"",""]
[null,null,null,"",null,null,null,"",""]
[null,null,null,"",null,null,null,"",""]
[null,null,null,"",null,null,null,"",""]
[null,null,null,"",null,null,null,"",""]
[null,null,null,"",null,null,null,"",""]
[null,null,null,{"$f":"IF(OR(C4611=\"\",E4611=\"Finalizado\"),\"\",IF(H4611=\"No Prazo\",1,IF(H4611=\"Finalizado\",1,-1)))","v":""},null,null,null,{"$f":"IF(C4611=\"\",\"\",IF(E4611<>\"Finalizado\",IF(C4611<TODAY(),\"Em Atraso\",\"No Prazo\"),\"Finalizado\"))","v":""},{"$f":"IF(E4611=\"Finalizado\",\"\",IF(C4611=\"\",\"\",MONTH(C4611)))","v":""}]
[null,null,null,"",null,null,null,"",""]
[null,null,null,"",null,null,null,"",""]
[null,null,null,"",null,null,null,"",""]
[null,null,null,"",null,null,null,"",""]
[null,null,null,"",null,null,null,"",""]
[null,null,null,"",null,null,null,"",""]
[null,null,null,"",null,null,null,"",""]
[null,null,null,"",null,null,null,"",""]
[null,null,null,"",null,null,null,"",""]
[null,null,null,"",null,null,null,"",""]
[null,null,null,"",null,null,null,"",""]
[null,null,null,"",null,null,null,"",""]
[null,null,null,"",null,null,null,"",""]
[null,null,null,"",null,null,null,"",""]
[null,null,null,"",null,null,null,"",""]
[null,null,null,"",null,null,null,"",""]
[null,null,null,"",null,null,null,"",""]
[null,null,null,"",null,null,null,"",""]
[null,null,null,"",null,null,null,"",""]
[null,null,null,"",null,null,null,"",""]
[null,null,null,"",null,null,null,"",""]
[null,null,null,"",null,null,null,"",""]
[null,null,null,"",null,null,null,"",""]
[null,null,null,"",null,null,null,"",""]
[null,null,null,"",null,null,null,"",""]
[null,null,null,"",null,null,null,"",""]
[null,null,null,"",null,null,null,"",""]
[null,null,null,"",null,null,null,"",""]
[null,null,null,"",null,null,null,"",""]
[null,null,null,"",null,null,null,"",""]
[null,null,null,"",null,null,null,"",""]
[null,null,null,"",null,null,null,"",""]
[null,null,null,"",null,null,null,"",""]
[null,null,null,"",null,null,null,"",""]
[null,null,null,"",null,null,null,"",""]
[null,null,null,"",null,null,null,"",""]
[null,null,null,"",null,null,null,"",""]
[null,null,null,"",null,null,null,"",""]
[null,null,null,"",null,null,null,"",""]
[null,null,null,"",null,null,null,"",""]
[null,null,null,"",null,null,null,"",""]
[null,null,null,"",null,null,null,"",""]
[null,null,null,"",null,null,null,"",""]
[null,null,null,"",null,null,null,"",""]
[null,null,null,"",null,null,null,"",""]
[null,null,null,"",null,null,null,"",""]
[null,null,null,"",null,null,null,"",""]
[null,null,null,"",null,null,null,"",""]
[null,null,null,"",null,null,null,"",""]
[null,null,null,"",null,null,null,"",""]
[null,null,null,"",null,null,null,"",""]
[null,null,null,"",null,null,null,"",""]
[null,null,null,"",null,null,null,"",""]
[null,null,null,"",null,null,null,"",""]
[null,null,null,"",null,null,null,"",""]
[null,null,null,"",null,null,null,"",""]
[null,null,null,"",null,null,null,"",""]
[null,null,null,"",null,null,null,"",""]
[null,null,null,"",null,null,null,"",""]
[null,null,null,"",null,null,null,"",""]
[null,null,null,"",null,null,null,"",""]
[null,null,null,"",null,null,null,"",""]
[null,null,null,"",null,null,null,"",""]
[null,null,null,{"$f":"IF(OR(C4675=\"\",E4675=\"Finalizado\"),\"\",IF(H4675=\"No Prazo\",1,IF(H4675=\"Finalizado\",1,-1)))","v":""},null,null,null,{"$f":"IF(C4675=\"\",\"\",IF(E4675<>\"Finalizado\",IF(C4675<TODAY(),\"Em Atraso\",\"No Prazo\"),\"Finalizado\"))","v":""},{"$f":"IF(E4675=\"Finalizado\",\"\",IF(C4675=\"\",\"\",MONTH(C4675)))","v":""}]
[null,null,null,"",null,null,null,"",""]
[null,null,null,"",null,null,null,"",""]
[null,null,null,"",null,null,null,"",""]
[null,null,null,"",null,null,null,"",""]
[null,null,null,"",null,null,null,"",""]
[null,null,null,"",null,null,null,"",""]
[null,null,null,"",null,null,null,"",""]
[null,null,null,"",null,null,null,"",""]
[null,null,null,"",null,null,null,"",""]
[null,null,null,"",null,null,null,"",""]
[null,null,null,"",null,null,null,"",""]
[null,null,null,"",null,null,null,"",""]
[null,null,null,"",null,null,null,"",""]
[null,null,null,"",null,null,null,"",""]
[null,null,null,"",null,null,null,"",""]
[null,null,null,"",null,null,null,"",""]
[null,null,null,"",null,null,null,"",""]
[null,null,null,"",null,null,null,"",""]
[null,null,null,"",null,null,null,"",""]
[null,null,null,"",null,null,null,"",""]
[null,null,null,"",null,null,null,"",""]
[null,null,null,"",null,null,null,"",""]
[null,null,null,"",null,null,null,"",""]
[null,null,null,"",null,null,null,"",""]
[null,null,null,"",null,null,null,"",""]
[null,null,null,"",null,null,null,"",""]
[null,null,null,"",null,null,null,"",""]
[null,null,null,"",null,null,null,"",""]
[null,null,null,"",null,null,null,"",""]
[null,null,null,"",null,null,null,"",""]
[null,null,null,"",null,null,null,"",""]
[null,null,null,"",null,null,null,"",""]
[null,null,null,"",null,null,null,"",""]
[null,null,null,"",null,null,null,"",""]
[null,null,null,"",null,null,null,"",""]
[null,null,null,"",null,null,null,"",""]
[null,null,null,"",null,null,null,"",""]
[null,null,null,"",null,null,null,"",""]
[null,null,null,"",null,null,null,"",""]
[null,null,null,"",null,null,null,"",""]
[null,null,null,"",null,null,null,"",""]
[null,null,null,"",null,null,null,"",""]
[null,null,null,"",null,null,null,"",""]
[null,null,null,"",null,null,null,"",""]
[null,null,null,"",null,null,null,"",""]
[null,null,null,"",null,null,null,"",""]
[null,null,null,"",null,null,null,"",""]
[null,null,null,"",null,null,null,"",""]
[null,null,null,"",null,null,null,"",""]
[null,null,null,"",null,null,null,"",""]
[null,null,null,"",null,null,null,"",""]
[null,null,null,"",null,null,null,"",""]
[null,null,null,"",null,null,null,"",""]
[null,null,null,"",null,null,null,"",""]
[null,null,null,"",null,null,null,"",""]
[null,null,null,"",null,null,null,"",""]
[null,null,null,"",null,null,null,"",""]
[null,null,null,"",null,null,null,"",""]
[null,null,null,"",null,null,null,"",""]
[null,null,null,"",null,null,null,"",""]
[null,null,null,"",null,null,null,"",""]
[null,null,null,"",null,null,null,"",""]
[null,null,null,"",null,null,null,"",""]
[null,null,null,{"$f":"IF(OR(C4739=\"\",E4739=\"Finalizado\"),\"\",IF(H4739=\"No Prazo\",1,IF(H4739=\"Finalizado\",1,-1)))","v":""},null,null,null,{"$f":"IF(C4739=\"\",\"\",IF(E4739<>\"Finalizado\",IF(C4739<TODAY(),\"Em Atraso\",\"No Prazo\"),\"Finalizado\"))","v":""},{"$f":"IF(E4739=\"Finalizado\",\"\",IF(C4739=\"\",\"\",MONTH(C4739)))","v":""}]
[null,null,null,"",null,null,null,"",""]
[null,null,null,"",null,null,null,"",""]
[null,null,null,"",null,null,null,"",""]
[null,null,null,"",null,null,null,"",""]
[null,null,null,"",null,null,null,"",""]
[null,null,null,"",null,null,null,"",""]
[null,null,null,"",null,null,null,"",""]
[null,null,null,"",null,null,null,"",""]
[null,null,null,"",null,null,null,"",""]
[null,null,null,"",null,null,null,"",""]
[null,null,null,"",null,null,null,"",""]
[null,null,null,"",null,null,null,"",""]
[null,null,null,"",null,null,null,"",""]
[null,null,null,"",null,null,null,"",""]
[null,null,null,"",null,null,null,"",""]
[null,null,null,"",null,null,null,"",""]
[null,null,null,"",null,null,null,"",""]
[null,null,null,"",null,null,null,"",""]
[null,null,null,"",null,null,null,"",""]
[null,null,null,"",null,null,null,"",""]
[null,null,null,"",null,null,null,"",""]
[null,null,null,"",null,null,null,"",""]
[null,null,null,"",null,null,null,"",""]
[null,null,null,"",null,null,null,"",""]
[null,null,null,"",null,null,null,"",""]
[null,null,null,"",null,null,null,"",""]
[null,null,null,"",null,null,null,"",""]
[null,null,null,"",null,null,null,"",""]
[null,null,null,"",null,null,null,"",""]
[null,null,null,"",null,null,null,"",""]
[null,null,null,"",null,null,null,"",""]
[null,null,null,"",null,null,null,"",""]
[null,null,null,"",null,null,null,"",""]
[null,null,null,"",null,null,null,"",""]
[null,null,null,"",null,null,null,"",""]
[null,null,null,"",null,null,null,"",""]
[null,null,null,"",null,null,null,"",""]
[null,null,null,"",null,null,null,"",""]
[null,null,null,"",null,null,null,"",""]
[null,null,null,"",null,null,null,"",""]
[null,null,null,"",null,null,null,"",""]
[null,null,null,"",null,null,null,"",""]
[null,null,null,"",null,null,null,"",""]
[null,null,null,"",null,null,null,"",""]
[null,null,null,"",null,null,null,"",""]
[null,null,null,"",null,null,null,"",""]
[null,null,null,"",null,null,null,"",""]
[null,null,null,"",null,null,null,"",""]
[null,null,null,"",null,null,null,"",""]
[null,null,null,"",null,null,null,"",""]
[null,null,null,"",null,null,null,"",""]
[null,null,null,"",null,null,null,"",""]
[null,null,null,"",null,null,null,"",""]
[null,null,null,"",null,null,null,"",""]
[null,null,null,"",null,null,null,"",""]
[null,null,null,"",null,null,null,"",""]
[null,null,null,"",null,null,null,"",""]
[null,null,null,"",null,null,null,"",""]
[null,null,null,"",null,null,null,"",""]
[null,null,null,"",null,null,null,"",""]
[null,null,null,"",null,null,null,"",""]
[null,null,null,"",null,null,null,"",""]
[null,null,null,"",null,null,null,"",""]
[null,null,null,{"$f":"IF(OR(C4803=\"\",E4803=\"Finalizado\"),\"\",IF(H4803=\"No Prazo\",1,IF(H4803=\"Finalizado\",1,-1)))","v":""},null,null,null,{"$f":"IF(C4803=\"\",\"\",IF(E4803<>\"Finalizado\",IF(C4803<TODAY(),\"Em Atraso\",\"No Prazo\"),\"Finalizado\"))","v":""},{"$f":"IF(E4803=\"Finalizado\",\"\",IF(C4803=\"\",\"\",MONTH(C4803)))","v":""}]
[null,null,null,"",null,null,null,"",""]
[null,null,null,"",null,null,null,"",""]
[null,null,null,"",null,null,null,"",""]
[null,null,null,"",null,null,null,"",""]
[null,null,null,"",null,null,null,"",""]
[null,null,null,"",null,null,null,"",""]
[null,null,null,"",null,null,null,"",""]
[null,null,null,"",null,null,null,"",""]
[null,null,null,"",null,null,null,"",""]
[null,null,null,"",null,null,null,"",""]
[null,null,null,"",null,null,null,"",""]
[null,null,null,"",null,null,null,"",""]
[null,null,null,"",null,null,null,"",""]
[null,null,null,"",null,null,null,"",""]
[null,null,null,"",null,null,null,"",""]
[null,null,null,"",null,null,null,"",""]
[null,null,null,"",null,null,null,"",""]
[null,null,null,"",null,null,null,"",""]
[null,null,null,"",null,null,null,"",""]
[null,null,null,"",null,null,null,"",""]
[null,null,null,"",null,null,null,"",""]
[null,null,null,"",null,null,null,"",""]
[null,null,null,"",null,null,null,"",""]
[null,null,null,"",null,null,null,"",""]
[null,null,null,"",null,null,null,"",""]
[null,null,null,"",null,null,null,"",""]
[null,null,null,"",null,null,null,"",""]
[null,null,null,"",null,null,null,"",""]
[null,null,null,"",null,null,null,"",""]
[null,null,null,"",null,null,null,"",""]
[null,null,null,"",null,null,null,"",""]
[null,null,null,"",null,null,null,"",""]
[null,null,null,"",null,null,null,"",""]
[null,null,null,"",null,null,null,"",""]
[null,null,null,"",null,null,null,"",""]
[null,null,null,"",null,null,null,"",""]
[null,null,null,"",null,null,null,"",""]
[null,null,null,"",null,null,null,"",""]
[null,null,null,"",null,null,null,"",""]
[null,null,null,"",null,null,null,"",""]
[null,null,null,"",null,null,null,"",""]
[null,null,null,"",null,null,null,"",""]
[null,null,null,"",null,null,null,"",""]
[null,null,null,"",null,null,null,"",""]
[null,null,null,"",null,null,null,"",""]
[null,null,null,"",null,null,null,"",""]
[null,null,null,"",null,null,null,"",""]
[null,null,null,"",null,null,null,"",""]
[null,null,null,"",null,null,null,"",""]
[null,null,null,"",null,null,null,"",""]
[null,null,null,"",null,null,null,"",""]
[null,null,null,"",null,null,null,"",""]
[null,null,null,"",null,null,null,"",""]
[null,null,null,"",null,null,null,"",""]
[null,null,null,"",null,null,null,"",""]
[null,null,null,"",null,null,null,"",""]
[null,null,null,"",null,null,null,"",""]
[null,null,null,"",null,null,null,"",""]
[null,null,null,"",null,null,null,"",""]
[null,null,null,"",null,null,null,"",""]
[null,null,null,"",null,null,null,"",""]
[null,null,null,"",null,null,null,"",""]
[null,null,null,"",null,null,null,"",""]
[null,null,null,{"$f":"IF(OR(C4867=\"\",E4867=\"Finalizado\"),\"\",IF(H4867=\"No Prazo\",1,IF(H4867=\"Finalizado\",1,-1)))","v":""},null,null,null,{"$f":"IF(C4867=\"\",\"\",IF(E4867<>\"Finalizado\",IF(C4867<TODAY(),\"Em Atraso\",\"No Prazo\"),\"Finalizado\"))","v":""},{"$f":"IF(E4867=\"Finalizado\",\"\",IF(C4867=\"\",\"\",MONTH(C4867)))","v":""}]
[null,null,null,"",null,null,null,"",""]
[null,null,null,"",null,null,null,"",""]
[null,null,null,"",null,null,null,"",""]
[null,null,null,"",null,null,null,"",""]
[null,null,null,"",null,null,null,"",""]
[null,null,null,"",null,null,null,"",""]
[null,null,null,"",null,null,null,"",""]
[null,null,null,"",null,null,null,"",""]
[null,null,null,"",null,null,null,"",""]
[null,null,null,"",null,null,null,"",""]
[null,null,null,"",null,null,null,"",""]
[null,null,null,"",null,null,null,"",""]
[null,null,null,"",null,null,null,"",""]
[null,null,null,"",null,null,null,"",""]
[null,null,null,"",null,null,null,"",""]
[null,null,null,"",null,null,null,"",""]
[null,null,null,"",null,null,null,"",""]
[null,null,null,"",null,null,null,"",""]
[null,null,null,"",null,null,null,"",""]
[null,null,null,"",null,null,null,"",""]
[null,null,null,"",null,null,null,"",""]
[null,null,null,"",null,null,null,"",""]
[null,null,null,"",null,null,null,"",""]
[null,null,null,"",null,null,null,"",""]
[null,null,null,"",null,null,null,"",""]
[null,null,null,"",null,null,null,"",""]
[null,null,null,"",null,null,null,"",""]
[null,null,null,"",null,null,null,"",""]
[null,null,null,"",null,null,null,"",""]
[null,null,null,"",null,null,null,"",""]
[null,null,null,"",null,null,null,"",""]
[null,null,null,"",null,null,null,"",""]
[null,null,null,"",null,null,null,"",""]
[null,null,null,"",null,null,null,"",""]
[null,null,null,"",null,null,null,"",""]
[null,null,null,"",null,null,null,"",""]
[null,null,null,"",null,null,null,"",""]
[null,null,null,"",null,null,null,"",""]
[null,null,null,"",null,null,null,"",""]
[null,null,null,"",null,null,null,"",""]
[null,null,null,"",null,null,null,"",""]
[null,null,null,"",null,null,null,"",""]
[null,null,null,"",null,null,null,"",""]
[null,null,null,"",null,null,null,"",""]
[null,null,null,"",null,null,null,"",""]
[null,null,null,"",null,null,null,"",""]
[null,null,null,"",null,null,null,"",""]
[null,null,null,"",null,null,null,"",""]
[null,null,null,"",null,null,null,"",""]
[null,null,null,"",null,null,null,"",""]
[null,null,null,"",null,null,null,"",""]
[null,null,null,"",null,null,null,"",""]
[null,null,null,"",null,null,null,"",""]
[null,null,null,"",null,null,null,"",""]
[null,null,null,"",null,null,null,"",""]
[null,null,null,"",null,null,null,"",""]
[null,null,null,"",null,null,null,"",""]
[null,null,null,"",null,null,null,"",""]
[null,null,null,"",null,null,null,"",""]
[null,null,null,"",null,null,null,"",""]
[null,null,null,"",null,null,null,"",""]
[null,null,null,"",null,null,null,"",""]
[null,null,null,"",null,null,null,"",""]
[null,null,null,{"$f":"IF(OR(C4931=\"\",E4931=\"Finalizado\"),\"\",IF(H4931=\"No Prazo\",1,IF(H4931=\"Finalizado\",1,-1)))","v":""},null,null,null,{"$f":"IF(C4931=\"\",\"\",IF(E4931<>\"Finalizado\",IF(C4931<TODAY(),\"Em Atraso\",\"No Prazo\"),\"Finalizado\"))","v":""},{"$f":"IF(E4931=\"Finalizado\",\"\",IF(C4931=\"\",\"\",MONTH(C4931)))","v":""}]
[null,null,null,"",null,null,null,"",""]
[null,null,null,"",null,null,null,"",""]
[null,null,null,"",null,null,null,"",""]
[null,null,null,"",null,null,null,"",""]
[null,null,null,"",null,null,null,"",""]
[null,null,null,"",null,null,null,"",""]
[null,null,null,"",null,null,null,"",""]
[null,null,null,"",null,null,null,"",""]
[null,null,null,"",null,null,null,"",""]
[null,null,null,"",null,null,null,"",""]
[null,null,null,"",null,null,null,"",""]
[null,null,null,"",null,null,null,"",""]
[null,null,null,"",null,null,null,"",""]
[null,null,null,"",null,null,null,"",""]
[null,null,null,"",null,null,null,"",""]
[null,null,null,"",null,null,null,"",""]
[null,null,null,"",null,null,null,"",""]
[null,null,null,"",null,null,null,"",""]
[null,null,null,"",null,null,null,"",""]
[null,null,null,"",null,null,null,"",""]
[null,null,null,"",null,null,null,"",""]
[null,null,null,"",null,null,null,"",""]
[null,null,null,"",null,null,null,"",""]
[null,null,null,"",null,null,null,"",""]
[null,null,null,"",null,null,null,"",""]
[null,null,null,"",null,null,null,"",""]
[null,null,null,"",null,null,null,"",""]
[null,null,null,"",null,null,null,"",""]
[null,null,null,"",null,null,null,"",""]
[null,null,null,"",null,null,null,"",""]
[null,null,null,"",null,null,null,"",""]
[null,null,null,"",null,null,null,"",""]
[null,null,null,"",null,null,null,"",""]
[null,null,null,"",null,null,null,"",""]
[null,null,null,"",null,null,null,"",""]
[null,null,null,"",null,null,null,"",""]
[null,null,null,"",null,null,null,"",""]
[null,null,null,"",null,null,null,"",""]
[null,null,null,"",null,null,null,"",""]
[null,null,null,"",null,null,null,"",""]
[null,null,null,"",null,null,null,"",""]
[null,null,null,"",null,null,null,"",""]
[null,null,null,"",null,null,null,"",""]
[null,null,null,"",null,null,null,"",""]
[null,null,null,"",null,null,null,"",""]
[null,null,null,"",null,null,null,"",""]
[null,null,null,"",null,null,null,"",""]
[null,null,null,"",null,null,null,"",""]
[null,null,null,"",null,null,null,"",""]
[null,null,null,"",null,null,null,"",""]
[null,null,null,"",null,null,null,"",""]
[null,null,null,"",null,null,null,"",""]
[null,null,null,"",null,null,null,"",""]
[null,null,null,"",null,null,null,"",""]
[null,null,null,"",null,null,null,"",""]
[null,null,null,"",null,null,null,"",""]
[null,null,null,"",null,null,null,"",""]
[null,null,null,"",null,null,null,"",""]
[null,null,null,"",null,null,null,"",""]
[null,null,null,"",null,null,null,"",""]
[null,null,null,"",null,null,null,"",""]
[null,null,null,"",null,null,null,"",""]
[null,null,null,"",null,null,null,"",""]
[null,null,null,{"$f":"IF(OR(C4995=\"\",E4995=\"Finalizado\"),\"\",IF(H4995=\"No Prazo\",1,IF(H4995=\"Finalizado\",1,-1)))","v":""},null,null,null,{"$f":"IF(C4995=\"\",\"\",IF(E4995<>\"Finalizado\",IF(C4995<TODAY(),\"Em Atraso\",\"No Prazo\"),\"Finalizado\"))","v":""},{"$f":"IF(E4995=\"Finalizado\",\"\",IF(C4995=\"\",\"\",MONTH(C4995)))","v":""}]
[null,null,null,"",null,null,null,"",""]
[null,null,null,"",null,null,null,"",""]
[null,null,null,"",null,null,null,"",""]
[null,null,null,"",null,null,null,"",""]
[null,null,null,"",null,null,null,"",""]

{"sheet":"CÁLCULOS","index":1,"n_rows":20,"n_cols":23,"rows_kept":20,"cut":false,"hidden":true,"merged":[[2,1,2,2],[8,1,8,2],[2,5,2,7]]}
[null,null,null,null,null,null,null,null,null,null,null,"No Prazo","Em Atraso","No Prazo","Em Atraso","No Prazo","Em Atraso","No Prazo","Em Atraso","No Prazo","Em Atraso","No Prazo","Em Atraso"]
[]
[null,"CONTAGEM PENDENTES",null,null,null,"CONTAGEM PENDENTES NO MÊS ESCOLHIDO"]
[null,"No Prazo",{"$f":"COUNTIF(Tarefas!H:H,CÁLCULOS!B4)","v":3},{"$f":"IF(C6=0,0,C4/C6)","v":0.6},null,"No Prazo",{"$f":"COUNTIFS(Tarefas!I:I,Dashboard!$AA$3,Tarefas!H:H,CÁLCULOS!F4)","v":3},null,null,null,null,{"$f":"Dashboard!B5","v":"2021-08-29"},{"$f":"L4","v":"2021-08-29"},{"$f":"Dashboard!D5","v":"2021-08-30"},{"$f":"N4","v":"2021-08-30"},{"$f":"Dashboard!F5","v":"2021-08-31"},{"$f":"P4","v":"2021-08-31"},{"$f":"Dashboard!H5","v":"2021-09-01"},{"$f":"R4","v":"2021-09-01"},{"$f":"Dashboard!J5","v":"2021-09-02"},{"$f":"T4","v":"2021-09-02"},{"$f":"Dashboard!L5","v":"2021-09-03"},{"$f":"V4","v":"2021-09-03"}]
[null,"Em Atraso",{"$f":"COUNTIF(Tarefas!H:H,CÁLCULOS!B5)","v":2},{"$f":"IF(C6=0,0,C5/C6)","v":0.4},null,"Em Atraso",{"$f":"COUNTIFS(Tarefas!I:I,Dashboard!$AA$3,Tarefas!H:H,CÁLCULOS!F5)","v":1},null,null,null,null,{"$f":"COUNTIFS(Tarefas!$C:$C,CÁLCULOS!L4,Tarefas!$H:$H,L$1)","v":0},{"$f":"COUNTIFS(Tarefas!$C:$C,CÁLCULOS!M4,Tarefas!$H:$H,M$1)","v":0},{"$f":"COUNTIFS(Tarefas!$C:$C,CÁLCULOS!N4,Tarefas!$H:$H,N$1)","v":0},{"$f":"COUNTIFS(Tarefas!$C:$C,CÁLCULOS!O4,Tarefas!$H:$H,O$1)","v":1},{"$f":"COUNTIFS(Tarefas!$C:$C,CÁLCULOS!P4,Tarefas!$H:$H,P$1)","v":0},{"$f":"COUNTIFS(Tarefas!$C:$C,CÁLCULOS!Q4,Tarefas!$H:$H,Q$1)","v":0},{"$f":"COUNTIFS(Tarefas!$C:$C,CÁLCULOS!R4,Tarefas!$H:$H,R$1)","v":0},{"$f":"COUNTIFS(Tarefas!$C:$C,CÁLCULOS!S4,Tarefas!$H:$H,S$1)","v":0},{"$f":"COUNTIFS(Tarefas!$C:$C,CÁLCULOS!T4,Tarefas!$H:$H,T$1)","v":0},{"$f":"COUNTIFS(Tarefas!$C:$C,CÁLCULOS!U4,Tarefas!$H:$H,U$1)","v":0},{"$f":"COUNTIFS(Tarefas!$C:$C,CÁLCULOS!V4,Tarefas!$H:$H,V$1)","v":0},{"$f":"COUNTIFS(Tarefas!$C:$C,CÁLCULOS!W4,Tarefas!$H:$H,W$1)","v":1}]
[null,"total",{"$f":"SUM(C4:C5)","v":5},null,null,"total",{"$f":"SUM(G4:G5)","v":4}]
[null,null,null,null,null,null,null,null,null,null,null,{"$f":"Dashboard!B8","v":"2021-09-05"},{"$f":"L7","v":"2021-09-05"},{"$f":"Dashboard!D8","v":"2021-09-06"},{"$f":"N7","v":"2021-09-06"},{"$f":"Dashboard!F8","v":"2021-09-07"},{"$f":"P7","v":"2021-09-07"},{"$f":"Dashboard!H8","v":"2021-09-08"},{"$f":"R7","v":"2021-09-08"},{"$f":"Dashboard!J8","v":"2021-09-09"},{"$f":"T7","v":"2021-09-09"},{"$f":"Dashboard!L8","v":"2021-09-10"},{"$f":"V7","v":"2021-09-10"}]
[null,null,null,null,null,null,null,null,null,null,null,{"$f":"COUNTIFS(Tarefas!$C:$C,CÁLCULOS!L7,Tarefas!$H:$H,L$1)","v":1},{"$f":"COUNTIFS(Tarefas!$C:$C,CÁLCULOS!M7,Tarefas!$H:$H,M$1)","v":0},{"$f":"COUNTIFS(Tarefas!$C:$C,CÁLCULOS!N7,Tarefas!$H:$H,N$1)","v":0},{"$f":"COUNTIFS(Tarefas!$C:$C,CÁLCULOS!O7,Tarefas!$H:$H,O$1)","v":0},{"$f":"COUNTIFS(Tarefas!$C:$C,CÁLCULOS!P7,Tarefas!$H:$H,P$1)","v":1},{"$f":"COUNTIFS(Tarefas!$C:$C,CÁLCULOS!Q7,Tarefas!$H:$H,Q$1)","v":0},{"$f":"COUNTIFS(Tarefas!$C:$C,CÁLCULOS!R7,Tarefas!$H:$H,R$1)","v":0},{"$f":"COUNTIFS(Tarefas!$C:$C,CÁLCULOS!S7,Tarefas!$H:$H,S$1)","v":0},{"$f":"COUNTIFS(Tarefas!$C:$C,CÁLCULOS!T7,Tarefas!$H:$H,T$1)","v":1},{"$f":"COUNTIFS(Tarefas!$C:$C,CÁLCULOS!U7,Tarefas!$H:$H,U$1)","v":0},{"$f":"COUNTIFS(Tarefas!$C:$C,CÁLCULOS!V7,Tarefas!$H:$H,V$1)","v":0},{"$f":"COUNTIFS(Tarefas!$C:$C,CÁLCULOS!W7,Tarefas!$H:$H,W$1)","v":0}]
[null,"CONTAGEM FINALIZADOS"]
[null,"Finalizado",{"$f":"COUNTIF(Tarefas!E:E,\"Finalizado\")","v":3},null,null,null,null,null,null,null,null,{"$f":"Dashboard!B11","v":"2021-09-12"},{"$f":"L10","v":"2021-09-12"},{"$f":"Dashboard!D11","v":"2021-09-13"},{"$f":"N10","v":"2021-09-13"},{"$f":"Dashboard!F11","v":"2021-09-14"},{"$f":"P10","v":"2021-09-14"},{"$f":"Dashboard!H11","v":"2021-09-15"},{"$f":"R10","v":"2021-09-15"},{"$f":"Dashboard!J11","v":"2021-09-16"},{"$f":"T10","v":"2021-09-16"},{"$f":"Dashboard!L11","v":"2021-09-17"},{"$f":"V10","v":"2021-09-17"}]
[null,null,null,null,null,null,null,null,null,null,null,{"$f":"COUNTIFS(Tarefas!$C:$C,CÁLCULOS!L10,Tarefas!$H:$H,L$1)","v":0},{"$f":"COUNTIFS(Tarefas!$C:$C,CÁLCULOS!M10,Tarefas!$H:$H,M$1)","v":0},{"$f":"COUNTIFS(Tarefas!$C:$C,CÁLCULOS!N10,Tarefas!$H:$H,N$1)","v":0},{"$f":"COUNTIFS(Tarefas!$C:$C,CÁLCULOS!O10,Tarefas!$H:$H,O$1)","v":0},{"$f":"COUNTIFS(Tarefas!$C:$C,CÁLCULOS!P10,Tarefas!$H:$H,P$1)","v":0},{"$f":"COUNTIFS(Tarefas!$C:$C,CÁLCULOS!Q10,Tarefas!$H:$H,Q$1)","v":0},{"$f":"COUNTIFS(Tarefas!$C:$C,CÁLCULOS!R10,Tarefas!$H:$H,R$1)","v":0},{"$f":"COUNTIFS(Tarefas!$C:$C,CÁLCULOS!S10,Tarefas!$H:$H,S$1)","v":0},{"$f":"COUNTIFS(Tarefas!$C:$C,CÁLCULOS!T10,Tarefas!$H:$H,T$1)","v":0},{"$f":"COUNTIFS(Tarefas!$C:$C,CÁLCULOS!U10,Tarefas!$H:$H,U$1)","v":0},{"$f":"COUNTIFS(Tarefas!$C:$C,CÁLCULOS!V10,Tarefas!$H:$H,V$1)","v":0},{"$f":"COUNTIFS(Tarefas!$C:$C,CÁLCULOS!W10,Tarefas!$H:$H,W$1)","v":0}]
[]
[null,null,null,null,null,null,null,null,null,null,null,{"$f":"Dashboard!B14","v":"2021-09-19"},{"$f":"L13","v":"2021-09-19"},{"$f":"Dashboard!D14","v":"2021-09-20"},{"$f":"N13","v":"2021-09-20"},{"$f":"Dashboard!F14","v":"2021-09-21"},{"$f":"P13","v":"2021-09-21"},{"$f":"Dashboard!H14","v":"2021-09-22"},{"$f":"R13","v":"2021-09-22"},{"$f":"Dashboard!J14","v":"2021-09-23"},{"$f":"T13","v":"2021-09-23"},{"$f":"Dashboard!L14","v":"2021-09-24"},{"$f":"V13","v":"2021-09-24"}]
[null,null,null,null,null,null,null,null,null,null,null,{"$f":"COUNTIFS(Tarefas!$C:$C,CÁLCULOS!L13,Tarefas!$H:$H,L$1)","v":0},{"$f":"COUNTIFS(Tarefas!$C:$C,CÁLCULOS!M13,Tarefas!$H:$H,M$1)","v":0},{"$f":"COUNTIFS(Tarefas!$C:$C,CÁLCULOS!N13,Tarefas!$H:$H,N$1)","v":0},{"$f":"COUNTIFS(Tarefas!$C:$C,CÁLCULOS!O13,Tarefas!$H:$H,O$1)","v":0},{"$f":"COUNTIFS(Tarefas!$C:$C,CÁLCULOS!P13,Tarefas!$H:$H,P$1)","v":0},{"$f":"COUNTIFS(Tarefas!$C:$C,CÁLCULOS!Q13,Tarefas!$H:$H,Q$1)","v":0},{"$f":"COUNTIFS(Tarefas!$C:$C,CÁLCULOS!R13,Tarefas!$H:$H,R$1)","v":0},{"$f":"COUNTIFS(Tarefas!$C:$C,CÁLCULOS!S13,Tarefas!$H:$H,S$1)","v":0},{"$f":"COUNTIFS(Tarefas!$C:$C,CÁLCULOS!T13,Tarefas!$H:$H,T$1)","v":0},{"$f":"COUNTIFS(Tarefas!$C:$C,CÁLCULOS!U13,Tarefas!$H:$H,U$1)","v":0},{"$f":"COUNTIFS(Tarefas!$C:$C,CÁLCULOS!V13,Tarefas!$H:$H,V$1)","v":0},{"$f":"COUNTIFS(Tarefas!$C:$C,CÁLCULOS!W13,Tarefas!$H:$H,W$1)","v":0}]
[]
[null,null,null,null,null,null,null,null,null,null,null,{"$f":"Dashboard!B17","v":"2021-09-26"},{"$f":"L16","v":"2021-09-26"},{"$f":"Dashboard!D17","v":"2021-09-27"},{"$f":"N16","v":"2021-09-27"},{"$f":"Dashboard!F17","v":"2021-09-28"},{"$f":"P16","v":"2021-09-28"},{"$f":"Dashboard!H17","v":"2021-09-29"},{"$f":"R16","v":"2021-09-29"},{"$f":"Dashboard!J17","v":"2021-09-30"},{"$f":"T16","v":"2021-09-30"},{"$f":"Dashboard!L17","v":"2021-10-01"},{"$f":"V16","v":"2021-10-01"}]
[null,null,null,null,null,null,null,null,null,null,null,{"$f":"COUNTIFS(Tarefas!$C:$C,CÁLCULOS!L16,Tarefas!$H:$H,L$1)","v":0},{"$f":"COUNTIFS(Tarefas!$C:$C,CÁLCULOS!M16,Tarefas!$H:$H,M$1)","v":0},{"$f":"COUNTIFS(Tarefas!$C:$C,CÁLCULOS!N16,Tarefas!$H:$H,N$1)","v":0},{"$f":"COUNTIFS(Tarefas!$C:$C,CÁLCULOS!O16,Tarefas!$H:$H,O$1)","v":0},{"$f":"COUNTIFS(Tarefas!$C:$C,CÁLCULOS!P16,Tarefas!$H:$H,P$1)","v":0},{"$f":"COUNTIFS(Tarefas!$C:$C,CÁLCULOS!Q16,Tarefas!$H:$H,Q$1)","v":0},{"$f":"COUNTIFS(Tarefas!$C:$C,CÁLCULOS!R16,Tarefas!$H:$H,R$1)","v":0},{"$f":"COUNTIFS(Tarefas!$C:$C,CÁLCULOS!S16,Tarefas!$H:$H,S$1)","v":0},{"$f":"COUNTIFS(Tarefas!$C:$C,CÁLCULOS!T16,Tarefas!$H:$H,T$1)","v":0},{"$f":"COUNTIFS(Tarefas!$C:$C,CÁLCULOS!U16,Tarefas!$H:$H,U$1)","v":0},{"$f":"COUNTIFS(Tarefas!$C:$C,CÁLCULOS!V16,Tarefas!$H:$H,V$1)","v":0},{"$f":"COUNTIFS(Tarefas!$C:$C,CÁLCULOS!W16,Tarefas!$H:$H,W$1)","v":0}]
[]
[null,null,null,null,null,null,null,null,null,null,null,{"$f":"Dashboard!B20","v":"2021-10-03"},{"$f":"L19","v":"2021-10-03"},{"$f":"Dashboard!D20","v":"2021-10-04"},{"$f":"N19","v":"2021-10-04"}]
[null,null,null,null,null,null,null,null,null,null,null,{"$f":"COUNTIFS(Tarefas!$C:$C,CÁLCULOS!L19,Tarefas!$H:$H,L$1)","v":0},{"$f":"COUNTIFS(Tarefas!$C:$C,CÁLCULOS!M19,Tarefas!$H:$H,M$1)","v":0},{"$f":"COUNTIFS(Tarefas!$C:$C,CÁLCULOS!N19,Tarefas!$H:$H,N$1)","v":0},{"$f":"COUNTIFS(Tarefas!$C:$C,CÁLCULOS!O19,Tarefas!$H:$H,O$1)","v":0},{"$f":"COUNTIFS(Tarefas!$C:$C,CÁLCULOS!P19,Tarefas!$H:$H,P$1)","v":0},{"$f":"COUNTIFS(Tarefas!$C:$C,CÁLCULOS!Q19,Tarefas!$H:$H,Q$1)","v":0},{"$f":"COUNTIFS(Tarefas!$C:$C,CÁLCULOS!R19,Tarefas!$H:$H,R$1)","v":0},{"$f":"COUNTIFS(Tarefas!$C:$C,CÁLCULOS!S19,Tarefas!$H:$H,S$1)","v":0},{"$f":"COUNTIFS(Tarefas!$C:$C,CÁLCULOS!T19,Tarefas!$H:$H,T$1)","v":0},{"$f":"COUNTIFS(Tarefas!$C:$C,CÁLCULOS!U19,Tarefas!$H:$H,U$1)","v":0},{"$f":"COUNTIFS(Tarefas!$C:$C,CÁLCULOS!V19,Tarefas!$H:$H,V$1)","v":0},{"$f":"COUNTIFS(Tarefas!$C:$C,CÁLCULOS!W19,Tarefas!$H:$H,W$1)","v":0}]

{"sheet":"Dashboard","index":2,"n_rows":21,"n_cols":27,"rows_kept":21,"cut":false,"hidden":false,"merged":[[4,13,4,14],[3,1,3,2],[3,3,3,4],[3,5,3,6],[4,1,4,2],[4,3,4,4],[4,5,4,6],[3,13,3,14],[4,7,4,8],[4,9,4,10],[4,11,4,12],[3,11,3,12],[3,7,3,8],[3,9,3,10],[23,1,23,2],[23,3,23,4],[23,11,23,14],[16,13,16,14],[16,5,16,6],[16,7,16,8],[16,9,16,10],[16,11,16,12],[19,1,19,2],[19,3,19,4],[10,13,10,14],[10,1,10,2],[10,3,10,4],[10,5,10,6],[10,7,10,8],[10,9,10,10],[10,11,10,12],[24,1,24,2],[24,3,24,4],[24,11,24,14],[13,13,13,14],[16,1,16,2],[16,3,16,4],[21,1,21,2],[21,3,21,4],[22,1,22,2],[22,3,22,4],[13,1,13,2],[13,3,13,4],[13,5,13,6],[13,7,13,8],[13,9,13,10],[13,11,13,12],[7,13,7,14],[7,1,7,2],[7,3,7,4],[7,5,7,6],[7,7,7,8],[7,9,7,10],[7,11,7,12]]}
[]
[null,null,null,null,null,null,null,null,null,null,null,null,null,null,{"$f":"TODAY()","v":"2021-09-04"},null,null,null,null,null,null,null,null,null,null,"Dia",1]
[null,null,null,null,null,null,null,null,null,null,null,null,null,null,{"$f":"UPPER(TEXT(TODAY(),\"MMMM\"))","v":"SETEMBRO"},null,null,null,null,null,null,null,null,null,null,"Mês",{"$f":"MONTH(TODAY())","v":9}]
[null,"DOM",null,"SEG",null,"TER",null,"QUA",null,"QUI",null,"SEX",null,"SÁB",null,null,null,null,null,null,null,null,null,null,null,"Ano",{"$f":"YEAR(TODAY())","v":2021}]
[null,{"$f":"datainicio-(WEEKDAY(datainicio,1))-IF((WEEKDAY(datainicio,1))<=0,7,0)+1","v":"2021-08-29"},null,{"$f":"B5+1","v":"2021-08-30"},null,{"$f":"D5+1","v":"2021-08-31"},null,{"$f":"F5+1","v":"2021-09-01"},null,{"$f":"H5+1","v":"2021-09-02"},null,{"$f":"J5+1","v":"2021-09-03"},null,{"$f":"L5+1","v":"2021-09-04"},null,null,null,null,null,null,null,null,null,null,null,"Data Início",{"$f":"DATE(AA4,AA3,AA2)","v":"2021-09-01"}]
[null,{"$f":"CÁLCULOS!L5","v":"00:00:00"},{"$f":"CÁLCULOS!M5","v":"00:00:00"},{"$f":"CÁLCULOS!N5","v":"00:00:00"},{"$f":"CÁLCULOS!O5","v":"1900-01-01"},{"$f":"CÁLCULOS!P5","v":"00:00:00"},{"$f":"CÁLCULOS!Q5","v":"00:00:00"},{"$f":"CÁLCULOS!R5","v":"00:00:00"},{"$f":"CÁLCULOS!S5","v":"00:00:00"},{"$f":"CÁLCULOS!T5","v":"00:00:00"},{"$f":"CÁLCULOS!U5","v":"00:00:00"},{"$f":"CÁLCULOS!V5","v":"00:00:00"},{"$f":"CÁLCULOS!W5","v":"1900-01-01"},{"$f":"CÁLCULOS!X5","v":"00:00:00"},{"$f":"CÁLCULOS!Y5","v":"00:00:00"},null,null,null,null,null,null,null,null,null,null,"mês",{"$f":"UPPER(TEXT(datainicio,\"MMMM\"))","v":"SETEMBRO"}]
[]
[null,{"$f":"N5+1","v":"2021-09-05"},null,{"$f":"B8+1","v":"2021-09-06"},null,{"$f":"D8+1","v":"2021-09-07"},null,{"$f":"F8+1","v":"2021-09-08"},null,{"$f":"H8+1","v":"2021-09-09"},null,{"$f":"J8+1","v":"2021-09-10"},null,{"$f":"L8+1","v":"2021-09-11"}]
[null,{"$f":"CÁLCULOS!L8","v":"1900-01-01"},{"$f":"CÁLCULOS!M8","v":"00:00:00"},{"$f":"CÁLCULOS!N8","v":"00:00:00"},{"$f":"CÁLCULOS!O8","v":"00:00:00"},{"$f":"CÁLCULOS!P8","v":"1900-01-01"},{"$f":"CÁLCULOS!Q8","v":"00:00:00"},{"$f":"CÁLCULOS!R8","v":"00:00:00"},{"$f":"CÁLCULOS!S8","v":"00:00:00"},{"$f":"CÁLCULOS!T8","v":"1900-01-01"},{"$f":"CÁLCULOS!U8","v":"00:00:00"},{"$f":"CÁLCULOS!V8","v":"00:00:00"},{"$f":"CÁLCULOS!W8","v":"00:00:00"},{"$f":"CÁLCULOS!X8","v":"00:00:00"},{"$f":"CÁLCULOS!Y8","v":"00:00:00"}]
[]
[null,{"$f":"N8+1","v":"2021-09-12"},null,{"$f":"B11+1","v":"2021-09-13"},null,{"$f":"D11+1","v":"2021-09-14"},null,{"$f":"F11+1","v":"2021-09-15"},null,{"$f":"H11+1","v":"2021-09-16"},null,{"$f":"J11+1","v":"2021-09-17"},null,{"$f":"L11+1","v":"2021-09-18"}]
[null,{"$f":"CÁLCULOS!L11","v":"00:00:00"},{"$f":"CÁLCULOS!M11","v":"00:00:00"},{"$f":"CÁLCULOS!N11","v":"00:00:00"},{"$f":"CÁLCULOS!O11","v":"00:00:00"},{"$f":"CÁLCULOS!P11","v":"00:00:00"},{"$f":"CÁLCULOS!Q11","v":"00:00:00"},{"$f":"CÁLCULOS!R11","v":"00:00:00"},{"$f":"CÁLCULOS!S11","v":"00:00:00"},{"$f":"CÁLCULOS!T11","v":"00:00:00"},{"$f":"CÁLCULOS!U11","v":"00:00:00"},{"$f":"CÁLCULOS!V11","v":"00:00:00"},{"$f":"CÁLCULOS!W11","v":"00:00:00"},{"$f":"CÁLCULOS!X11","v":"00:00:00"},{"$f":"CÁLCULOS!Y11","v":"00:00:00"}]
[]
[null,{"$f":"N11+1","v":"2021-09-19"},null,{"$f":"B14+1","v":"2021-09-20"},null,{"$f":"D14+1","v":"2021-09-21"},null,{"$f":"F14+1","v":"2021-09-22"},null,{"$f":"H14+1","v":"2021-09-23"},null,{"$f":"J14+1","v":"2021-09-24"},null,{"$f":"L14+1","v":"2021-09-25"}]
[null,{"$f":"CÁLCULOS!L14","v":"00:00:00"},{"$f":"CÁLCULOS!M14","v":"00:00:00"},{"$f":"CÁLCULOS!N14","v":"00:00:00"},{"$f":"CÁLCULOS!O14","v":"00:00:00"},{"$f":"CÁLCULOS!P14","v":"00:00:00"},{"$f":"CÁLCULOS!Q14","v":"00:00:00"},{"$f":"CÁLCULOS!R14","v":"00:00:00"},{"$f":"CÁLCULOS!S14","v":"00:00:00"},{"$f":"CÁLCULOS!T14","v":"00:00:00"},{"$f":"CÁLCULOS!U14","v":"00:00:00"},{"$f":"CÁLCULOS!V14","v":"00:00:00"},{"$f":"CÁLCULOS!W14","v":"00:00:00"},{"$f":"CÁLCULOS!X14","v":"00:00:00"},{"$f":"CÁLCULOS!Y14","v":"00:00:00"}]
[]
[null,{"$f":"N14+1","v":"2021-09-26"},null,{"$f":"B17+1","v":"2021-09-27"},null,{"$f":"D17+1","v":"2021-09-28"},null,{"$f":"F17+1","v":"2021-09-29"},null,{"$f":"H17+1","v":"2021-09-30"},null,{"$f":"J17+1","v":"2021-10-01"},null,{"$f":"L17+1","v":"2021-10-02"}]
[null,{"$f":"CÁLCULOS!L17","v":"00:00:00"},{"$f":"CÁLCULOS!M17","v":"00:00:00"},{"$f":"CÁLCULOS!N17","v":"00:00:00"},{"$f":"CÁLCULOS!O17","v":"00:00:00"},{"$f":"CÁLCULOS!P17","v":"00:00:00"},{"$f":"CÁLCULOS!Q17","v":"00:00:00"},{"$f":"CÁLCULOS!R17","v":"00:00:00"},{"$f":"CÁLCULOS!S17","v":"00:00:00"},{"$f":"CÁLCULOS!T17","v":"00:00:00"},{"$f":"CÁLCULOS!U17","v":"00:00:00"},{"$f":"CÁLCULOS!V17","v":"00:00:00"},{"$f":"CÁLCULOS!W17","v":"00:00:00"},{"$f":"CÁLCULOS!X17","v":"00:00:00"},{"$f":"CÁLCULOS!Y17","v":"00:00:00"}]
[]
[null,{"$f":"N17+1","v":"2021-10-03"},null,{"$f":"B20+1","v":"2021-10-04"}]
[null,{"$f":"CÁLCULOS!L20","v":"00:00:00"},{"$f":"CÁLCULOS!M20","v":"00:00:00"},{"$f":"CÁLCULOS!N20","v":"00:00:00"},{"$f":"CÁLCULOS!O20","v":"00:00:00"},{"$f":"CÁLCULOS!P20","v":"00:00:00"},{"$f":"CÁLCULOS!Q20","v":"00:00:00"},{"$f":"CÁLCULOS!R20","v":"00:00:00"},{"$f":"CÁLCULOS!S20","v":"00:00:00"},{"$f":"CÁLCULOS!T20","v":"00:00:00"},{"$f":"CÁLCULOS!U20","v":"00:00:00"},{"$f":"CÁLCULOS!V20","v":"00:00:00"},{"$f":"CÁLCULOS!W20","v":"00:00:00"},{"$f":"CÁLCULOS!X20","v":"00:00:00"},{"$f":"CÁLCULOS!Y20","v":"00:00:00"}]